Workbook

Sheet Introduction
C4: Joint Monitoring Programme for Water Supply, Sanitation and Hygiene
C6: Estimates on household water, sanitation and hygiene by wealth quintile and sub-national region in
C7: =+Water!B5 -> El Salvador
C9: Updated May 2021
C11: Follow the links below to find the following information:
C13: JMP Estimates
C14: WASH status and trends by wealth quintile (customized quintiles made without water and sanitation assets)
C15: Water
C16: Sanitation
C17: Hygiene
C19: Data inputs
C20: customized wealth quintiles and subnational data:
C21: =IF(INDIRECT(CONCATENATE("Water","!B105"))=0,"",INDIRECT(CONCATENATE("Water","!B105"))) -> MICS14
C22: =IF(INDIRECT(CONCATENATE("Water","!B106"))=0,"",INDIRECT(CONCATENATE("Water","!B106"))) -> 
C23: =IF(INDIRECT(CONCATENATE("Water","!B107"))=0,"",INDIRECT(CONCATENATE("Water","!B107"))) -> 
C24: =IF(INDIRECT(CONCATENATE("Water","!B108"))=0,"",INDIRECT(CONCATENATE("Water","!B108"))) -> 
C25: =IF(INDIRECT(CONCATENATE("Water","!B109"))=0,"",INDIRECT(CONCATENATE("Water","!B109"))) -> 
C26: =IF(INDIRECT(CONCATENATE("Water","!B110"))=0,"",INDIRECT(CONCATENATE("Water","!B110"))) -> 
C27: =IF(INDIRECT(CONCATENATE("Water","!B111"))=0,"",INDIRECT(CONCATENATE("Water","!B111"))) -> 
C28: =IF(INDIRECT(CONCATENATE("Water","!B112"))=0,"",INDIRECT(CONCATENATE("Water","!B112"))) -> 
C29: =IF(INDIRECT(CONCATENATE("Water","!B113"))=0,"",INDIRECT(CONCATENATE("Water","!B113"))) -> 
C30: =IF(INDIRECT(CONCATENATE("Water","!B114"))=0,"",INDIRECT(CONCATENATE("Water","!B114"))) -> 
C31: =IF(INDIRECT(CONCATENATE("Water","!B115"))=0,"",INDIRECT(CONCATENATE("Water","!B115"))) -> 
C32: =IF(INDIRECT(CONCATENATE("Water","!B116"))=0,"",INDIRECT(CONCATENATE("Water","!B116"))) -> 
L55: =+IF(ISNUMBER(M48), "", "Insufficient data to estimate safely managed sanitation services at national level") -> Insufficient data to estimate safely managed sanitation services at national level

Sheet Water
A1: BGD
B4: Summary of trends in use of drinking water by wealth quintile (%)
B5: =IF(ISERROR(INDIRECT(CONCATENATE($B105,"!A2"))),"",INDIRECT(CONCATENATE($B105,"!A2"))) -> El Salvador
B7: =B118 -> National use of drinking water sources, 2010–2018 | J7: =B218 -> Urban use of drinking water sources, 2010–2018 | R7: =B318 -> Rural use of drinking water sources, 2010–2018
B31: =IF(ISERROR(INDIRECT(CONCATENATE($B105,"!A2"))),"",INDIRECT(CONCATENATE($B105,"!A2"))) -> El Salvador | F31: Poorest | J31: Poor | N31: Middle | R31: Rich | V31: Richest
F32: Basic | G32: Limited | H32: Unimproved | I32: Surface water | J32: Basic | K32: Limited | L32: Unimproved | M32: Surface water | N32: Basic | O32: Limited | P32: Unimproved | Q32: Surface water | R32: Basic | S32: Limited | T32: Unimproved | U32: Surface water | V32: Basic | W32: Limited | X32: Unimproved | Y32: Surface water
B33: NATIONAL | D33: Estimate | E33: =C99 -> 2010 | F33: =E99 -> 86.1270817 | G33: =F99 -> 2.725581703 | H33: 9.246483755 | I33: 1.90085284 | J33: =J99 -> 94.21796243 | K33: =K99 -> 1.595751579 | L33: 3.295820326 | M33: 0.8904656638 | N33: =O99 -> 98.13581483 | O33: =P99 -> 0.4695330969 | P33: 1.267980762 | Q33: 0.1266713129 | R33: =T99 -> 99.39844668 | S33: =U99 -> 0.3249681849 | T33: 0.2765851304 | U33: 0 | V33: =Y99 -> 99.25605946 | W33: =Z99 -> 0.2701118611 | X33: 0.1514369116 | Y33: 0.3223917659
E34: =C100 -> 2018 | F34: =E100 -> 86.1270817 | G34: 2.725581703 | H34: 9.246483755 | I34: 1.90085284 | J34: =J100 -> 94.21796243 | K34: 1.595751579 | L34: 3.295820326 | M34: 0.8904656638 | N34: =O100 -> 98.13581483 | O34: 0.4695330969 | P34: 1.267980762 | Q34: 0.1266713129 | R34: =T100 -> 99.39844668 | S34: 0.3249681849 | T34: 0.2765851304 | U34: 0 | V34: =Y100 -> 99.25605946 | W34: 0.2701118611 | X34: 0.1514369116 | Y34: 0.3223917659
B36: URBAN | D36: Estimate | E36: =C199 -> 2010 | F36: =E199 -> 96.79968963 | G36: =F199 -> 0.8735444632 | H36: 2.326765904 | I36: 0 | J36: =J199 -> 99.44887341 | K36: =K199 -> 0.2292142591 | L36: 0.3002371414 | M36: 0.02167518813 | N36: =O199 -> 99.67043981 | O36: =P199 -> 0.231036721 | P36: 0.09852347104 | Q36: 0 | R36: =T199 -> 99.94179862 | S36: =U199 -> 0.02050151593 | T36: 0.0376998593 | U36: 0 | V36: =Y199 -> 99.6277102 | W36: =Z199 -> 0.2797026871 | X36: 0.09258710808 | Y36: 0
E37: =C200 -> 2018 | F37: =E200 -> 96.79968963 | G37: 0.8735444632 | H37: 2.326765904 | I37: 0 | J37: =J200 -> 99.44887341 | K37: 0.2292142591 | L37: 0.3002371414 | M37: 0.02167518813 | N37: =O200 -> 99.67043981 | O37: 0.231036721 | P37: 0.09852347104 | Q37: 0 | R37: =T200 -> 99.94179862 | S37: 0.02050151593 | T37: 0.0376998593 | U37: 0 | V37: =Y200 -> 99.6277102 | W37: 0.2797026871 | X37: 0.09258710808 | Y37: 0
B39: RURAL | D39: Estimate | E39: =C299 -> 2010 | F39: =E299 -> 80.73094552 | G39: =F299 -> 3.98664814 | H39: 12.88560914 | I39: 2.396797193 | J39: =J299 -> 84.85404525 | K39: =K299 -> 2.505697843 | L39: 10.15446887 | M39: 2.48578803 | N39: =O299 -> 92.14301257 | O39: =P299 -> 1.994953402 | P39: 4.862866502 | Q39: 0.9991675286 | R39: =T299 -> 93.64066325 | S39: =U299 -> 1.850918892 | T39: 3.014893103 | U39: 1.493524757 | V39: =Y299 -> 95.9749277 | W39: =Z299 -> 1.071890049 | X39: 1.992272763 | Y39: 0.9609094837
E40: =C300 -> 2018 | F40: =E300 -> 80.73094552 | G40: 3.98664814 | H40: 12.88560914 | I40: 2.396797193 | J40: =J300 -> 84.85404525 | K40: 2.505697843 | L40: 10.15446887 | M40: 2.48578803 | N40: =O300 -> 92.14301257 | O40: 1.994953402 | P40: 4.862866502 | Q40: 0.9991675286 | R40: =T300 -> 93.64066325 | S40: 1.850918892 | T40: 3.014893103 | U40: 1.493524757 | V40: =Y300 -> 95.9749277 | W40: 1.071890049 | X40: 1.992272763 | Y40: 0.9609094837
A97: NATIONAL | D97: Poorest | I97: Poor | N97: Middle | S97: Rich | X97: Richest
D98: Improved | E98: Basic | F98: Limited | G98: Unimproved | H98: Surface water | I98: Improved | J98: Basic | K98: Limited | L98: Unimproved | M98: Surface water | N98: Improved | O98: Basic | P98: Limited | Q98: Unimproved | R98: Surface water | S98: Improved | T98: Basic | U98: Limited | V98: Unimproved | W98: Surface water | X98: Improved | Y98: Basic | Z98: Limited | AA98: Unimproved | AB98: Surface water
A99: Forecast period: | C99: =MinBase(C105:C116) -> 2010 | D99: =IF((D101+H101)>100,D101*100/(D101+H101),D101) -> 88.85266341 | E99: =D99*AVERAGEIF(E105:E116,">0")/100 -> 86.1270817 | F99: =D99*(100-AVERAGEIF(E105:E116,">0"))/100 -> 2.725581703 | G99: =100-(E99+F99+H99) -> 9.246483755 | H99: =IF((D101+H101)>100,H101*100/(D101+H101),H101) -> 1.90085284 | I99: =IF((I101+M101)>100,I101*100/(I101+M101),I101) -> 95.81371401 | J99: =I99*AVERAGEIF(J105:J116,">0")/100 -> 94.21796243 | K99: =I99*(100-AVERAGEIF(J105:J116,">0"))/100 -> 1.595751579 | L99: =100-(J99+K99+M99) -> 3.295820326 | M99: =IF((I101+M101)>100,M101*100/(I101+M101),M101) -> 0.8904656638 | N99: =IF((N101+R101)>100,N101*100/(N101+R101),N101) -> 98.60534793 | O99: =N99*AVERAGEIF(O105:O116,">0")/100 -> 98.13581483 | P99: =N99*(100-AVERAGEIF(O105:O116,">0"))/100 -> 0.4695330969 | Q99: =100-(O99+P99+R99) -> 1.267980762 | R99: =IF((N101+R101)>100,R101*100/(N101+R101),R101) -> 0.1266713129 | S99: =IF((S101+W101)>100,S101*100/(S101+W101),S101) -> 99.72341487 | T99: =S99*AVERAGEIF(T105:T116,">0")/100 -> 99.39844668 | U99: =S99*(100-AVERAGEIF(T105:T116,">0"))/100 -> 0.3249681849 | V99: =100-(T99+U99+W99) -> 0.2765851304 | W99: =IF((S101+W101)>100,W101*100/(S101+W101),W101) -> 0 | X99: =IF((X101+AB101)>100,X101*100/(X101+AB101),X101) -> 99.52617132 | Y99: =X99*AVERAGEIF(Y105:Y116,">0")/100 -> 99.25605946 | Z99: =X99*(100-AVERAGEIF(Y105:Y116,">0"))/100 -> 0.2701118611 | AA99: =100-(Y99+Z99+AB99) -> 0.1514369116 | AB99: =IF((X101+AB101)>100,AB101*100/(X101+AB101),AB101) -> 0.3223917659
C100: =MaxTarget(C105:C116) -> 2018 | D100: =IF((D102+H102)>100,D102*100/(D102+H102),D102) -> 88.85266341 | E100: =D100*AVERAGEIF(E105:E116,">0")/100 -> 86.1270817 | F100: =D100*(100-AVERAGEIF(E105:E116,">0"))/100 -> 2.725581703 | G100: =100-(E100+F100+H100) -> 9.246483755 | H100: =IF((D102+H102)>100,H102*100/(D102+H102),H102) -> 1.90085284 | I100: =IF((I102+M102)>100,I102*100/(I102+M102),I102) -> 95.81371401 | J100: =I100*AVERAGEIF(J105:J116,">0")/100 -> 94.21796243 | K100: =I100*(100-AVERAGEIF(J105:J116,">0"))/100 -> 1.595751579 | L100: =100-(J100+K100+M100) -> 3.295820326 | M100: =IF((I102+M102)>100,M102*100/(I102+M102),M102) -> 0.8904656638 | N100: =IF((N102+R102)>100,N102*100/(N102+R102),N102) -> 98.60534793 | O100: =N100*AVERAGEIF(O105:O116,">0")/100 -> 98.13581483 | P100: =N100*(100-AVERAGEIF(O105:O116,">0"))/100 -> 0.4695330969 | Q100: =100-(O100+P100+R100) -> 1.267980762 | R100: =IF((N102+R102)>100,R102*100/(N102+R102),R102) -> 0.1266713129 | S100: =IF((S102+W102)>100,S102*100/(S102+W102),S102) -> 99.72341487 | T100: =S100*AVERAGEIF(T105:T116,">0")/100 -> 99.39844668 | U100: =S100*(100-AVERAGEIF(T105:T116,">0"))/100 -> 0.3249681849 | V100: =100-(T100+U100+W100) -> 0.2765851304 | W100: =IF((S102+W102)>100,W102*100/(S102+W102),W102) -> 0 | X100: =IF((X102+AB102)>100,X102*100/(X102+AB102),X102) -> 99.52617132 | Y100: =X100*AVERAGEIF(Y105:Y116,">0")/100 -> 99.25605946 | Z100: =X100*(100-AVERAGEIF(Y105:Y116,">0"))/100 -> 0.2701118611 | AA100: =100-(Y100+Z100+AB100) -> 0.1514369116 | AB100: =IF((X102+AB102)>100,AB102*100/(X102+AB102),AB102) -> 0.3223917659
A101: Regression period: | C101: =MinRegYear(C99,C105:C116) -> 2012 | D101: =IF(MAX(C105:C116)-MIN(C105:C116)<5,AVERAGEIF(C105:C116,">0",D105:D116), IF(FORECAST($C101,D$105:D$116,$C$105:$C$116)<0,0, IF(FORECAST($C101,D$105:D$116,$C$105:$C$116)>100,100, FORECAST($C101,D$105:D$116,$C$105:$C$116)))) -> 88.85266341 | H101: =IF(MAX(C105:C116)-MIN(C105:C116)<5,AVERAGEIF(C105:C116,">0",H105:H116), IF(FORECAST($C101,H$105:H$116,$C$105:$C$116)<0,0, IF(FORECAST($C101,H$105:H$116,$C$105:$C$116)>100,100, FORECAST($C101,H$105:H$116,$C$105:$C$116)))) -> 1.90085284 | I101: =IF(MAX(C105:C116)-MIN(C105:C116)<5,AVERAGEIF(C105:C116,">0",I105:I116), IF(FORECAST($C101,I$105:I$116,$C$105:$C$116)<0,0, IF(FORECAST($C101,I$105:I$116,$C$105:$C$116)>100,100, FORECAST($C101,I$105:I$116,$C$105:$C$116)))) -> 95.81371401 | M101: =IF(MAX(C105:C116)-MIN(C105:C116)<5,AVERAGEIF(C105:C116,">0",M105:M116), IF(FORECAST($C101,M$105:M$116,$C$105:$C$116)<0,0, IF(FORECAST($C101,M$105:M$116,$C$105:$C$116)>100,100, FORECAST($C101,M$105:M$116,$C$105:$C$116)))) -> 0.8904656638 | N101: =IF(MAX(C105:C116)-MIN(C105:C116)<5,AVERAGEIF(C105:C116,">0",N105:N116), IF(FORECAST($C101,N$105:N$116,$C$105:$C$116)<0,0, IF(FORECAST($C101,N$105:N$116,$C$105:$C$116)>100,100, FORECAST($C101,N$105:N$116,$C$105:$C$116)))) -> 98.60534793 | R101: =IF(MAX(C105:C116)-MIN(C105:C116)<5,AVERAGEIF(C105:C116,">0",R105:R116), IF(FORECAST($C101,R$105:R$116,$C$105:$C$116)<0,0, IF(FORECAST($C101,R$105:R$116,$C$105:$C$116)>100,100, FORECAST($C101,R$105:R$116,$C$105:$C$116)))) -> 0.1266713129 | S101: =IF(MAX(C105:C116)-MIN(C105:C116)<5,AVERAGEIF(C105:C116,">0",S105:S116), IF(FORECAST($C101,S$105:S$116,$C$105:$C$116)<0,0, IF(FORECAST($C101,S$105:S$116,$C$105:$C$116)>100,100, FORECAST($C101,S$105:S$116,$C$105:$C$116)))) -> 99.72341487 | W101: =IF(MAX(C105:C116)-MIN(C105:C116)<5,AVERAGEIF(C105:C116,">0",W105:W116), IF(FORECAST($C101,W$105:W$116,$C$105:$C$116)<0,0, IF(FORECAST($C101,W$105:W$116,$C$105:$C$116)>100,100, FORECAST($C101,W$105:W$116,$C$105:$C$116)))) -> 0 | X101: =IF(MAX(C105:C116)-MIN(C105:C116)<5,AVERAGEIF(C105:C116,">0",X105:X116), IF(FORECAST($C101,X$105:X$116,$C$105:$C$116)<0,0, IF(FORECAST($C101,X$105:X$116,$C$105:$C$116)>100,100, FORECAST($C101,X$105:X$116,$C$105:$C$116)))) -> 99.52617132 | AB101: =IF(MAX(C105:C116)-MIN(C105:C116)<5,AVERAGEIF(C105:C116,">0",AB105:AB116), IF(FORECAST($C101,AB$105:AB$116,$C$105:$C$116)<0,0, IF(FORECAST($C101,AB$105:AB$116,$C$105:$C$116)>100,100, FORECAST($C101,AB$105:AB$116,$C$105:$C$116)))) -> 0.3223917659
C102: =MaxRegYear(C100,C105:C116) -> 2016 | D102: =IF(MAX(C105:C116)-MIN(C105:C116)<5,AVERAGEIF(C105:C116,">0",D105:D116), IF(FORECAST($C102,D$105:D$116,$C$105:$C$116)<0,0, IF(FORECAST($C102,D$105:D$116,$C$105:$C$116)>100,100, FORECAST($C102,D$105:D$116,$C$105:$C$116)))) -> 88.85266341 | H102: =IF(MAX(C105:C116)-MIN(C105:C116)<5,AVERAGEIF(C105:C116,">0",H105:H116), IF(FORECAST($C102,H$105:H$116,$C$105:$C$116)<0,0, IF(FORECAST($C102,H$105:H$116,$C$105:$C$116)>100,100, FORECAST($C102,H$105:H$116,$C$105:$C$116)))) -> 1.90085284 | I102: =IF(MAX(C105:C116)-MIN(C105:C116)<5,AVERAGEIF(C105:C116,">0",I105:I116), IF(FORECAST($C102,I$105:I$116,$C$105:$C$116)<0,0, IF(FORECAST($C102,I$105:I$116,$C$105:$C$116)>100,100, FORECAST($C102,I$105:I$116,$C$105:$C$116)))) -> 95.81371401 | M102: =IF(MAX(C105:C116)-MIN(C105:C116)<5,AVERAGEIF(C105:C116,">0",M105:M116), IF(FORECAST($C102,M$105:M$116,$C$105:$C$116)<0,0, IF(FORECAST($C102,M$105:M$116,$C$105:$C$116)>100,100, FORECAST($C102,M$105:M$116,$C$105:$C$116)))) -> 0.8904656638 | N102: =IF(MAX(C105:C116)-MIN(C105:C116)<5,AVERAGEIF(C105:C116,">0",N105:N116), IF(FORECAST($C102,N$105:N$116,$C$105:$C$116)<0,0, IF(FORECAST($C102,N$105:N$116,$C$105:$C$116)>100,100, FORECAST($C102,N$105:N$116,$C$105:$C$116)))) -> 98.60534793 | R102: =IF(MAX(C105:C116)-MIN(C105:C116)<5,AVERAGEIF(C105:C116,">0",R105:R116), IF(FORECAST($C102,R$105:R$116,$C$105:$C$116)<0,0, IF(FORECAST($C102,R$105:R$116,$C$105:$C$116)>100,100, FORECAST($C102,R$105:R$116,$C$105:$C$116)))) -> 0.1266713129 | S102: =IF(MAX(C105:C116)-MIN(C105:C116)<5,AVERAGEIF(C105:C116,">0",S105:S116), IF(FORECAST($C102,S$105:S$116,$C$105:$C$116)<0,0, IF(FORECAST($C102,S$105:S$116,$C$105:$C$116)>100,100, FORECAST($C102,S$105:S$116,$C$105:$C$116)))) -> 99.72341487 | W102: =IF(MAX(C105:C116)-MIN(C105:C116)<5,AVERAGEIF(C105:C116,">0",W105:W116), IF(FORECAST($C102,W$105:W$116,$C$105:$C$116)<0,0, IF(FORECAST($C102,W$105:W$116,$C$105:$C$116)>100,100, FORECAST($C102,W$105:W$116,$C$105:$C$116)))) -> 0 | X102: =IF(MAX(C105:C116)-MIN(C105:C116)<5,AVERAGEIF(C105:C116,">0",X105:X116), IF(FORECAST($C102,X$105:X$116,$C$105:$C$116)<0,0, IF(FORECAST($C102,X$105:X$116,$C$105:$C$116)>100,100, FORECAST($C102,X$105:X$116,$C$105:$C$116)))) -> 99.52617132 | AB102: =IF(MAX(C105:C116)-MIN(C105:C116)<5,AVERAGEIF(C105:C116,">0",AB105:AB116), IF(FORECAST($C102,AB$105:AB$116,$C$105:$C$116)<0,0, IF(FORECAST($C102,AB$105:AB$116,$C$105:$C$116)>100,100, FORECAST($C102,AB$105:AB$116,$C$105:$C$116)))) -> 0.3223917659
B104: Survey | C104: Year | D104: Improved | E104: % Improved < = 30min | H104: Surface water | I104: Improved | J104: % Improved < = 30min | M104: Surface water | N104: Improved | O104: % Improved < = 30min | R104: Surface water | S104: Improved | T104: % Improved < = 30min | W104: Surface water | X104: Improved | Y104: % Improved < = 30min | AB104: Surface water
B105: MICS14 | C105: 2014 | D105: =IF(ISERROR(INDIRECT(CONCATENATE($B105,"!C16"))),"",INDIRECT(CONCATENATE($B105,"!C16"))) -> 88.85266341 | E105: =IF(ISERROR(INDIRECT(CONCATENATE($B105,"!C23"))),"",INDIRECT(CONCATENATE($B105,"!C23"))) -> 96.93247045 | H105: =IF(ISERROR(INDIRECT(CONCATENATE($B105,"!C21"))),"",INDIRECT(CONCATENATE($B105,"!C21"))) -> 1.90085284 | I105: =IF(ISERROR(INDIRECT(CONCATENATE($B105,"!D16"))),"",INDIRECT(CONCATENATE($B105,"!D16"))) -> 95.81371401 | J105: =IF(ISERROR(INDIRECT(CONCATENATE($B105,"!D23"))),"",INDIRECT(CONCATENATE($B105,"!D23"))) -> 98.33452696 | M105: =IF(ISERROR(INDIRECT(CONCATENATE($B105,"!D21"))),"",INDIRECT(CONCATENATE($B105,"!D21"))) -> 0.8904656638 | N105: =IF(ISERROR(INDIRECT(CONCATENATE($B105,"!E16"))),"",INDIRECT(CONCATENATE($B105,"!E16"))) -> 98.60534793 | O105: =IF(ISERROR(INDIRECT(CONCATENATE($B105,"!E23"))),"",INDIRECT(CONCATENATE($B105,"!E23"))) -> 99.52382593 | R105: =IF(ISERROR(INDIRECT(CONCATENATE($B105,"!E21"))),"",INDIRECT(CONCATENATE($B105,"!E21"))) -> 0.1266713129 | S105: =IF(ISERROR(INDIRECT(CONCATENATE($B105,"!F16"))),"",INDIRECT(CONCATENATE($B105,"!F16"))) -> 99.72341487 | T105: =IF(ISERROR(INDIRECT(CONCATENATE($B105,"!F23"))),"",INDIRECT(CONCATENATE($B105,"!F23"))) -> 99.67413051 | W105: =IF(ISERROR(INDIRECT(CONCATENATE($B105,"!F21"))),"",INDIRECT(CONCATENATE($B105,"!F21"))) -> 0 | X105: =IF(ISERROR(INDIRECT(CONCATENATE($B105,"!G16"))),"",INDIRECT(CONCATENATE($B105,"!G16"))) -> 99.52617132 | Y105: =IF(ISERROR(INDIRECT(CONCATENATE($B105,"!G23"))),"",INDIRECT(CONCATENATE($B105,"!G23"))) -> 99.72860218 | AB105: =IF(ISERROR(INDIRECT(CONCATENATE($B105,"!G221"))),"",INDIRECT(CONCATENATE($B105,"!G21"))) -> 0.3223917659
D111: =IF(ISERROR(INDIRECT(CONCATENATE($B111,"!C16"))),"",INDIRECT(CONCATENATE($B111,"!C16"))) ->  | E111: =IF(ISERROR(INDIRECT(CONCATENATE($B111,"!C23"))),"",INDIRECT(CONCATENATE($B111,"!C23"))) ->  | H111: =IF(ISERROR(INDIRECT(CONCATENATE($B111,"!C21"))),"",INDIRECT(CONCATENATE($B111,"!C21"))) ->  | I111: =IF(ISERROR(INDIRECT(CONCATENATE($B111,"!D16"))),"",INDIRECT(CONCATENATE($B111,"!D16"))) ->  | J111: =IF(ISERROR(INDIRECT(CONCATENATE($B111,"!D23"))),"",INDIRECT(CONCATENATE($B111,"!D23"))) ->  | M111: =IF(ISERROR(INDIRECT(CONCATENATE($B111,"!D21"))),"",INDIRECT(CONCATENATE($B111,"!D21"))) ->  | N111: =IF(ISERROR(INDIRECT(CONCATENATE($B111,"!E16"))),"",INDIRECT(CONCATENATE($B111,"!E16"))) ->  | O111: =IF(ISERROR(INDIRECT(CONCATENATE($B111,"!E23"))),"",INDIRECT(CONCATENATE($B111,"!E23"))) ->  | R111: =IF(ISERROR(INDIRECT(CONCATENATE($B111,"!E21"))),"",INDIRECT(CONCATENATE($B111,"!E21"))) ->  | S111: =IF(ISERROR(INDIRECT(CONCATENATE($B111,"!F16"))),"",INDIRECT(CONCATENATE($B111,"!F16"))) ->  | T111: =IF(ISERROR(INDIRECT(CONCATENATE($B111,"!F23"))),"",INDIRECT(CONCATENATE($B111,"!F23"))) ->  | W111: =IF(ISERROR(INDIRECT(CONCATENATE($B111,"!F21"))),"",INDIRECT(CONCATENATE($B111,"!F21"))) ->  | X111: =IF(ISERROR(INDIRECT(CONCATENATE($B111,"!G16"))),"",INDIRECT(CONCATENATE($B111,"!G16"))) ->  | Y111: =IF(ISERROR(INDIRECT(CONCATENATE($B111,"!G23"))),"",INDIRECT(CONCATENATE($B111,"!G23"))) ->  | AB111: =IF(ISERROR(INDIRECT(CONCATENATE($B111,"!G221"))),"",INDIRECT(CONCATENATE($B111,"!G21"))) -> 
D112: =IF(ISERROR(INDIRECT(CONCATENATE($B112,"!C16"))),"",INDIRECT(CONCATENATE($B112,"!C16"))) ->  | E112: =IF(ISERROR(INDIRECT(CONCATENATE($B112,"!C23"))),"",INDIRECT(CONCATENATE($B112,"!C23"))) ->  | H112: =IF(ISERROR(INDIRECT(CONCATENATE($B112,"!C21"))),"",INDIRECT(CONCATENATE($B112,"!C21"))) ->  | I112: =IF(ISERROR(INDIRECT(CONCATENATE($B112,"!D16"))),"",INDIRECT(CONCATENATE($B112,"!D16"))) ->  | J112: =IF(ISERROR(INDIRECT(CONCATENATE($B112,"!D23"))),"",INDIRECT(CONCATENATE($B112,"!D23"))) ->  | M112: =IF(ISERROR(INDIRECT(CONCATENATE($B112,"!D21"))),"",INDIRECT(CONCATENATE($B112,"!D21"))) ->  | N112: =IF(ISERROR(INDIRECT(CONCATENATE($B112,"!E16"))),"",INDIRECT(CONCATENATE($B112,"!E16"))) ->  | O112: =IF(ISERROR(INDIRECT(CONCATENATE($B112,"!E23"))),"",INDIRECT(CONCATENATE($B112,"!E23"))) ->  | R112: =IF(ISERROR(INDIRECT(CONCATENATE($B112,"!E21"))),"",INDIRECT(CONCATENATE($B112,"!E21"))) ->  | S112: =IF(ISERROR(INDIRECT(CONCATENATE($B112,"!F16"))),"",INDIRECT(CONCATENATE($B112,"!F16"))) ->  | T112: =IF(ISERROR(INDIRECT(CONCATENATE($B112,"!F23"))),"",INDIRECT(CONCATENATE($B112,"!F23"))) ->  | W112: =IF(ISERROR(INDIRECT(CONCATENATE($B112,"!F21"))),"",INDIRECT(CONCATENATE($B112,"!F21"))) ->  | X112: =IF(ISERROR(INDIRECT(CONCATENATE($B112,"!G16"))),"",INDIRECT(CONCATENATE($B112,"!G16"))) ->  | Y112: =IF(ISERROR(INDIRECT(CONCATENATE($B112,"!G23"))),"",INDIRECT(CONCATENATE($B112,"!G23"))) ->  | AB112: =IF(ISERROR(INDIRECT(CONCATENATE($B112,"!G221"))),"",INDIRECT(CONCATENATE($B112,"!G21"))) -> 
B118: =CONCATENATE("National use of drinking water sources, ",C99,"–",C100) -> National use of drinking water sources, 2010–2018 | S118: Data points used for regression
E153: =IF(ISERROR(INDIRECT(CONCATENATE($B153,"!M18"))),"",INDIRECT(CONCATENATE($B153,"!M18"))) ->  | F153: =IF(ISERROR(INDIRECT(CONCATENATE($B153,"!M19"))),"",INDIRECT(CONCATENATE($B153,"!M19"))) ->  | G153: =IF(ISERROR(INDIRECT(CONCATENATE($B153,"!M20"))),"",INDIRECT(CONCATENATE($B153,"!M20"))) ->  | H153: =IF(ISERROR(INDIRECT(CONCATENATE($B153,"!M21"))),"",INDIRECT(CONCATENATE($B153,"!M21"))) ->  | J153: =IF(ISERROR(INDIRECT(CONCATENATE($B153,"!N18"))),"",INDIRECT(CONCATENATE($B153,"!N18"))) ->  | K153: =IF(ISERROR(INDIRECT(CONCATENATE($B153,"!N19"))),"",INDIRECT(CONCATENATE($B153,"!N19"))) ->  | L153: =IF(ISERROR(INDIRECT(CONCATENATE($B153,"!N20"))),"",INDIRECT(CONCATENATE($B153,"!N20"))) ->  | M153: =IF(ISERROR(INDIRECT(CONCATENATE($B153,"!N21"))),"",INDIRECT(CONCATENATE($B153,"!N21"))) ->  | O153: =IF(ISERROR(INDIRECT(CONCATENATE($B153,"!O18"))),"",INDIRECT(CONCATENATE($B153,"!O18"))) ->  | P153: =IF(ISERROR(INDIRECT(CONCATENATE($B153,"!O19"))),"",INDIRECT(CONCATENATE($B153,"!O19"))) ->  | Q153: =IF(ISERROR(INDIRECT(CONCATENATE($B153,"!O20"))),"",INDIRECT(CONCATENATE($B153,"!O20"))) ->  | R153: =IF(ISERROR(INDIRECT(CONCATENATE($B153,"!O21"))),"",INDIRECT(CONCATENATE($B153,"!O21"))) ->  | T153: =IF(ISERROR(INDIRECT(CONCATENATE($B153,"!P18"))),"",INDIRECT(CONCATENATE($B153,"!P18"))) ->  | U153: =IF(ISERROR(INDIRECT(CONCATENATE($B153,"!P19"))),"",INDIRECT(CONCATENATE($B153,"!P19"))) ->  | V153: =IF(ISERROR(INDIRECT(CONCATENATE($B153,"!P20"))),"",INDIRECT(CONCATENATE($B153,"!P20"))) ->  | W153: =IF(ISERROR(INDIRECT(CONCATENATE($B153,"!P21"))),"",INDIRECT(CONCATENATE($B153,"!P21"))) ->  | Y153: =IF(ISERROR(INDIRECT(CONCATENATE($B153,"!Q18"))),"",INDIRECT(CONCATENATE($B153,"!Q18"))) ->  | Z153: =IF(ISERROR(INDIRECT(CONCATENATE($B153,"!Q19"))),"",INDIRECT(CONCATENATE($B153,"!Q19"))) ->  | AA153: =IF(ISERROR(INDIRECT(CONCATENATE($B153,"!Q20"))),"",INDIRECT(CONCATENATE($B153,"!Q20"))) ->  | AB153: =IF(ISERROR(INDIRECT(CONCATENATE($B153,"!Q21"))),"",INDIRECT(CONCATENATE($B153,"!Q1"))) -> 
A197: URBAN | D197: Poorest | I197: Poor | N197: Middle | S197: Rich | X197: Richest
D198: Improved | E198: Basic | F198: Limited | G198: Unimproved | H198: Surface water | I198: Improved | J198: Basic | K198: Limited | L198: Unimproved | M198: Surface water | N198: Improved | O198: Basic | P198: Limited | Q198: Unimproved | R198: Surface water | S198: Improved | T198: Basic | U198: Limited | V198: Unimproved | W198: Surface water | X198: Improved | Y198: Basic | Z198: Limited | AA198: Unimproved | AB198: Surface water
A199: Forecast period: | C199: =MinBase(C205:C216) -> 2010 | D199: =IF((D201+H201)>100,D201*100/(D201+H201),D201) -> 97.6732341 | E199: =D199*AVERAGEIF(E205:E216,">0")/100 -> 96.79968963 | F199: =D199*(100-AVERAGEIF(E205:E216,">0"))/100 -> 0.8735444632 | G199: =100-(E199+F199+H199) -> 2.326765904 | H199: =IF((D201+H201)>100,H201*100/(D201+H201),H201) -> 0 | I199: =IF((I201+M201)>100,I201*100/(I201+M201),I201) -> 99.67808767 | J199: =I199*AVERAGEIF(J205:J216,">0")/100 -> 99.44887341 | K199: =I199*(100-AVERAGEIF(J205:J216,">0"))/100 -> 0.2292142591 | L199: =100-(J199+K199+M199) -> 0.3002371414 | M199: =IF((I201+M201)>100,M201*100/(I201+M201),M201) -> 0.02167518813 | N199: =IF((N201+R201)>100,N201*100/(N201+R201),N201) -> 99.90147653 | O199: =N199*AVERAGEIF(O205:O216,">0")/100 -> 99.67043981 | P199: =N199*(100-AVERAGEIF(O205:O216,">0"))/100 -> 0.231036721 | Q199: =100-(O199+P199+R199) -> 0.09852347104 | R199: =IF((N201+R201)>100,R201*100/(N201+R201),R201) -> 0 | S199: =IF((S201+W201)>100,S201*100/(S201+W201),S201) -> 99.96230014 | T199: =S199*AVERAGEIF(T205:T216,">0")/100 -> 99.94179862 | U199: =S199*(100-AVERAGEIF(T205:T216,">0"))/100 -> 0.02050151593 | V199: =100-(T199+U199+W199) -> 0.0376998593 | W199: =IF((S201+W201)>100,W201*100/(S201+W201),W201) -> 0 | X199: =IF((X201+AB201)>100,X201*100/(X201+AB201),X201) -> 99.90741289 | Y199: =X199*AVERAGEIF(Y205:Y216,">0")/100 -> 99.6277102 | Z199: =X199*(100-AVERAGEIF(Y205:Y216,">0"))/100 -> 0.2797026871 | AA199: =100-(Y199+Z199+AB199) -> 0.09258710808 | AB199: =IF((X201+AB201)>100,AB201*100/(X201+AB201),AB201) -> 0
C200: =MaxTarget(C205:C216) -> 2018 | D200: =IF((D202+H202)>100,D202*100/(D202+H202),D202) -> 97.6732341 | E200: =D200*AVERAGEIF(E205:E216,">0")/100 -> 96.79968963 | F200: =D200*(100-AVERAGEIF(E205:E216,">0"))/100 -> 0.8735444632 | G200: =100-(E200+F200+H200) -> 2.326765904 | H200: =IF((D202+H202)>100,H202*100/(D202+H202),H202) -> 0 | I200: =IF((I202+M202)>100,I202*100/(I202+M202),I202) -> 99.67808767 | J200: =I200*AVERAGEIF(J205:J216,">0")/100 -> 99.44887341 | K200: =I200*(100-AVERAGEIF(J205:J216,">0"))/100 -> 0.2292142591 | L200: =100-(J200+K200+M200) -> 0.3002371414 | M200: =IF((I202+M202)>100,M202*100/(I202+M202),M202) -> 0.02167518813 | N200: =IF((N202+R202)>100,N202*100/(N202+R202),N202) -> 99.90147653 | O200: =N200*AVERAGEIF(O205:O216,">0")/100 -> 99.67043981 | P200: =N200*(100-AVERAGEIF(O205:O216,">0"))/100 -> 0.231036721 | Q200: =100-(O200+P200+R200) -> 0.09852347104 | R200: =IF((N202+R202)>100,R202*100/(N202+R202),R202) -> 0 | S200: =IF((S202+W202)>100,S202*100/(S202+W202),S202) -> 99.96230014 | T200: =S200*AVERAGEIF(T205:T216,">0")/100 -> 99.94179862 | U200: =S200*(100-AVERAGEIF(T205:T216,">0"))/100 -> 0.02050151593 | V200: =100-(T200+U200+W200) -> 0.0376998593 | W200: =IF((S202+W202)>100,W202*100/(S202+W202),W202) -> 0 | X200: =IF((X202+AB202)>100,X202*100/(X202+AB202),X202) -> 99.90741289 | Y200: =X200*AVERAGEIF(Y205:Y216,">0")/100 -> 99.6277102 | Z200: =X200*(100-AVERAGEIF(Y205:Y216,">0"))/100 -> 0.2797026871 | AA200: =100-(Y200+Z200+AB200) -> 0.09258710808 | AB200: =IF((X202+AB202)>100,AB202*100/(X202+AB202),AB202) -> 0
A201: Regression period: | C201: =MinRegYear(C199,C205:C216) -> 2012 | D201: =IF(MAX(C205:C216)-MIN(C205:C216)<5,AVERAGEIF(C205:C216,">0",D205:D216), IF(FORECAST($C201,D$205:D$216,$C$205:$C$216)<0,0, IF(FORECAST($C201,D$205:D$216,$C$205:$C$216)>100,100, FORECAST($C201,D$205:D$216,$C$205:$C$216)))) -> 97.6732341 | H201: =IF(MAX(C205:C216)-MIN(C205:C216)<5,AVERAGEIF(C205:C216,">0",H205:H216), IF(FORECAST($C201,H$205:H$216,$C$205:$C$216)<0,0, IF(FORECAST($C201,H$205:H$216,$C$205:$C$216)>100,100, FORECAST($C201,H$205:H$216,$C$205:$C$216)))) -> 0 | I201: =IF(MAX(C205:C216)-MIN(C205:C216)<5,AVERAGEIF(C205:C216,">0",I205:I216), IF(FORECAST($C201,I$205:I$216,$C$205:$C$216)<0,0, IF(FORECAST($C201,I$205:I$216,$C$205:$C$216)>100,100, FORECAST($C201,I$205:I$216,$C$205:$C$216)))) -> 99.67808767 | M201: =IF(MAX(C205:C216)-MIN(C205:C216)<5,AVERAGEIF(C205:C216,">0",M205:M216), IF(FORECAST($C201,M$205:M$216,$C$205:$C$216)<0,0, IF(FORECAST($C201,M$205:M$216,$C$205:$C$216)>100,100, FORECAST($C201,M$205:M$216,$C$205:$C$216)))) -> 0.02167518813 | N201: =IF(MAX(C205:C216)-MIN(C205:C216)<5,AVERAGEIF(C205:C216,">0",N205:N216), IF(FORECAST($C201,N$205:N$216,$C$205:$C$216)<0,0, IF(FORECAST($C201,N$205:N$216,$C$205:$C$216)>100,100, FORECAST($C201,N$205:N$216,$C$205:$C$216)))) -> 99.90147653 | R201: =IF(MAX(C205:C216)-MIN(C205:C216)<5,AVERAGEIF(C205:C216,">0",R205:R216), IF(FORECAST($C201,R$205:R$216,$C$205:$C$216)<0,0, IF(FORECAST($C201,R$205:R$216,$C$205:$C$216)>100,100, FORECAST($C201,R$205:R$216,$C$205:$C$216)))) -> 0 | S201: =IF(MAX(C205:C216)-MIN(C205:C216)<5,AVERAGEIF(C205:C216,">0",S205:S216), IF(FORECAST($C201,S$205:S$216,$C$205:$C$216)<0,0, IF(FORECAST($C201,S$205:S$216,$C$205:$C$216)>100,100, FORECAST($C201,S$205:S$216,$C$205:$C$216)))) -> 99.96230014 | W201: =IF(MAX(C205:C216)-MIN(C205:C216)<5,AVERAGEIF(C205:C216,">0",W205:W216), IF(FORECAST($C201,W$205:W$216,$C$205:$C$216)<0,0, IF(FORECAST($C201,W$205:W$216,$C$205:$C$216)>100,100, FORECAST($C201,W$205:W$216,$C$205:$C$216)))) -> 0 | X201: =IF(MAX(C205:C216)-MIN(C205:C216)<5,AVERAGEIF(C205:C216,">0",X205:X216), IF(FORECAST($C201,X$205:X$216,$C$205:$C$216)<0,0, IF(FORECAST($C201,X$205:X$216,$C$205:$C$216)>100,100, FORECAST($C201,X$205:X$216,$C$205:$C$216)))) -> 99.90741289 | AB201: =IF(MAX(C205:C216)-MIN(C205:C216)<5,AVERAGEIF(C205:C216,">0",AB205:AB216), IF(FORECAST($C201,AB$205:AB$216,$C$205:$C$216)<0,0, IF(FORECAST($C201,AB$205:AB$216,$C$205:$C$216)>100,100, FORECAST($C201,AB$205:AB$216,$C$205:$C$216)))) -> 0
C202: =MaxRegYear(C200,C205:C216) -> 2016 | D202: =IF(MAX(C205:C216)-MIN(C205:C216)<5,AVERAGEIF(C205:C216,">0",D205:D216), IF(FORECAST($C202,D$205:D$216,$C$205:$C$216)<0,0, IF(FORECAST($C202,D$205:D$216,$C$205:$C$216)>100,100, FORECAST($C202,D$205:D$216,$C$205:$C$216)))) -> 97.6732341 | H202: =IF(MAX(C205:C216)-MIN(C205:C216)<5,AVERAGEIF(C205:C216,">0",H205:H216), IF(FORECAST($C202,H$205:H$216,$C$205:$C$216)<0,0, IF(FORECAST($C202,H$205:H$216,$C$205:$C$216)>100,100, FORECAST($C202,H$205:H$216,$C$205:$C$216)))) -> 0 | I202: =IF(MAX(C205:C216)-MIN(C205:C216)<5,AVERAGEIF(C205:C216,">0",I205:I216), IF(FORECAST($C202,I$205:I$216,$C$205:$C$216)<0,0, IF(FORECAST($C202,I$205:I$216,$C$205:$C$216)>100,100, FORECAST($C202,I$205:I$216,$C$205:$C$216)))) -> 99.67808767 | M202: =IF(MAX(C205:C216)-MIN(C205:C216)<5,AVERAGEIF(C205:C216,">0",M205:M216), IF(FORECAST($C202,M$205:M$216,$C$205:$C$216)<0,0, IF(FORECAST($C202,M$205:M$216,$C$205:$C$216)>100,100, FORECAST($C202,M$205:M$216,$C$205:$C$216)))) -> 0.02167518813 | N202: =IF(MAX(C205:C216)-MIN(C205:C216)<5,AVERAGEIF(C205:C216,">0",N205:N216), IF(FORECAST($C202,N$205:N$216,$C$205:$C$216)<0,0, IF(FORECAST($C202,N$205:N$216,$C$205:$C$216)>100,100, FORECAST($C202,N$205:N$216,$C$205:$C$216)))) -> 99.90147653 | R202: =IF(MAX(C205:C216)-MIN(C205:C216)<5,AVERAGEIF(C205:C216,">0",R205:R216), IF(FORECAST($C202,R$205:R$216,$C$205:$C$216)<0,0, IF(FORECAST($C202,R$205:R$216,$C$205:$C$216)>100,100, FORECAST($C202,R$205:R$216,$C$205:$C$216)))) -> 0 | S202: =IF(MAX(C205:C216)-MIN(C205:C216)<5,AVERAGEIF(C205:C216,">0",S205:S216), IF(FORECAST($C202,S$205:S$216,$C$205:$C$216)<0,0, IF(FORECAST($C202,S$205:S$216,$C$205:$C$216)>100,100, FORECAST($C202,S$205:S$216,$C$205:$C$216)))) -> 99.96230014 | W202: =IF(MAX(C205:C216)-MIN(C205:C216)<5,AVERAGEIF(C205:C216,">0",W205:W216), IF(FORECAST($C202,W$205:W$216,$C$205:$C$216)<0,0, IF(FORECAST($C202,W$205:W$216,$C$205:$C$216)>100,100, FORECAST($C202,W$205:W$216,$C$205:$C$216)))) -> 0 | X202: =IF(MAX(C205:C216)-MIN(C205:C216)<5,AVERAGEIF(C205:C216,">0",X205:X216), IF(FORECAST($C202,X$205:X$216,$C$205:$C$216)<0,0, IF(FORECAST($C202,X$205:X$216,$C$205:$C$216)>100,100, FORECAST($C202,X$205:X$216,$C$205:$C$216)))) -> 99.90741289 | AB202: =IF(MAX(C205:C216)-MIN(C205:C216)<5,AVERAGEIF(C205:C216,">0",AB205:AB216), IF(FORECAST($C202,AB$205:AB$216,$C$205:$C$216)<0,0, IF(FORECAST($C202,AB$205:AB$216,$C$205:$C$216)>100,100, FORECAST($C202,AB$205:AB$216,$C$205:$C$216)))) -> 0
B204: Survey | C204: Year | D204: Improved | E204: % Improved < = 30min | H204: Surface water | I204: Improved | J204: % Improved < = 30min | M204: Surface water | N204: Improved | O204: % Improved < = 30min | R204: Surface water | S204: Improved | T204: % Improved < = 30min | W204: Surface water | X204: Improved | Y204: % Improved < = 30min | AB204: Surface water
B205: MICS14 | C205: 2014 | D205: =IF(ISERROR(INDIRECT(CONCATENATE($B205,"!H16"))),"",INDIRECT(CONCATENATE($B205,"!H16"))) -> 97.6732341 | E205: =IF(ISERROR(INDIRECT(CONCATENATE($B205,"!H23"))),"",INDIRECT(CONCATENATE($B205,"!H23"))) -> 99.10564601 | H205: =IF(ISERROR(INDIRECT(CONCATENATE($B205,"!H21"))),"",INDIRECT(CONCATENATE($B205,"!H21"))) -> 0 | I205: =IF(ISERROR(INDIRECT(CONCATENATE($B205,"!I16"))),"",INDIRECT(CONCATENATE($B205,"!I16"))) -> 99.67808767 | J205: =IF(ISERROR(INDIRECT(CONCATENATE($B205,"!I23"))),"",INDIRECT(CONCATENATE($B205,"!I23"))) -> 99.77004549 | M205: =IF(ISERROR(INDIRECT(CONCATENATE($B205,"!I21"))),"",INDIRECT(CONCATENATE($B205,"!I21"))) -> 0.02167518813 | N205: =IF(ISERROR(INDIRECT(CONCATENATE($B205,"!J16"))),"",INDIRECT(CONCATENATE($B205,"!J16"))) -> 99.90147653 | O205: =IF(ISERROR(INDIRECT(CONCATENATE($B205,"!J23"))),"",INDIRECT(CONCATENATE($B205,"!J23"))) -> 99.76873543 | R205: =IF(ISERROR(INDIRECT(CONCATENATE($B205,"!J21"))),"",INDIRECT(CONCATENATE($B205,"!J21"))) -> 0 | S205: =IF(ISERROR(INDIRECT(CONCATENATE($B205,"!K16"))),"",INDIRECT(CONCATENATE($B205,"!K16"))) -> 99.96230014 | T205: =IF(ISERROR(INDIRECT(CONCATENATE($B205,"!K23"))),"",INDIRECT(CONCATENATE($B205,"!K23"))) -> 99.97949075 | W205: =IF(ISERROR(INDIRECT(CONCATENATE($B205,"!K21"))),"",INDIRECT(CONCATENATE($B205,"!K21"))) -> 0 | X205: =IF(ISERROR(INDIRECT(CONCATENATE($B205,"!L16"))),"",INDIRECT(CONCATENATE($B205,"!L16"))) -> 99.90741289 | Y205: =IF(ISERROR(INDIRECT(CONCATENATE($B205,"!L23"))),"",INDIRECT(CONCATENATE($B205,"!L23"))) -> 99.7200381 | AB205: =IF(ISERROR(INDIRECT(CONCATENATE($B205,"!L221"))),"",INDIRECT(CONCATENATE($B205,"!L21"))) -> 0
B218: =CONCATENATE("Urban use of drinking water sources, ",C199,"–",C200) -> Urban use of drinking water sources, 2010–2018 | S218: Data points used for regression
E253: =IF(ISERROR(INDIRECT(CONCATENATE($B253,"!M18"))),"",INDIRECT(CONCATENATE($B253,"!M18"))) ->  | F253: =IF(ISERROR(INDIRECT(CONCATENATE($B253,"!M19"))),"",INDIRECT(CONCATENATE($B253,"!M19"))) ->  | G253: =IF(ISERROR(INDIRECT(CONCATENATE($B253,"!M20"))),"",INDIRECT(CONCATENATE($B253,"!M20"))) ->  | H253: =IF(ISERROR(INDIRECT(CONCATENATE($B253,"!M21"))),"",INDIRECT(CONCATENATE($B253,"!M21"))) ->  | J253: =IF(ISERROR(INDIRECT(CONCATENATE($B253,"!N18"))),"",INDIRECT(CONCATENATE($B253,"!N18"))) ->  | K253: =IF(ISERROR(INDIRECT(CONCATENATE($B253,"!N19"))),"",INDIRECT(CONCATENATE($B253,"!N19"))) ->  | L253: =IF(ISERROR(INDIRECT(CONCATENATE($B253,"!N20"))),"",INDIRECT(CONCATENATE($B253,"!N20"))) ->  | M253: =IF(ISERROR(INDIRECT(CONCATENATE($B253,"!N21"))),"",INDIRECT(CONCATENATE($B253,"!N21"))) ->  | O253: =IF(ISERROR(INDIRECT(CONCATENATE($B253,"!O18"))),"",INDIRECT(CONCATENATE($B253,"!O18"))) ->  | P253: =IF(ISERROR(INDIRECT(CONCATENATE($B253,"!O19"))),"",INDIRECT(CONCATENATE($B253,"!O19"))) ->  | Q253: =IF(ISERROR(INDIRECT(CONCATENATE($B253,"!O20"))),"",INDIRECT(CONCATENATE($B253,"!O20"))) ->  | R253: =IF(ISERROR(INDIRECT(CONCATENATE($B253,"!O21"))),"",INDIRECT(CONCATENATE($B253,"!O21"))) ->  | T253: =IF(ISERROR(INDIRECT(CONCATENATE($B253,"!P18"))),"",INDIRECT(CONCATENATE($B253,"!P18"))) ->  | U253: =IF(ISERROR(INDIRECT(CONCATENATE($B253,"!P19"))),"",INDIRECT(CONCATENATE($B253,"!P19"))) ->  | V253: =IF(ISERROR(INDIRECT(CONCATENATE($B253,"!P20"))),"",INDIRECT(CONCATENATE($B253,"!P20"))) ->  | W253: =IF(ISERROR(INDIRECT(CONCATENATE($B253,"!P21"))),"",INDIRECT(CONCATENATE($B253,"!P21"))) ->  | Y253: =IF(ISERROR(INDIRECT(CONCATENATE($B253,"!Q18"))),"",INDIRECT(CONCATENATE($B253,"!Q18"))) ->  | Z253: =IF(ISERROR(INDIRECT(CONCATENATE($B253,"!Q19"))),"",INDIRECT(CONCATENATE($B253,"!Q19"))) ->  | AA253: =IF(ISERROR(INDIRECT(CONCATENATE($B253,"!Q20"))),"",INDIRECT(CONCATENATE($B253,"!Q20"))) ->  | AB253: =IF(ISERROR(INDIRECT(CONCATENATE($B253,"!Q21"))),"",INDIRECT(CONCATENATE($B253,"!Q1"))) -> 
E254: =IF(ISERROR(INDIRECT(CONCATENATE($B254,"!M18"))),"",INDIRECT(CONCATENATE($B254,"!M18"))) ->  | F254: =IF(ISERROR(INDIRECT(CONCATENATE($B254,"!M19"))),"",INDIRECT(CONCATENATE($B254,"!M19"))) ->  | G254: =IF(ISERROR(INDIRECT(CONCATENATE($B254,"!M20"))),"",INDIRECT(CONCATENATE($B254,"!M20"))) ->  | H254: =IF(ISERROR(INDIRECT(CONCATENATE($B254,"!M21"))),"",INDIRECT(CONCATENATE($B254,"!M21"))) ->  | J254: =IF(ISERROR(INDIRECT(CONCATENATE($B254,"!N18"))),"",INDIRECT(CONCATENATE($B254,"!N18"))) ->  | K254: =IF(ISERROR(INDIRECT(CONCATENATE($B254,"!N19"))),"",INDIRECT(CONCATENATE($B254,"!N19"))) ->  | L254: =IF(ISERROR(INDIRECT(CONCATENATE($B254,"!N20"))),"",INDIRECT(CONCATENATE($B254,"!N20"))) ->  | M254: =IF(ISERROR(INDIRECT(CONCATENATE($B254,"!N21"))),"",INDIRECT(CONCATENATE($B254,"!N21"))) ->  | O254: =IF(ISERROR(INDIRECT(CONCATENATE($B254,"!O18"))),"",INDIRECT(CONCATENATE($B254,"!O18"))) ->  | P254: =IF(ISERROR(INDIRECT(CONCATENATE($B254,"!O19"))),"",INDIRECT(CONCATENATE($B254,"!O19"))) ->  | Q254: =IF(ISERROR(INDIRECT(CONCATENATE($B254,"!O20"))),"",INDIRECT(CONCATENATE($B254,"!O20"))) ->  | R254: =IF(ISERROR(INDIRECT(CONCATENATE($B254,"!O21"))),"",INDIRECT(CONCATENATE($B254,"!O21"))) ->  | T254: =IF(ISERROR(INDIRECT(CONCATENATE($B254,"!P18"))),"",INDIRECT(CONCATENATE($B254,"!P18"))) ->  | U254: =IF(ISERROR(INDIRECT(CONCATENATE($B254,"!P19"))),"",INDIRECT(CONCATENATE($B254,"!P19"))) ->  | V254: =IF(ISERROR(INDIRECT(CONCATENATE($B254,"!P20"))),"",INDIRECT(CONCATENATE($B254,"!P20"))) ->  | W254: =IF(ISERROR(INDIRECT(CONCATENATE($B254,"!P21"))),"",INDIRECT(CONCATENATE($B254,"!P21"))) ->  | Y254: =IF(ISERROR(INDIRECT(CONCATENATE($B254,"!Q18"))),"",INDIRECT(CONCATENATE($B254,"!Q18"))) ->  | Z254: =IF(ISERROR(INDIRECT(CONCATENATE($B254,"!Q19"))),"",INDIRECT(CONCATENATE($B254,"!Q19"))) ->  | AA254: =IF(ISERROR(INDIRECT(CONCATENATE($B254,"!Q20"))),"",INDIRECT(CONCATENATE($B254,"!Q20"))) ->  | AB254: =IF(ISERROR(INDIRECT(CONCATENATE($B254,"!Q21"))),"",INDIRECT(CONCATENATE($B254,"!Q1"))) -> 
E255: =IF(ISERROR(INDIRECT(CONCATENATE($B255,"!M18"))),"",INDIRECT(CONCATENATE($B255,"!M18"))) ->  | F255: =IF(ISERROR(INDIRECT(CONCATENATE($B255,"!M19"))),"",INDIRECT(CONCATENATE($B255,"!M19"))) ->  | G255: =IF(ISERROR(INDIRECT(CONCATENATE($B255,"!M20"))),"",INDIRECT(CONCATENATE($B255,"!M20"))) ->  | H255: =IF(ISERROR(INDIRECT(CONCATENATE($B255,"!M21"))),"",INDIRECT(CONCATENATE($B255,"!M21"))) ->  | J255: =IF(ISERROR(INDIRECT(CONCATENATE($B255,"!N18"))),"",INDIRECT(CONCATENATE($B255,"!N18"))) ->  | K255: =IF(ISERROR(INDIRECT(CONCATENATE($B255,"!N19"))),"",INDIRECT(CONCATENATE($B255,"!N19"))) ->  | L255: =IF(ISERROR(INDIRECT(CONCATENATE($B255,"!N20"))),"",INDIRECT(CONCATENATE($B255,"!N20"))) ->  | M255: =IF(ISERROR(INDIRECT(CONCATENATE($B255,"!N21"))),"",INDIRECT(CONCATENATE($B255,"!N21"))) ->  | O255: =IF(ISERROR(INDIRECT(CONCATENATE($B255,"!O18"))),"",INDIRECT(CONCATENATE($B255,"!O18"))) ->  | P255: =IF(ISERROR(INDIRECT(CONCATENATE($B255,"!O19"))),"",INDIRECT(CONCATENATE($B255,"!O19"))) ->  | Q255: =IF(ISERROR(INDIRECT(CONCATENATE($B255,"!O20"))),"",INDIRECT(CONCATENATE($B255,"!O20"))) ->  | R255: =IF(ISERROR(INDIRECT(CONCATENATE($B255,"!O21"))),"",INDIRECT(CONCATENATE($B255,"!O21"))) ->  | T255: =IF(ISERROR(INDIRECT(CONCATENATE($B255,"!P18"))),"",INDIRECT(CONCATENATE($B255,"!P18"))) ->  | U255: =IF(ISERROR(INDIRECT(CONCATENATE($B255,"!P19"))),"",INDIRECT(CONCATENATE($B255,"!P19"))) ->  | V255: =IF(ISERROR(INDIRECT(CONCATENATE($B255,"!P20"))),"",INDIRECT(CONCATENATE($B255,"!P20"))) ->  | W255: =IF(ISERROR(INDIRECT(CONCATENATE($B255,"!P21"))),"",INDIRECT(CONCATENATE($B255,"!P21"))) ->  | Y255: =IF(ISERROR(INDIRECT(CONCATENATE($B255,"!Q18"))),"",INDIRECT(CONCATENATE($B255,"!Q18"))) ->  | Z255: =IF(ISERROR(INDIRECT(CONCATENATE($B255,"!Q19"))),"",INDIRECT(CONCATENATE($B255,"!Q19"))) ->  | AA255: =IF(ISERROR(INDIRECT(CONCATENATE($B255,"!Q20"))),"",INDIRECT(CONCATENATE($B255,"!Q20"))) ->  | AB255: =IF(ISERROR(INDIRECT(CONCATENATE($B255,"!Q21"))),"",INDIRECT(CONCATENATE($B255,"!Q1"))) -> 
E256: =IF(ISERROR(INDIRECT(CONCATENATE($B256,"!M18"))),"",INDIRECT(CONCATENATE($B256,"!M18"))) ->  | F256: =IF(ISERROR(INDIRECT(CONCATENATE($B256,"!M19"))),"",INDIRECT(CONCATENATE($B256,"!M19"))) ->  | G256: =IF(ISERROR(INDIRECT(CONCATENATE($B256,"!M20"))),"",INDIRECT(CONCATENATE($B256,"!M20"))) ->  | H256: =IF(ISERROR(INDIRECT(CONCATENATE($B256,"!M21"))),"",INDIRECT(CONCATENATE($B256,"!M21"))) ->  | J256: =IF(ISERROR(INDIRECT(CONCATENATE($B256,"!N18"))),"",INDIRECT(CONCATENATE($B256,"!N18"))) ->  | K256: =IF(ISERROR(INDIRECT(CONCATENATE($B256,"!N19"))),"",INDIRECT(CONCATENATE($B256,"!N19"))) ->  | L256: =IF(ISERROR(INDIRECT(CONCATENATE($B256,"!N20"))),"",INDIRECT(CONCATENATE($B256,"!N20"))) ->  | M256: =IF(ISERROR(INDIRECT(CONCATENATE($B256,"!N21"))),"",INDIRECT(CONCATENATE($B256,"!N21"))) ->  | O256: =IF(ISERROR(INDIRECT(CONCATENATE($B256,"!O18"))),"",INDIRECT(CONCATENATE($B256,"!O18"))) ->  | P256: =IF(ISERROR(INDIRECT(CONCATENATE($B256,"!O19"))),"",INDIRECT(CONCATENATE($B256,"!O19"))) ->  | Q256: =IF(ISERROR(INDIRECT(CONCATENATE($B256,"!O20"))),"",INDIRECT(CONCATENATE($B256,"!O20"))) ->  | R256: =IF(ISERROR(INDIRECT(CONCATENATE($B256,"!O21"))),"",INDIRECT(CONCATENATE($B256,"!O21"))) ->  | T256: =IF(ISERROR(INDIRECT(CONCATENATE($B256,"!P18"))),"",INDIRECT(CONCATENATE($B256,"!P18"))) ->  | U256: =IF(ISERROR(INDIRECT(CONCATENATE($B256,"!P19"))),"",INDIRECT(CONCATENATE($B256,"!P19"))) ->  | V256: =IF(ISERROR(INDIRECT(CONCATENATE($B256,"!P20"))),"",INDIRECT(CONCATENATE($B256,"!P20"))) ->  | W256: =IF(ISERROR(INDIRECT(CONCATENATE($B256,"!P21"))),"",INDIRECT(CONCATENATE($B256,"!P21"))) ->  | Y256: =IF(ISERROR(INDIRECT(CONCATENATE($B256,"!Q18"))),"",INDIRECT(CONCATENATE($B256,"!Q18"))) ->  | Z256: =IF(ISERROR(INDIRECT(CONCATENATE($B256,"!Q19"))),"",INDIRECT(CONCATENATE($B256,"!Q19"))) ->  | AA256: =IF(ISERROR(INDIRECT(CONCATENATE($B256,"!Q20"))),"",INDIRECT(CONCATENATE($B256,"!Q20"))) ->  | AB256: =IF(ISERROR(INDIRECT(CONCATENATE($B256,"!Q21"))),"",INDIRECT(CONCATENATE($B256,"!Q1"))) -> 
E257: =IF(ISERROR(INDIRECT(CONCATENATE($B257,"!M18"))),"",INDIRECT(CONCATENATE($B257,"!M18"))) ->  | F257: =IF(ISERROR(INDIRECT(CONCATENATE($B257,"!M19"))),"",INDIRECT(CONCATENATE($B257,"!M19"))) ->  | G257: =IF(ISERROR(INDIRECT(CONCATENATE($B257,"!M20"))),"",INDIRECT(CONCATENATE($B257,"!M20"))) ->  | H257: =IF(ISERROR(INDIRECT(CONCATENATE($B257,"!M21"))),"",INDIRECT(CONCATENATE($B257,"!M21"))) ->  | J257: =IF(ISERROR(INDIRECT(CONCATENATE($B257,"!N18"))),"",INDIRECT(CONCATENATE($B257,"!N18"))) ->  | K257: =IF(ISERROR(INDIRECT(CONCATENATE($B257,"!N19"))),"",INDIRECT(CONCATENATE($B257,"!N19"))) ->  | L257: =IF(ISERROR(INDIRECT(CONCATENATE($B257,"!N20"))),"",INDIRECT(CONCATENATE($B257,"!N20"))) ->  | M257: =IF(ISERROR(INDIRECT(CONCATENATE($B257,"!N21"))),"",INDIRECT(CONCATENATE($B257,"!N21"))) ->  | O257: =IF(ISERROR(INDIRECT(CONCATENATE($B257,"!O18"))),"",INDIRECT(CONCATENATE($B257,"!O18"))) ->  | P257: =IF(ISERROR(INDIRECT(CONCATENATE($B257,"!O19"))),"",INDIRECT(CONCATENATE($B257,"!O19"))) ->  | Q257: =IF(ISERROR(INDIRECT(CONCATENATE($B257,"!O20"))),"",INDIRECT(CONCATENATE($B257,"!O20"))) ->  | R257: =IF(ISERROR(INDIRECT(CONCATENATE($B257,"!O21"))),"",INDIRECT(CONCATENATE($B257,"!O21"))) ->  | T257: =IF(ISERROR(INDIRECT(CONCATENATE($B257,"!P18"))),"",INDIRECT(CONCATENATE($B257,"!P18"))) ->  | U257: =IF(ISERROR(INDIRECT(CONCATENATE($B257,"!P19"))),"",INDIRECT(CONCATENATE($B257,"!P19"))) ->  | V257: =IF(ISERROR(INDIRECT(CONCATENATE($B257,"!P20"))),"",INDIRECT(CONCATENATE($B257,"!P20"))) ->  | W257: =IF(ISERROR(INDIRECT(CONCATENATE($B257,"!P21"))),"",INDIRECT(CONCATENATE($B257,"!P21"))) ->  | Y257: =IF(ISERROR(INDIRECT(CONCATENATE($B257,"!Q18"))),"",INDIRECT(CONCATENATE($B257,"!Q18"))) ->  | Z257: =IF(ISERROR(INDIRECT(CONCATENATE($B257,"!Q19"))),"",INDIRECT(CONCATENATE($B257,"!Q19"))) ->  | AA257: =IF(ISERROR(INDIRECT(CONCATENATE($B257,"!Q20"))),"",INDIRECT(CONCATENATE($B257,"!Q20"))) ->  | AB257: =IF(ISERROR(INDIRECT(CONCATENATE($B257,"!Q21"))),"",INDIRECT(CONCATENATE($B257,"!Q1"))) -> 
A297: RURAL | D297: Poorest | I297: Poor | N297: Middle | S297: Rich | X297: Richest
D298: Improved | E298: Basic | F298: Limited | G298: Unimproved | H298: Surface water | I298: Improved | J298: Basic | K298: Limited | L298: Unimproved | M298: Surface water | N298: Improved | O298: Basic | P298: Limited | Q298: Unimproved | R298: Surface water | S298: Improved | T298: Basic | U298: Limited | V298: Unimproved | W298: Surface water | X298: Improved | Y298: Basic | Z298: Limited | AA298: Unimproved | AB298: Surface water
A299: Forecast period: | C299: 2010 | D299: =IF((D301+H301)>100,D301*100/(D301+H301),D301) -> 84.71759366 | E299: =D299*AVERAGEIF(E305:E316,">0")/100 -> 80.73094552 | F299: =D299*(100-AVERAGEIF(E305:E316,">0"))/100 -> 3.98664814 | G299: =100-(E299+F299+H299) -> 12.88560914 | H299: =IF((D301+H301)>100,H301*100/(D301+H301),H301) -> 2.396797193 | I299: =IF((I301+M301)>100,I301*100/(I301+M301),I301) -> 87.3597431 | J299: =I299*AVERAGEIF(J305:J316,">0")/100 -> 84.85404525 | K299: =I299*(100-AVERAGEIF(J305:J316,">0"))/100 -> 2.505697843 | L299: =100-(J299+K299+M299) -> 10.15446887 | M299: =IF((I301+M301)>100,M301*100/(I301+M301),M301) -> 2.48578803 | N299: =IF((N301+R301)>100,N301*100/(N301+R301),N301) -> 94.13796597 | O299: =N299*AVERAGEIF(O305:O316,">0")/100 -> 92.14301257 | P299: =N299*(100-AVERAGEIF(O305:O316,">0"))/100 -> 1.994953402 | Q299: =100-(O299+P299+R299) -> 4.862866502 | R299: =IF((N301+R301)>100,R301*100/(N301+R301),R301) -> 0.9991675286 | S299: =IF((S301+W301)>100,S301*100/(S301+W301),S301) -> 95.49158214 | T299: =S299*AVERAGEIF(T305:T316,">0")/100 -> 93.64066325 | U299: =S299*(100-AVERAGEIF(T305:T316,">0"))/100 -> 1.850918892 | V299: =100-(T299+U299+W299) -> 3.014893103 | W299: =IF((S301+W301)>100,W301*100/(S301+W301),W301) -> 1.493524757 | X299: =IF((X301+AB301)>100,X301*100/(X301+AB301),X301) -> 97.04681775 | Y299: =X299*AVERAGEIF(Y305:Y316,">0")/100 -> 95.9749277 | Z299: =X299*(100-AVERAGEIF(Y305:Y316,">0"))/100 -> 1.071890049 | AA299: =100-(Y299+Z299+AB299) -> 1.992272763 | AB299: =IF((X301+AB301)>100,AB301*100/(X301+AB301),AB301) -> 0.9609094837
C300: 2018 | D300: =IF((D302+H302)>100,D302*100/(D302+H302),D302) -> 84.71759366 | E300: =D300*AVERAGEIF(E305:E316,">0")/100 -> 80.73094552 | F300: =D300*(100-AVERAGEIF(E305:E316,">0"))/100 -> 3.98664814 | G300: =100-(E300+F300+H300) -> 12.88560914 | H300: =IF((D302+H302)>100,H302*100/(D302+H302),H302) -> 2.396797193 | I300: =IF((I302+M302)>100,I302*100/(I302+M302),I302) -> 87.3597431 | J300: =I300*AVERAGEIF(J305:J316,">0")/100 -> 84.85404525 | K300: =I300*(100-AVERAGEIF(J305:J316,">0"))/100 -> 2.505697843 | L300: =100-(J300+K300+M300) -> 10.15446887 | M300: =IF((I302+M302)>100,M302*100/(I302+M302),M302) -> 2.48578803 | N300: =IF((N302+R302)>100,N302*100/(N302+R302),N302) -> 94.13796597 | O300: =N300*AVERAGEIF(O305:O316,">0")/100 -> 92.14301257 | P300: =N300*(100-AVERAGEIF(O305:O316,">0"))/100 -> 1.994953402 | Q300: =100-(O300+P300+R300) -> 4.862866502 | R300: =IF((N302+R302)>100,R302*100/(N302+R302),R302) -> 0.9991675286 | S300: =IF((S302+W302)>100,S302*100/(S302+W302),S302) -> 95.49158214 | T300: =S300*AVERAGEIF(T305:T316,">0")/100 -> 93.64066325 | U300: =S300*(100-AVERAGEIF(T305:T316,">0"))/100 -> 1.850918892 | V300: =100-(T300+U300+W300) -> 3.014893103 | W300: =IF((S302+W302)>100,W302*100/(S302+W302),W302) -> 1.493524757 | X300: =IF((X302+AB302)>100,X302*100/(X302+AB302),X302) -> 97.04681775 | Y300: =X300*AVERAGEIF(Y305:Y316,">0")/100 -> 95.9749277 | Z300: =X300*(100-AVERAGEIF(Y305:Y316,">0"))/100 -> 1.071890049 | AA300: =100-(Y300+Z300+AB300) -> 1.992272763 | AB300: =IF((X302+AB302)>100,AB302*100/(X302+AB302),AB302) -> 0.9609094837
A301: Regression period: | C301: =MinRegYear(C299,C305:C316) -> 2012 | D301: =IF(MAX(C305:C316)-MIN(C305:C316)<5,AVERAGEIF(C305:C316,">0",D305:D316), IF(FORECAST($C301,D$305:D$316,$C$305:$C$316)<0,0, IF(FORECAST($C301,D$305:D$316,$C$305:$C$316)>100,100, FORECAST($C301,D$305:D$316,$C$305:$C$316)))) -> 84.71759366 | H301: =IF(MAX(C305:C316)-MIN(C305:C316)<5,AVERAGEIF(C305:C316,">0",H305:H316), IF(FORECAST($C301,H$305:H$316,$C$305:$C$316)<0,0, IF(FORECAST($C301,H$305:H$316,$C$305:$C$316)>100,100, FORECAST($C301,H$305:H$316,$C$305:$C$316)))) -> 2.396797193 | I301: =IF(MAX(C305:C316)-MIN(C305:C316)<5,AVERAGEIF(C305:C316,">0",I305:I316), IF(FORECAST($C301,I$305:I$316,$C$305:$C$316)<0,0, IF(FORECAST($C301,I$305:I$316,$C$305:$C$316)>100,100, FORECAST($C301,I$305:I$316,$C$305:$C$316)))) -> 87.3597431 | M301: =IF(MAX(C305:C316)-MIN(C305:C316)<5,AVERAGEIF(C305:C316,">0",M305:M316), IF(FORECAST($C301,M$305:M$316,$C$305:$C$316)<0,0, IF(FORECAST($C301,M$305:M$316,$C$305:$C$316)>100,100, FORECAST($C301,M$305:M$316,$C$305:$C$316)))) -> 2.48578803 | N301: =IF(MAX(C305:C316)-MIN(C305:C316)<5,AVERAGEIF(C305:C316,">0",N305:N316), IF(FORECAST($C301,N$305:N$316,$C$305:$C$316)<0,0, IF(FORECAST($C301,N$305:N$316,$C$305:$C$316)>100,100, FORECAST($C301,N$305:N$316,$C$305:$C$316)))) -> 94.13796597 | R301: =IF(MAX(C305:C316)-MIN(C305:C316)<5,AVERAGEIF(C305:C316,">0",R305:R316), IF(FORECAST($C301,R$305:R$316,$C$305:$C$316)<0,0, IF(FORECAST($C301,R$305:R$316,$C$305:$C$316)>100,100, FORECAST($C301,R$305:R$316,$C$305:$C$316)))) -> 0.9991675286 | S301: =IF(MAX(C305:C316)-MIN(C305:C316)<5,AVERAGEIF(C305:C316,">0",S305:S316), IF(FORECAST($C301,S$305:S$316,$C$305:$C$316)<0,0, IF(FORECAST($C301,S$305:S$316,$C$305:$C$316)>100,100, FORECAST($C301,S$305:S$316,$C$305:$C$316)))) -> 95.49158214 | W301: =IF(MAX(C305:C316)-MIN(C305:C316)<5,AVERAGEIF(C305:C316,">0",W305:W316), IF(FORECAST($C301,W$305:W$316,$C$305:$C$316)<0,0, IF(FORECAST($C301,W$305:W$316,$C$305:$C$316)>100,100, FORECAST($C301,W$305:W$316,$C$305:$C$316)))) -> 1.493524757 | X301: =IF(MAX(C305:C316)-MIN(C305:C316)<5,AVERAGEIF(C305:C316,">0",X305:X316), IF(FORECAST($C301,X$305:X$316,$C$305:$C$316)<0,0, IF(FORECAST($C301,X$305:X$316,$C$305:$C$316)>100,100, FORECAST($C301,X$305:X$316,$C$305:$C$316)))) -> 97.04681775 | AB301: =IF(MAX(C305:C316)-MIN(C305:C316)<5,AVERAGEIF(C305:C316,">0",AB305:AB316), IF(FORECAST($C301,AB$305:AB$316,$C$305:$C$316)<0,0, IF(FORECAST($C301,AB$305:AB$316,$C$305:$C$316)>100,100, FORECAST($C301,AB$305:AB$316,$C$305:$C$316)))) -> 0.9609094837
C302: =MaxRegYear(C300,C305:C316) -> 2016 | D302: =IF(MAX(C305:C316)-MIN(C305:C316)<5,AVERAGEIF(C305:C316,">0",D305:D316), IF(FORECAST($C302,D$305:D$316,$C$305:$C$316)<0,0, IF(FORECAST($C302,D$305:D$316,$C$305:$C$316)>100,100, FORECAST($C302,D$305:D$316,$C$305:$C$316)))) -> 84.71759366 | H302: =IF(MAX(C305:C316)-MIN(C305:C316)<5,AVERAGEIF(C305:C316,">0",H305:H316), IF(FORECAST($C302,H$305:H$316,$C$305:$C$316)<0,0, IF(FORECAST($C302,H$305:H$316,$C$305:$C$316)>100,100, FORECAST($C302,H$305:H$316,$C$305:$C$316)))) -> 2.396797193 | I302: =IF(MAX(C305:C316)-MIN(C305:C316)<5,AVERAGEIF(C305:C316,">0",I305:I316), IF(FORECAST($C302,I$305:I$316,$C$305:$C$316)<0,0, IF(FORECAST($C302,I$305:I$316,$C$305:$C$316)>100,100, FORECAST($C302,I$305:I$316,$C$305:$C$316)))) -> 87.3597431 | M302: =IF(MAX(C305:C316)-MIN(C305:C316)<5,AVERAGEIF(C305:C316,">0",M305:M316), IF(FORECAST($C302,M$305:M$316,$C$305:$C$316)<0,0, IF(FORECAST($C302,M$305:M$316,$C$305:$C$316)>100,100, FORECAST($C302,M$305:M$316,$C$305:$C$316)))) -> 2.48578803 | N302: =IF(MAX(C305:C316)-MIN(C305:C316)<5,AVERAGEIF(C305:C316,">0",N305:N316), IF(FORECAST($C302,N$305:N$316,$C$305:$C$316)<0,0, IF(FORECAST($C302,N$305:N$316,$C$305:$C$316)>100,100, FORECAST($C302,N$305:N$316,$C$305:$C$316)))) -> 94.13796597 | R302: =IF(MAX(C305:C316)-MIN(C305:C316)<5,AVERAGEIF(C305:C316,">0",R305:R316), IF(FORECAST($C302,R$305:R$316,$C$305:$C$316)<0,0, IF(FORECAST($C302,R$305:R$316,$C$305:$C$316)>100,100, FORECAST($C302,R$305:R$316,$C$305:$C$316)))) -> 0.9991675286 | S302: =IF(MAX(C305:C316)-MIN(C305:C316)<5,AVERAGEIF(C305:C316,">0",S305:S316), IF(FORECAST($C302,S$305:S$316,$C$305:$C$316)<0,0, IF(FORECAST($C302,S$305:S$316,$C$305:$C$316)>100,100, FORECAST($C302,S$305:S$316,$C$305:$C$316)))) -> 95.49158214 | W302: =IF(MAX(C305:C316)-MIN(C305:C316)<5,AVERAGEIF(C305:C316,">0",W305:W316), IF(FORECAST($C302,W$305:W$316,$C$305:$C$316)<0,0, IF(FORECAST($C302,W$305:W$316,$C$305:$C$316)>100,100, FORECAST($C302,W$305:W$316,$C$305:$C$316)))) -> 1.493524757 | X302: =IF(MAX(C305:C316)-MIN(C305:C316)<5,AVERAGEIF(C305:C316,">0",X305:X316), IF(FORECAST($C302,X$305:X$316,$C$305:$C$316)<0,0, IF(FORECAST($C302,X$305:X$316,$C$305:$C$316)>100,100, FORECAST($C302,X$305:X$316,$C$305:$C$316)))) -> 97.04681775 | AB302: =IF(MAX(C305:C316)-MIN(C305:C316)<5,AVERAGEIF(C305:C316,">0",AB305:AB316), IF(FORECAST($C302,AB$305:AB$316,$C$305:$C$316)<0,0, IF(FORECAST($C302,AB$305:AB$316,$C$305:$C$316)>100,100, FORECAST($C302,AB$305:AB$316,$C$305:$C$316)))) -> 0.9609094837
B304: Survey | C304: Year | D304: Improved | E304: % Improved < = 30min | H304: Surface water | I304: Improved | J304: % Improved < = 30min | M304: Surface water | N304: Improved | O304: % Improved < = 30min | R304: Surface water | S304: Improved | T304: % Improved < = 30min | W304: Surface water | X304: Improved | Y304: % Improved < = 30min | AB304: Surface water
B305: MICS14 | C305: 2014 | D305: =IF(ISERROR(INDIRECT(CONCATENATE($B305,"!M16"))),"",INDIRECT(CONCATENATE($B305,"!M16"))) -> 84.71759366 | E305: =IF(ISERROR(INDIRECT(CONCATENATE($B305,"!M23"))),"",INDIRECT(CONCATENATE($B305,"!M23"))) -> 95.29419101 | H305: =IF(ISERROR(INDIRECT(CONCATENATE($B305,"!M21"))),"",INDIRECT(CONCATENATE($B305,"!M21"))) -> 2.396797193 | I305: =IF(ISERROR(INDIRECT(CONCATENATE($B305,"!N16"))),"",INDIRECT(CONCATENATE($B305,"!N16"))) -> 87.3597431 | J305: =IF(ISERROR(INDIRECT(CONCATENATE($B305,"!N23"))),"",INDIRECT(CONCATENATE($B305,"!N23"))) -> 97.1317477 | M305: =IF(ISERROR(INDIRECT(CONCATENATE($B305,"!N21"))),"",INDIRECT(CONCATENATE($B305,"!N21"))) -> 2.48578803 | N305: =IF(ISERROR(INDIRECT(CONCATENATE($B305,"!O16"))),"",INDIRECT(CONCATENATE($B305,"!O16"))) -> 94.13796597 | O305: =IF(ISERROR(INDIRECT(CONCATENATE($B305,"!O23"))),"",INDIRECT(CONCATENATE($B305,"!O23"))) -> 97.88081952 | R305: =IF(ISERROR(INDIRECT(CONCATENATE($B305,"!O21"))),"",INDIRECT(CONCATENATE($B305,"!O21"))) -> 0.9991675286 | S305: =IF(ISERROR(INDIRECT(CONCATENATE($B305,"!P16"))),"",INDIRECT(CONCATENATE($B305,"!P16"))) -> 95.49158214 | T305: =IF(ISERROR(INDIRECT(CONCATENATE($B305,"!P23"))),"",INDIRECT(CONCATENATE($B305,"!P23"))) -> 98.06169418 | W305: =IF(ISERROR(INDIRECT(CONCATENATE($B305,"!P21"))),"",INDIRECT(CONCATENATE($B305,"!P21"))) -> 1.493524757 | X305: =IF(ISERROR(INDIRECT(CONCATENATE($B305,"!Q16"))),"",INDIRECT(CONCATENATE($B305,"!Q16"))) -> 97.04681775 | Y305: =IF(ISERROR(INDIRECT(CONCATENATE($B305,"!Q23"))),"",INDIRECT(CONCATENATE($B305,"!Q23"))) -> 98.89549181 | AB305: =IF(ISERROR(INDIRECT(CONCATENATE($B305,"!Q221"))),"",INDIRECT(CONCATENATE($B305,"!Q21"))) -> 0.9609094837
B318: =CONCATENATE("Rural use of drinking water sources, ",C299,"–",C300) -> Rural use of drinking water sources, 2010–2018 | S318: Data points used for regression

Sheet Sanitation
B4: Summary of trends in use of sanitation facilities by wealth quintile (%)
B5: =IF(ISERROR(INDIRECT(CONCATENATE($B105,"!A2"))),"",INDIRECT(CONCATENATE($B105,"!A2"))) -> El Salvador
B7: =B118 -> National use of sanitation facilities, 2010–2018 | J7: =B218 -> Urban use of sanitation facilities, 2010–2018 | R7: =B318 -> Rural use of sanitation facilities, 2010–2018
B31: =IF(ISERROR(INDIRECT(CONCATENATE($B105,"!A2"))),"",INDIRECT(CONCATENATE($B105,"!A2"))) -> El Salvador | F31: Poorest | J31: Poor | N31: Middle | R31: Rich | V31: Richest
F32: Basic | G32: Limited | H32: Unimproved | I32: Open defecation | J32: Basic | K32: Limited | L32: Unimproved | M32: Open defecation | N32: Basic | O32: Limited | P32: Unimproved | Q32: Open defecation | R32: Basic | S32: Limited | T32: Unimproved | U32: Open defecation | V32: Basic | W32: Limited | X32: Unimproved | Y32: Open defecation
B33: NATIONAL | D33: Estimate | E33: =C99 -> 2010 | F33: =E99 -> 65.30910863 | G33: =F99 -> 22.84380128 | H33: 2.492156282 | I33: 9.354933806 | J33: =J99 -> 81.16790545 | K33: =K99 -> 15.73123927 | L33: 1.49005389 | M33: 1.610801399 | N33: =O99 -> 87.45858083 | O33: =P99 -> 11.44123782 | P33: 0.6545284142 | Q33: 0.445652938 | R33: =T99 -> 94.19927415 | S33: =U99 -> 5.0405444 | T33: 0.6274738893 | U33: 0.1327075564 | V33: =Y99 -> 97.73101509 | W33: =Z99 -> 2.068399752 | X33: 0.1871905821 | Y33: 0.01339457957
E34: =C100 -> 2018 | F34: =E100 -> 65.30910863 | G34: 22.84380128 | H34: 2.492156282 | I34: 9.354933806 | J34: =J100 -> 81.16790545 | K34: 15.73123927 | L34: 1.49005389 | M34: 1.610801399 | N34: =O100 -> 87.45858083 | O34: 11.44123782 | P34: 0.6545284142 | Q34: 0.445652938 | R34: =T100 -> 94.19927415 | S34: 5.0405444 | T34: 0.6274738893 | U34: 0.1327075564 | V34: =Y100 -> 97.73101509 | W34: 2.068399752 | X34: 0.1871905821 | Y34: 0.01339457957
B36: URBAN | D36: Estimate | E36: =C199 -> 2010 | F36: =E199 -> 75.00713973 | G36: =F199 -> 21.77743348 | H36: 2.15867418 | I36: 1.056752617 | J36: =J199 -> 85.87843793 | K36: =K199 -> 13.33793972 | L36: 0.5698128722 | M36: 0.2138094774 | N36: =O199 -> 93.6982206 | O36: =P199 -> 5.831180524 | P36: 0.4705988716 | Q36: 0 | R36: =T199 -> 96.61845505 | S36: =U199 -> 3.227671514 | T36: 0.1538734381 | U36: 0 | V36: =Y199 -> 98.03563521 | W36: =Z199 -> 1.678467961 | X36: 0.2858968257 | Y36: 0
E37: =C200 -> 2018 | F37: =E200 -> 75.00713973 | G37: 21.77743348 | H37: 2.15867418 | I37: 1.056752617 | J37: =J200 -> 85.87843793 | K37: 13.33793972 | L37: 0.5698128722 | M37: 0.2138094774 | N37: =O200 -> 93.6982206 | O37: 5.831180524 | P37: 0.4705988716 | Q37: 0 | R37: =T200 -> 96.61845505 | S37: 3.227671514 | T37: 0.1538734381 | U37: 0 | V37: =Y200 -> 98.03563521 | W37: 1.678467961 | X37: 0.2858968257 | Y37: 0
B39: RURAL | D39: Estimate | E39: =C299 -> 2010 | F39: =E299 -> 57.38606756 | G39: =F299 -> 24.94415536 | H39: 2.625143075 | I39: 15.044634 | J39: =J299 -> 71.53698781 | K39: =K299 -> 18.05385441 | L39: 1.811361205 | M39: 8.597796575 | N39: =O299 -> 81.25703464 | O39: =P299 -> 14.45279422 | P39: 1.76801565 | Q39: 2.522155495 | R39: =T299 -> 86.82779701 | S39: =U299 -> 10.52328148 | T39: 1.0368637 | U39: 1.612057812 | V39: =Y299 -> 91.54787343 | W39: =Z299 -> 6.757243529 | X39: 1.161262122 | Y39: 0.5336209169
E40: =C300 -> 2018 | F40: =E300 -> 57.38606756 | G40: 24.94415536 | H40: 2.625143075 | I40: 15.044634 | J40: =J300 -> 71.53698781 | K40: 18.05385441 | L40: 1.811361205 | M40: 8.597796575 | N40: =O300 -> 81.25703464 | O40: 14.45279422 | P40: 1.76801565 | Q40: 2.522155495 | R40: =T300 -> 86.82779701 | S40: 10.52328148 | T40: 1.0368637 | U40: 1.612057812 | V40: =Y300 -> 91.54787343 | W40: 6.757243529 | X40: 1.161262122 | Y40: 0.5336209169
A97: NATIONAL | D97: Poorest | I97: Poor | N97: Middle | S97: Rich | X97: Richest
D98: Improved | E98: Basic | F98: Limited | G98: Unimproved | H98: Open defecation | I98: Improved | J98: Basic | K98: Limited | L98: Unimproved | M98: Open defecation | N98: Improved | O98: Basic | P98: Limited | Q98: Unimproved | R98: Open defecation | S98: Improved | T98: Basic | U98: Limited | V98: Unimproved | W98: Open defecation | X98: Improved | Y98: Basic | Z98: Limited | AA98: Unimproved | AB98: Open defecation
A99: Forecast period: | C99: 2010 | D99: =IF((D101+H101)>100,D101*100/(D101+H101),D101) -> 88.15290991 | E99: =D99*AVERAGEIF(E105:E116,">0")/100 -> 65.30910863 | F99: =D99*(100-AVERAGEIF(E105:E116,">0"))/100 -> 22.84380128 | G99: =100-(E99+F99+H99) -> 2.492156282 | H99: =IF((D101+H101)>100,H101*100/(D101+H101),H101) -> 9.354933806 | I99: =IF((I101+M101)>100,I101*100/(I101+M101),I101) -> 96.89914471 | J99: =I99*AVERAGEIF(J105:J116,">0")/100 -> 81.16790545 | K99: =I99*(100-AVERAGEIF(J105:J116,">0"))/100 -> 15.73123927 | L99: =100-(J99+K99+M99) -> 1.49005389 | M99: =IF((I101+M101)>100,M101*100/(I101+M101),M101) -> 1.610801399 | N99: =IF((N101+R101)>100,N101*100/(N101+R101),N101) -> 98.89981865 | O99: =N99*AVERAGEIF(O105:O116,">0")/100 -> 87.45858083 | P99: =N99*(100-AVERAGEIF(O105:O116,">0"))/100 -> 11.44123782 | Q99: =100-(O99+P99+R99) -> 0.6545284142 | R99: =IF((N101+R101)>100,R101*100/(N101+R101),R101) -> 0.445652938 | S99: =IF((S101+W101)>100,S101*100/(S101+W101),S101) -> 99.23981855 | T99: =S99*AVERAGEIF(T105:T116,">0")/100 -> 94.19927415 | U99: =S99*(100-AVERAGEIF(T105:T116,">0"))/100 -> 5.0405444 | V99: =100-(T99+U99+W99) -> 0.6274738893 | W99: =IF((S101+W101)>100,W101*100/(S101+W101),W101) -> 0.1327075564 | X99: =IF((X101+AB101)>100,X101*100/(X101+AB101),X101) -> 99.79941484 | Y99: =X99*AVERAGEIF(Y105:Y116,">0")/100 -> 97.73101509 | Z99: =X99*(100-AVERAGEIF(Y105:Y116,">0"))/100 -> 2.068399752 | AA99: =100-(Y99+Z99+AB99) -> 0.1871905821 | AB99: =IF((X101+AB101)>100,AB101*100/(X101+AB101),AB101) -> 0.01339457957
C100: 2018 | D100: =IF((D102+H102)>100,D102*100/(D102+H102),D102) -> 88.15290991 | E100: =D100*AVERAGEIF(E105:E116,">0")/100 -> 65.30910863 | F100: =D100*(100-AVERAGEIF(E105:E116,">0"))/100 -> 22.84380128 | G100: =100-(E100+F100+H100) -> 2.492156282 | H100: =IF((D102+H102)>100,H102*100/(D102+H102),H102) -> 9.354933806 | I100: =IF((I102+M102)>100,I102*100/(I102+M102),I102) -> 96.89914471 | J100: =I100*AVERAGEIF(J105:J116,">0")/100 -> 81.16790545 | K100: =I100*(100-AVERAGEIF(J105:J116,">0"))/100 -> 15.73123927 | L100: =100-(J100+K100+M100) -> 1.49005389 | M100: =IF((I102+M102)>100,M102*100/(I102+M102),M102) -> 1.610801399 | N100: =IF((N102+R102)>100,N102*100/(N102+R102),N102) -> 98.89981865 | O100: =N100*AVERAGEIF(O105:O116,">0")/100 -> 87.45858083 | P100: =N100*(100-AVERAGEIF(O105:O116,">0"))/100 -> 11.44123782 | Q100: =100-(O100+P100+R100) -> 0.6545284142 | R100: =IF((N102+R102)>100,R102*100/(N102+R102),R102) -> 0.445652938 | S100: =IF((S102+W102)>100,S102*100/(S102+W102),S102) -> 99.23981855 | T100: =S100*AVERAGEIF(T105:T116,">0")/100 -> 94.19927415 | U100: =S100*(100-AVERAGEIF(T105:T116,">0"))/100 -> 5.0405444 | V100: =100-(T100+U100+W100) -> 0.6274738893 | W100: =IF((S102+W102)>100,W102*100/(S102+W102),W102) -> 0.1327075564 | X100: =IF((X102+AB102)>100,X102*100/(X102+AB102),X102) -> 99.79941484 | Y100: =X100*AVERAGEIF(Y105:Y116,">0")/100 -> 97.73101509 | Z100: =X100*(100-AVERAGEIF(Y105:Y116,">0"))/100 -> 2.068399752 | AA100: =100-(Y100+Z100+AB100) -> 0.1871905821 | AB100: =IF((X102+AB102)>100,AB102*100/(X102+AB102),AB102) -> 0.01339457957
A101: Regression period: | C101: =MinRegYear(C99,C105:C116) -> 2012 | D101: =IF(MAX(C105:C116)-MIN(C105:C116)<5,AVERAGEIF(C105:C116,">0",D105:D116), IF(FORECAST($C101,D$105:D$116,$C$105:$C$116)<0,0, IF(FORECAST($C101,D$105:D$116,$C$105:$C$116)>100,100, FORECAST($C101,D$105:D$116,$C$105:$C$116)))) -> 88.15290991 | H101: =IF(MAX(C105:C116)-MIN(C105:C116)<5,AVERAGEIF(C105:C116,">0",H105:H116), IF(FORECAST($C101,H$105:H$116,$C$105:$C$116)<0,0, IF(FORECAST($C101,H$105:H$116,$C$105:$C$116)>100,100, FORECAST($C101,H$105:H$116,$C$105:$C$116)))) -> 9.354933806 | I101: =IF(MAX(C105:C116)-MIN(C105:C116)<5,AVERAGEIF(C105:C116,">0",I105:I116), IF(FORECAST($C101,I$105:I$116,$C$105:$C$116)<0,0, IF(FORECAST($C101,I$105:I$116,$C$105:$C$116)>100,100, FORECAST($C101,I$105:I$116,$C$105:$C$116)))) -> 96.89914471 | M101: =IF(MAX(C105:C116)-MIN(C105:C116)<5,AVERAGEIF(C105:C116,">0",M105:M116), IF(FORECAST($C101,M$105:M$116,$C$105:$C$116)<0,0, IF(FORECAST($C101,M$105:M$116,$C$105:$C$116)>100,100, FORECAST($C101,M$105:M$116,$C$105:$C$116)))) -> 1.610801399 | N101: =IF(MAX(C105:C116)-MIN(C105:C116)<5,AVERAGEIF(C105:C116,">0",N105:N116), IF(FORECAST($C101,N$105:N$116,$C$105:$C$116)<0,0, IF(FORECAST($C101,N$105:N$116,$C$105:$C$116)>100,100, FORECAST($C101,N$105:N$116,$C$105:$C$116)))) -> 98.89981865 | R101: =IF(MAX(C105:C116)-MIN(C105:C116)<5,AVERAGEIF(C105:C116,">0",R105:R116), IF(FORECAST($C101,R$105:R$116,$C$105:$C$116)<0,0, IF(FORECAST($C101,R$105:R$116,$C$105:$C$116)>100,100, FORECAST($C101,R$105:R$116,$C$105:$C$116)))) -> 0.445652938 | S101: =IF(MAX(C105:C116)-MIN(C105:C116)<5,AVERAGEIF(C105:C116,">0",S105:S116), IF(FORECAST($C101,S$105:S$116,$C$105:$C$116)<0,0, IF(FORECAST($C101,S$105:S$116,$C$105:$C$116)>100,100, FORECAST($C101,S$105:S$116,$C$105:$C$116)))) -> 99.23981855 | W101: =IF(MAX(C105:C116)-MIN(C105:C116)<5,AVERAGEIF(C105:C116,">0",W105:W116), IF(FORECAST($C101,W$105:W$116,$C$105:$C$116)<0,0, IF(FORECAST($C101,W$105:W$116,$C$105:$C$116)>100,100, FORECAST($C101,W$105:W$116,$C$105:$C$116)))) -> 0.1327075564 | X101: =IF(MAX(C105:C116)-MIN(C105:C116)<5,AVERAGEIF(C105:C116,">0",X105:X116), IF(FORECAST($C101,X$105:X$116,$C$105:$C$116)<0,0, IF(FORECAST($C101,X$105:X$116,$C$105:$C$116)>100,100, FORECAST($C101,X$105:X$116,$C$105:$C$116)))) -> 99.79941484 | AB101: =IF(MAX(C105:C116)-MIN(C105:C116)<5,AVERAGEIF(C105:C116,">0",AB105:AB116), IF(FORECAST($C101,AB$105:AB$116,$C$105:$C$116)<0,0, IF(FORECAST($C101,AB$105:AB$116,$C$105:$C$116)>100,100, FORECAST($C101,AB$105:AB$116,$C$105:$C$116)))) -> 0.01339457957
C102: =MaxRegYear(C100,C105:C116) -> 2016 | D102: =IF(MAX(C105:C116)-MIN(C105:C116)<5,AVERAGEIF(C105:C116,">0",D105:D116), IF(FORECAST($C102,D$105:D$116,$C$105:$C$116)<0,0, IF(FORECAST($C102,D$105:D$116,$C$105:$C$116)>100,100, FORECAST($C102,D$105:D$116,$C$105:$C$116)))) -> 88.15290991 | H102: =IF(MAX(C105:C116)-MIN(C105:C116)<5,AVERAGEIF(C105:C116,">0",H105:H116), IF(FORECAST($C102,H$105:H$116,$C$105:$C$116)<0,0, IF(FORECAST($C102,H$105:H$116,$C$105:$C$116)>100,100, FORECAST($C102,H$105:H$116,$C$105:$C$116)))) -> 9.354933806 | I102: =IF(MAX(C105:C116)-MIN(C105:C116)<5,AVERAGEIF(C105:C116,">0",I105:I116), IF(FORECAST($C102,I$105:I$116,$C$105:$C$116)<0,0, IF(FORECAST($C102,I$105:I$116,$C$105:$C$116)>100,100, FORECAST($C102,I$105:I$116,$C$105:$C$116)))) -> 96.89914471 | M102: =IF(MAX(C105:C116)-MIN(C105:C116)<5,AVERAGEIF(C105:C116,">0",M105:M116), IF(FORECAST($C102,M$105:M$116,$C$105:$C$116)<0,0, IF(FORECAST($C102,M$105:M$116,$C$105:$C$116)>100,100, FORECAST($C102,M$105:M$116,$C$105:$C$116)))) -> 1.610801399 | N102: =IF(MAX(C105:C116)-MIN(C105:C116)<5,AVERAGEIF(C105:C116,">0",N105:N116), IF(FORECAST($C102,N$105:N$116,$C$105:$C$116)<0,0, IF(FORECAST($C102,N$105:N$116,$C$105:$C$116)>100,100, FORECAST($C102,N$105:N$116,$C$105:$C$116)))) -> 98.89981865 | R102: =IF(MAX(C105:C116)-MIN(C105:C116)<5,AVERAGEIF(C105:C116,">0",R105:R116), IF(FORECAST($C102,R$105:R$116,$C$105:$C$116)<0,0, IF(FORECAST($C102,R$105:R$116,$C$105:$C$116)>100,100, FORECAST($C102,R$105:R$116,$C$105:$C$116)))) -> 0.445652938 | S102: =IF(MAX(C105:C116)-MIN(C105:C116)<5,AVERAGEIF(C105:C116,">0",S105:S116), IF(FORECAST($C102,S$105:S$116,$C$105:$C$116)<0,0, IF(FORECAST($C102,S$105:S$116,$C$105:$C$116)>100,100, FORECAST($C102,S$105:S$116,$C$105:$C$116)))) -> 99.23981855 | W102: =IF(MAX(C105:C116)-MIN(C105:C116)<5,AVERAGEIF(C105:C116,">0",W105:W116), IF(FORECAST($C102,W$105:W$116,$C$105:$C$116)<0,0, IF(FORECAST($C102,W$105:W$116,$C$105:$C$116)>100,100, FORECAST($C102,W$105:W$116,$C$105:$C$116)))) -> 0.1327075564 | X102: =IF(MAX(C105:C116)-MIN(C105:C116)<5,AVERAGEIF(C105:C116,">0",X105:X116), IF(FORECAST($C102,X$105:X$116,$C$105:$C$116)<0,0, IF(FORECAST($C102,X$105:X$116,$C$105:$C$116)>100,100, FORECAST($C102,X$105:X$116,$C$105:$C$116)))) -> 99.79941484 | AB102: =IF(MAX(C105:C116)-MIN(C105:C116)<5,AVERAGEIF(C105:C116,">0",AB105:AB116), IF(FORECAST($C102,AB$105:AB$116,$C$105:$C$116)<0,0, IF(FORECAST($C102,AB$105:AB$116,$C$105:$C$116)>100,100, FORECAST($C102,AB$105:AB$116,$C$105:$C$116)))) -> 0.01339457957
B104: Survey | C104: Year | D104: Improved | E104: Not shared | H104: Open defecation | I104: Improved | J104: Not shared | M104: Open defecation | N104: Improved | O104: Not shared | R104: Open defecation | S104: Improved | T104: Not shared | W104: Open defecation | X104: Improved | Y104: Not shared | AB104: Open defecation
B105: MICS14 | C105: 2014 | D105: =IF(ISERROR(INDIRECT(CONCATENATE($B105,"!C122"))),"",INDIRECT(CONCATENATE($B105,"!C122"))) -> 88.15290991 | E105: =IF(ISERROR(INDIRECT(CONCATENATE($B105,"!C129"))),"",INDIRECT(CONCATENATE($B105,"!C129"))) -> 74.08616312 | H105: =IF(ISERROR(INDIRECT(CONCATENATE($B105,"!C127"))),"",INDIRECT(CONCATENATE($B105,"!C127"))) -> 9.354933806 | I105: =IF(ISERROR(INDIRECT(CONCATENATE($B105,"!D122"))),"",INDIRECT(CONCATENATE($B105,"!D122"))) -> 96.89914471 | J105: =IF(ISERROR(INDIRECT(CONCATENATE($B105,"!D129"))),"",INDIRECT(CONCATENATE($B105,"!D129"))) -> 83.76534766 | M105: =IF(ISERROR(INDIRECT(CONCATENATE($B105,"!D127"))),"",INDIRECT(CONCATENATE($B105,"!D127"))) -> 1.610801399 | N105: =IF(ISERROR(INDIRECT(CONCATENATE($B105,"!E122"))),"",INDIRECT(CONCATENATE($B105,"!E122"))) -> 98.89981865 | O105: =IF(ISERROR(INDIRECT(CONCATENATE($B105,"!E129"))),"",INDIRECT(CONCATENATE($B105,"!E129"))) -> 88.43148757 | R105: =IF(ISERROR(INDIRECT(CONCATENATE($B105,"!E127"))),"",INDIRECT(CONCATENATE($B105,"!E127"))) -> 0.445652938 | S105: =IF(ISERROR(INDIRECT(CONCATENATE($B105,"!F122"))),"",INDIRECT(CONCATENATE($B105,"!F122"))) -> 99.23981855 | T105: =IF(ISERROR(INDIRECT(CONCATENATE($B105,"!F129"))),"",INDIRECT(CONCATENATE($B105,"!F129"))) -> 94.9208448 | W105: =IF(ISERROR(INDIRECT(CONCATENATE($B105,"!F127"))),"",INDIRECT(CONCATENATE($B105,"!F127"))) -> 0.1327075564 | X105: =IF(ISERROR(INDIRECT(CONCATENATE($B105,"!G122"))),"",INDIRECT(CONCATENATE($B105,"!G122"))) -> 99.79941484 | Y105: =IF(ISERROR(INDIRECT(CONCATENATE($B105,"!G129"))),"",INDIRECT(CONCATENATE($B105,"!G129"))) -> 97.92744301 | AB105: =IF(ISERROR(INDIRECT(CONCATENATE($B105,"!G2127"))),"",INDIRECT(CONCATENATE($B105,"!G127"))) -> 0.01339457957
B118: =CONCATENATE("National use of sanitation facilities, ",C99,"–",C100) -> National use of sanitation facilities, 2010–2018 | S118: Data points used for regression
A197: URBAN | D197: Poorest | I197: Poor | N197: Middle | S197: Rich | X197: Richest
D198: Improved | E198: Basic | F198: Limited | G198: Unimproved | H198: Open defecation | I198: Improved | J198: Basic | K198: Limited | L198: Unimproved | M198: Open defecation | N198: Improved | O198: Basic | P198: Limited | Q198: Unimproved | R198: Open defecation | S198: Improved | T198: Basic | U198: Limited | V198: Unimproved | W198: Open defecation | X198: Improved | Y198: Basic | Z198: Limited | AA198: Unimproved | AB198: Open defecation
A199: Forecast period: | C199: =MinBase(C205:C216) -> 2010 | D199: =IF((D201+H201)>100,D201*100/(D201+H201),D201) -> 96.7845732 | E199: =D199*AVERAGEIF(E205:E216,">0")/100 -> 75.00713973 | F199: =D199*(100-AVERAGEIF(E205:E216,">0"))/100 -> 21.77743348 | G199: =100-(E199+F199+H199) -> 2.15867418 | H199: =IF((D201+H201)>100,H201*100/(D201+H201),H201) -> 1.056752617 | I199: =IF((I201+M201)>100,I201*100/(I201+M201),I201) -> 99.21637765 | J199: =I199*AVERAGEIF(J205:J216,">0")/100 -> 85.87843793 | K199: =I199*(100-AVERAGEIF(J205:J216,">0"))/100 -> 13.33793972 | L199: =100-(J199+K199+M199) -> 0.5698128722 | M199: =IF((I201+M201)>100,M201*100/(I201+M201),M201) -> 0.2138094774 | N199: =IF((N201+R201)>100,N201*100/(N201+R201),N201) -> 99.52940113 | O199: =N199*AVERAGEIF(O205:O216,">0")/100 -> 93.6982206 | P199: =N199*(100-AVERAGEIF(O205:O216,">0"))/100 -> 5.831180524 | Q199: =100-(O199+P199+R199) -> 0.4705988716 | R199: =IF((N201+R201)>100,R201*100/(N201+R201),R201) -> 0 | S199: =IF((S201+W201)>100,S201*100/(S201+W201),S201) -> 99.84612656 | T199: =S199*AVERAGEIF(T205:T216,">0")/100 -> 96.61845505 | U199: =S199*(100-AVERAGEIF(T205:T216,">0"))/100 -> 3.227671514 | V199: =100-(T199+U199+W199) -> 0.1538734381 | W199: =IF((S201+W201)>100,W201*100/(S201+W201),W201) -> 0 | X199: =IF((X201+AB201)>100,X201*100/(X201+AB201),X201) -> 99.71410317 | Y199: =X199*AVERAGEIF(Y205:Y216,">0")/100 -> 98.03563521 | Z199: =X199*(100-AVERAGEIF(Y205:Y216,">0"))/100 -> 1.678467961 | AA199: =100-(Y199+Z199+AB199) -> 0.2858968257 | AB199: =IF((X201+AB201)>100,AB201*100/(X201+AB201),AB201) -> 0
C200: =MaxTarget(C205:C216) -> 2018 | D200: =IF((D202+H202)>100,D202*100/(D202+H202),D202) -> 96.7845732 | E200: =D200*AVERAGEIF(E205:E216,">0")/100 -> 75.00713973 | F200: =D200*(100-AVERAGEIF(E205:E216,">0"))/100 -> 21.77743348 | G200: =100-(E200+F200+H200) -> 2.15867418 | H200: =IF((D202+H202)>100,H202*100/(D202+H202),H202) -> 1.056752617 | I200: =IF((I202+M202)>100,I202*100/(I202+M202),I202) -> 99.21637765 | J200: =I200*AVERAGEIF(J205:J216,">0")/100 -> 85.87843793 | K200: =I200*(100-AVERAGEIF(J205:J216,">0"))/100 -> 13.33793972 | L200: =100-(J200+K200+M200) -> 0.5698128722 | M200: =IF((I202+M202)>100,M202*100/(I202+M202),M202) -> 0.2138094774 | N200: =IF((N202+R202)>100,N202*100/(N202+R202),N202) -> 99.52940113 | O200: =N200*AVERAGEIF(O205:O216,">0")/100 -> 93.6982206 | P200: =N200*(100-AVERAGEIF(O205:O216,">0"))/100 -> 5.831180524 | Q200: =100-(O200+P200+R200) -> 0.4705988716 | R200: =IF((N202+R202)>100,R202*100/(N202+R202),R202) -> 0 | S200: =IF((S202+W202)>100,S202*100/(S202+W202),S202) -> 99.84612656 | T200: =S200*AVERAGEIF(T205:T216,">0")/100 -> 96.61845505 | U200: =S200*(100-AVERAGEIF(T205:T216,">0"))/100 -> 3.227671514 | V200: =100-(T200+U200+W200) -> 0.1538734381 | W200: =IF((S202+W202)>100,W202*100/(S202+W202),W202) -> 0 | X200: =IF((X202+AB202)>100,X202*100/(X202+AB202),X202) -> 99.71410317 | Y200: =X200*AVERAGEIF(Y205:Y216,">0")/100 -> 98.03563521 | Z200: =X200*(100-AVERAGEIF(Y205:Y216,">0"))/100 -> 1.678467961 | AA200: =100-(Y200+Z200+AB200) -> 0.2858968257 | AB200: =IF((X202+AB202)>100,AB202*100/(X202+AB202),AB202) -> 0
A201: Regression period: | C201: =MinRegYear(C199,C205:C216) -> 2012 | D201: =IF(MAX(C205:C216)-MIN(C205:C216)<5,AVERAGEIF(C205:C216,">0",D205:D216), IF(FORECAST($C201,D$205:D$216,$C$205:$C$216)<0,0, IF(FORECAST($C201,D$205:D$216,$C$205:$C$216)>100,100, FORECAST($C201,D$205:D$216,$C$205:$C$216)))) -> 96.7845732 | H201: =IF(MAX(C205:C216)-MIN(C205:C216)<5,AVERAGEIF(C205:C216,">0",H205:H216), IF(FORECAST($C201,H$205:H$216,$C$205:$C$216)<0,0, IF(FORECAST($C201,H$205:H$216,$C$205:$C$216)>100,100, FORECAST($C201,H$205:H$216,$C$205:$C$216)))) -> 1.056752617 | I201: =IF(MAX(C205:C216)-MIN(C205:C216)<5,AVERAGEIF(C205:C216,">0",I205:I216), IF(FORECAST($C201,I$205:I$216,$C$205:$C$216)<0,0, IF(FORECAST($C201,I$205:I$216,$C$205:$C$216)>100,100, FORECAST($C201,I$205:I$216,$C$205:$C$216)))) -> 99.21637765 | M201: =IF(MAX(C205:C216)-MIN(C205:C216)<5,AVERAGEIF(C205:C216,">0",M205:M216), IF(FORECAST($C201,M$205:M$216,$C$205:$C$216)<0,0, IF(FORECAST($C201,M$205:M$216,$C$205:$C$216)>100,100, FORECAST($C201,M$205:M$216,$C$205:$C$216)))) -> 0.2138094774 | N201: =IF(MAX(C205:C216)-MIN(C205:C216)<5,AVERAGEIF(C205:C216,">0",N205:N216), IF(FORECAST($C201,N$205:N$216,$C$205:$C$216)<0,0, IF(FORECAST($C201,N$205:N$216,$C$205:$C$216)>100,100, FORECAST($C201,N$205:N$216,$C$205:$C$216)))) -> 99.52940113 | R201: =IF(MAX(C205:C216)-MIN(C205:C216)<5,AVERAGEIF(C205:C216,">0",R205:R216), IF(FORECAST($C201,R$205:R$216,$C$205:$C$216)<0,0, IF(FORECAST($C201,R$205:R$216,$C$205:$C$216)>100,100, FORECAST($C201,R$205:R$216,$C$205:$C$216)))) -> 0 | S201: =IF(MAX(C205:C216)-MIN(C205:C216)<5,AVERAGEIF(C205:C216,">0",S205:S216), IF(FORECAST($C201,S$205:S$216,$C$205:$C$216)<0,0, IF(FORECAST($C201,S$205:S$216,$C$205:$C$216)>100,100, FORECAST($C201,S$205:S$216,$C$205:$C$216)))) -> 99.84612656 | W201: =IF(MAX(C205:C216)-MIN(C205:C216)<5,AVERAGEIF(C205:C216,">0",W205:W216), IF(FORECAST($C201,W$205:W$216,$C$205:$C$216)<0,0, IF(FORECAST($C201,W$205:W$216,$C$205:$C$216)>100,100, FORECAST($C201,W$205:W$216,$C$205:$C$216)))) -> 0 | X201: =IF(MAX(C205:C216)-MIN(C205:C216)<5,AVERAGEIF(C205:C216,">0",X205:X216), IF(FORECAST($C201,X$205:X$216,$C$205:$C$216)<0,0, IF(FORECAST($C201,X$205:X$216,$C$205:$C$216)>100,100, FORECAST($C201,X$205:X$216,$C$205:$C$216)))) -> 99.71410317 | AB201: =IF(MAX(C205:C216)-MIN(C205:C216)<5,AVERAGEIF(C205:C216,">0",AB205:AB216), IF(FORECAST($C201,AB$205:AB$216,$C$205:$C$216)<0,0, IF(FORECAST($C201,AB$205:AB$216,$C$205:$C$216)>100,100, FORECAST($C201,AB$205:AB$216,$C$205:$C$216)))) -> 0
C202: =MaxRegYear(C200,C205:C216) -> 2016 | D202: =IF(MAX(C205:C216)-MIN(C205:C216)<5,AVERAGEIF(C205:C216,">0",D205:D216), IF(FORECAST($C202,D$205:D$216,$C$205:$C$216)<0,0, IF(FORECAST($C202,D$205:D$216,$C$205:$C$216)>100,100, FORECAST($C202,D$205:D$216,$C$205:$C$216)))) -> 96.7845732 | H202: =IF(MAX(C205:C216)-MIN(C205:C216)<5,AVERAGEIF(C205:C216,">0",H205:H216), IF(FORECAST($C202,H$205:H$216,$C$205:$C$216)<0,0, IF(FORECAST($C202,H$205:H$216,$C$205:$C$216)>100,100, FORECAST($C202,H$205:H$216,$C$205:$C$216)))) -> 1.056752617 | I202: =IF(MAX(C205:C216)-MIN(C205:C216)<5,AVERAGEIF(C205:C216,">0",I205:I216), IF(FORECAST($C202,I$205:I$216,$C$205:$C$216)<0,0, IF(FORECAST($C202,I$205:I$216,$C$205:$C$216)>100,100, FORECAST($C202,I$205:I$216,$C$205:$C$216)))) -> 99.21637765 | M202: =IF(MAX(C205:C216)-MIN(C205:C216)<5,AVERAGEIF(C205:C216,">0",M205:M216), IF(FORECAST($C202,M$205:M$216,$C$205:$C$216)<0,0, IF(FORECAST($C202,M$205:M$216,$C$205:$C$216)>100,100, FORECAST($C202,M$205:M$216,$C$205:$C$216)))) -> 0.2138094774 | N202: =IF(MAX(C205:C216)-MIN(C205:C216)<5,AVERAGEIF(C205:C216,">0",N205:N216), IF(FORECAST($C202,N$205:N$216,$C$205:$C$216)<0,0, IF(FORECAST($C202,N$205:N$216,$C$205:$C$216)>100,100, FORECAST($C202,N$205:N$216,$C$205:$C$216)))) -> 99.52940113 | R202: =IF(MAX(C205:C216)-MIN(C205:C216)<5,AVERAGEIF(C205:C216,">0",R205:R216), IF(FORECAST($C202,R$205:R$216,$C$205:$C$216)<0,0, IF(FORECAST($C202,R$205:R$216,$C$205:$C$216)>100,100, FORECAST($C202,R$205:R$216,$C$205:$C$216)))) -> 0 | S202: =IF(MAX(C205:C216)-MIN(C205:C216)<5,AVERAGEIF(C205:C216,">0",S205:S216), IF(FORECAST($C202,S$205:S$216,$C$205:$C$216)<0,0, IF(FORECAST($C202,S$205:S$216,$C$205:$C$216)>100,100, FORECAST($C202,S$205:S$216,$C$205:$C$216)))) -> 99.84612656 | W202: =IF(MAX(C205:C216)-MIN(C205:C216)<5,AVERAGEIF(C205:C216,">0",W205:W216), IF(FORECAST($C202,W$205:W$216,$C$205:$C$216)<0,0, IF(FORECAST($C202,W$205:W$216,$C$205:$C$216)>100,100, FORECAST($C202,W$205:W$216,$C$205:$C$216)))) -> 0 | X202: =IF(MAX(C205:C216)-MIN(C205:C216)<5,AVERAGEIF(C205:C216,">0",X205:X216), IF(FORECAST($C202,X$205:X$216,$C$205:$C$216)<0,0, IF(FORECAST($C202,X$205:X$216,$C$205:$C$216)>100,100, FORECAST($C202,X$205:X$216,$C$205:$C$216)))) -> 99.71410317 | AB202: =IF(MAX(C205:C216)-MIN(C205:C216)<5,AVERAGEIF(C205:C216,">0",AB205:AB216), IF(FORECAST($C202,AB$205:AB$216,$C$205:$C$216)<0,0, IF(FORECAST($C202,AB$205:AB$216,$C$205:$C$216)>100,100, FORECAST($C202,AB$205:AB$216,$C$205:$C$216)))) -> 0
B204: Survey | C204: Year | D204: Improved | E204: Not shared | H204: Open defecation | I204: Improved | J204: Not shared | M204: Open defecation | N204: Improved | O204: Not shared | R204: Open defecation | S204: Improved | T204: Not shared | W204: Open defecation | X204: Improved | Y204: Not shared | AB204: Open defecation
B205: MICS14 | C205: 2014 | D205: =IF(ISERROR(INDIRECT(CONCATENATE($B205,"!H122"))),"",INDIRECT(CONCATENATE($B205,"!H122"))) -> 96.7845732 | E205: =IF(ISERROR(INDIRECT(CONCATENATE($B205,"!H129"))),"",INDIRECT(CONCATENATE($B205,"!H129"))) -> 77.49906544 | H205: =IF(ISERROR(INDIRECT(CONCATENATE($B205,"!H127"))),"",INDIRECT(CONCATENATE($B205,"!H127"))) -> 1.056752617 | I205: =IF(ISERROR(INDIRECT(CONCATENATE($B205,"!I122"))),"",INDIRECT(CONCATENATE($B205,"!I122"))) -> 99.21637765 | J205: =IF(ISERROR(INDIRECT(CONCATENATE($B205,"!I129"))),"",INDIRECT(CONCATENATE($B205,"!I129"))) -> 86.5567157 | M205: =IF(ISERROR(INDIRECT(CONCATENATE($B205,"!I127"))),"",INDIRECT(CONCATENATE($B205,"!I127"))) -> 0.2138094774 | N205: =IF(ISERROR(INDIRECT(CONCATENATE($B205,"!J122"))),"",INDIRECT(CONCATENATE($B205,"!J122"))) -> 99.52940113 | O205: =IF(ISERROR(INDIRECT(CONCATENATE($B205,"!J129"))),"",INDIRECT(CONCATENATE($B205,"!J129"))) -> 94.14124826 | R205: =IF(ISERROR(INDIRECT(CONCATENATE($B205,"!J127"))),"",INDIRECT(CONCATENATE($B205,"!J127"))) -> 0 | S205: =IF(ISERROR(INDIRECT(CONCATENATE($B205,"!K122"))),"",INDIRECT(CONCATENATE($B205,"!K122"))) -> 99.84612656 | T205: =IF(ISERROR(INDIRECT(CONCATENATE($B205,"!K129"))),"",INDIRECT(CONCATENATE($B205,"!K129"))) -> 96.7673543 | W205: =IF(ISERROR(INDIRECT(CONCATENATE($B205,"!K127"))),"",INDIRECT(CONCATENATE($B205,"!K127"))) -> 0 | X205: =IF(ISERROR(INDIRECT(CONCATENATE($B205,"!L122"))),"",INDIRECT(CONCATENATE($B205,"!L122"))) -> 99.71410317 | Y205: =IF(ISERROR(INDIRECT(CONCATENATE($B205,"!L129"))),"",INDIRECT(CONCATENATE($B205,"!L129"))) -> 98.31671959 | AB205: =IF(ISERROR(INDIRECT(CONCATENATE($B205,"!L2127"))),"",INDIRECT(CONCATENATE($B205,"!L127"))) -> 0
B218: =CONCATENATE("Urban use of sanitation facilities, ",C199,"–",C200) -> Urban use of sanitation facilities, 2010–2018 | S218: Data points used for regression
A297: RURAL | D297: Poorest | I297: Poor | N297: Middle | S297: Rich | X297: Richest
D298: Improved | E298: Basic | F298: Limited | G298: Unimproved | H298: Open defecation | I298: Improved | J298: Basic | K298: Limited | L298: Unimproved | M298: Open defecation | N298: Improved | O298: Basic | P298: Limited | Q298: Unimproved | R298: Open defecation | S298: Improved | T298: Basic | U298: Limited | V298: Unimproved | W298: Open defecation | X298: Improved | Y298: Basic | Z298: Limited | AA298: Unimproved | AB298: Open defecation
A299: Forecast period: | C299: =MinBase(C305:C316) -> 2010 | D299: =IF((D301+H301)>100,D301*100/(D301+H301),D301) -> 82.33022292 | E299: =D299*AVERAGEIF(E305:E316,">0")/100 -> 57.38606756 | F299: =D299*(100-AVERAGEIF(E305:E316,">0"))/100 -> 24.94415536 | G299: =100-(E299+F299+H299) -> 2.625143075 | H299: =IF((D301+H301)>100,H301*100/(D301+H301),H301) -> 15.044634 | I299: =IF((I301+M301)>100,I301*100/(I301+M301),I301) -> 89.59084222 | J299: =I299*AVERAGEIF(J305:J316,">0")/100 -> 71.53698781 | K299: =I299*(100-AVERAGEIF(J305:J316,">0"))/100 -> 18.05385441 | L299: =100-(J299+K299+M299) -> 1.811361205 | M299: =IF((I301+M301)>100,M301*100/(I301+M301),M301) -> 8.597796575 | N299: =IF((N301+R301)>100,N301*100/(N301+R301),N301) -> 95.70982886 | O299: =N299*AVERAGEIF(O305:O316,">0")/100 -> 81.25703464 | P299: =N299*(100-AVERAGEIF(O305:O316,">0"))/100 -> 14.45279422 | Q299: =100-(O299+P299+R299) -> 1.76801565 | R299: =IF((N301+R301)>100,R301*100/(N301+R301),R301) -> 2.522155495 | S299: =IF((S301+W301)>100,S301*100/(S301+W301),S301) -> 97.35107849 | T299: =S299*AVERAGEIF(T305:T316,">0")/100 -> 86.82779701 | U299: =S299*(100-AVERAGEIF(T305:T316,">0"))/100 -> 10.52328148 | V299: =100-(T299+U299+W299) -> 1.0368637 | W299: =IF((S301+W301)>100,W301*100/(S301+W301),W301) -> 1.612057812 | X299: =IF((X301+AB301)>100,X301*100/(X301+AB301),X301) -> 98.30511696 | Y299: =X299*AVERAGEIF(Y305:Y316,">0")/100 -> 91.54787343 | Z299: =X299*(100-AVERAGEIF(Y305:Y316,">0"))/100 -> 6.757243529 | AA299: =100-(Y299+Z299+AB299) -> 1.161262122 | AB299: =IF((X301+AB301)>100,AB301*100/(X301+AB301),AB301) -> 0.5336209169
C300: =MaxTarget(C305:C316) -> 2018 | D300: =IF((D302+H302)>100,D302*100/(D302+H302),D302) -> 82.33022292 | E300: =D300*AVERAGEIF(E305:E316,">0")/100 -> 57.38606756 | F300: =D300*(100-AVERAGEIF(E305:E316,">0"))/100 -> 24.94415536 | G300: =100-(E300+F300+H300) -> 2.625143075 | H300: =IF((D302+H302)>100,H302*100/(D302+H302),H302) -> 15.044634 | I300: =IF((I302+M302)>100,I302*100/(I302+M302),I302) -> 89.59084222 | J300: =I300*AVERAGEIF(J305:J316,">0")/100 -> 71.53698781 | K300: =I300*(100-AVERAGEIF(J305:J316,">0"))/100 -> 18.05385441 | L300: =100-(J300+K300+M300) -> 1.811361205 | M300: =IF((I302+M302)>100,M302*100/(I302+M302),M302) -> 8.597796575 | N300: =IF((N302+R302)>100,N302*100/(N302+R302),N302) -> 95.70982886 | O300: =N300*AVERAGEIF(O305:O316,">0")/100 -> 81.25703464 | P300: =N300*(100-AVERAGEIF(O305:O316,">0"))/100 -> 14.45279422 | Q300: =100-(O300+P300+R300) -> 1.76801565 | R300: =IF((N302+R302)>100,R302*100/(N302+R302),R302) -> 2.522155495 | S300: =IF((S302+W302)>100,S302*100/(S302+W302),S302) -> 97.35107849 | T300: =S300*AVERAGEIF(T305:T316,">0")/100 -> 86.82779701 | U300: =S300*(100-AVERAGEIF(T305:T316,">0"))/100 -> 10.52328148 | V300: =100-(T300+U300+W300) -> 1.0368637 | W300: =IF((S302+W302)>100,W302*100/(S302+W302),W302) -> 1.612057812 | X300: =IF((X302+AB302)>100,X302*100/(X302+AB302),X302) -> 98.30511696 | Y300: =X300*AVERAGEIF(Y305:Y316,">0")/100 -> 91.54787343 | Z300: =X300*(100-AVERAGEIF(Y305:Y316,">0"))/100 -> 6.757243529 | AA300: =100-(Y300+Z300+AB300) -> 1.161262122 | AB300: =IF((X302+AB302)>100,AB302*100/(X302+AB302),AB302) -> 0.5336209169
A301: Regression period: | C301: =MinRegYear(C299,C305:C316) -> 2012 | D301: =IF(MAX(C305:C316)-MIN(C305:C316)<5,AVERAGEIF(C305:C316,">0",D305:D316), IF(FORECAST($C301,D$305:D$316,$C$305:$C$316)<0,0, IF(FORECAST($C301,D$305:D$316,$C$305:$C$316)>100,100, FORECAST($C301,D$305:D$316,$C$305:$C$316)))) -> 82.33022292 | H301: =IF(MAX(C305:C316)-MIN(C305:C316)<5,AVERAGEIF(C305:C316,">0",H305:H316), IF(FORECAST($C301,H$305:H$316,$C$305:$C$316)<0,0, IF(FORECAST($C301,H$305:H$316,$C$305:$C$316)>100,100, FORECAST($C301,H$305:H$316,$C$305:$C$316)))) -> 15.044634 | I301: =IF(MAX(C305:C316)-MIN(C305:C316)<5,AVERAGEIF(C305:C316,">0",I305:I316), IF(FORECAST($C301,I$305:I$316,$C$305:$C$316)<0,0, IF(FORECAST($C301,I$305:I$316,$C$305:$C$316)>100,100, FORECAST($C301,I$305:I$316,$C$305:$C$316)))) -> 89.59084222 | M301: =IF(MAX(C305:C316)-MIN(C305:C316)<5,AVERAGEIF(C305:C316,">0",M305:M316), IF(FORECAST($C301,M$305:M$316,$C$305:$C$316)<0,0, IF(FORECAST($C301,M$305:M$316,$C$305:$C$316)>100,100, FORECAST($C301,M$305:M$316,$C$305:$C$316)))) -> 8.597796575 | N301: =IF(MAX(C305:C316)-MIN(C305:C316)<5,AVERAGEIF(C305:C316,">0",N305:N316), IF(FORECAST($C301,N$305:N$316,$C$305:$C$316)<0,0, IF(FORECAST($C301,N$305:N$316,$C$305:$C$316)>100,100, FORECAST($C301,N$305:N$316,$C$305:$C$316)))) -> 95.70982886 | R301: =IF(MAX(C305:C316)-MIN(C305:C316)<5,AVERAGEIF(C305:C316,">0",R305:R316), IF(FORECAST($C301,R$305:R$316,$C$305:$C$316)<0,0, IF(FORECAST($C301,R$305:R$316,$C$305:$C$316)>100,100, FORECAST($C301,R$305:R$316,$C$305:$C$316)))) -> 2.522155495 | S301: =IF(MAX(C305:C316)-MIN(C305:C316)<5,AVERAGEIF(C305:C316,">0",S305:S316), IF(FORECAST($C301,S$305:S$316,$C$305:$C$316)<0,0, IF(FORECAST($C301,S$305:S$316,$C$305:$C$316)>100,100, FORECAST($C301,S$305:S$316,$C$305:$C$316)))) -> 97.35107849 | W301: =IF(MAX(C305:C316)-MIN(C305:C316)<5,AVERAGEIF(C305:C316,">0",W305:W316), IF(FORECAST($C301,W$305:W$316,$C$305:$C$316)<0,0, IF(FORECAST($C301,W$305:W$316,$C$305:$C$316)>100,100, FORECAST($C301,W$305:W$316,$C$305:$C$316)))) -> 1.612057812 | X301: =IF(MAX(C305:C316)-MIN(C305:C316)<5,AVERAGEIF(C305:C316,">0",X305:X316), IF(FORECAST($C301,X$305:X$316,$C$305:$C$316)<0,0, IF(FORECAST($C301,X$305:X$316,$C$305:$C$316)>100,100, FORECAST($C301,X$305:X$316,$C$305:$C$316)))) -> 98.30511696 | AB301: =IF(MAX(C305:C316)-MIN(C305:C316)<5,AVERAGEIF(C305:C316,">0",AB305:AB316), IF(FORECAST($C301,AB$305:AB$316,$C$305:$C$316)<0,0, IF(FORECAST($C301,AB$305:AB$316,$C$305:$C$316)>100,100, FORECAST($C301,AB$305:AB$316,$C$305:$C$316)))) -> 0.5336209169
C302: =MaxRegYear(C300,C305:C316) -> 2016 | D302: =IF(MAX(C305:C316)-MIN(C305:C316)<5,AVERAGEIF(C305:C316,">0",D305:D316), IF(FORECAST($C302,D$305:D$316,$C$305:$C$316)<0,0, IF(FORECAST($C302,D$305:D$316,$C$305:$C$316)>100,100, FORECAST($C302,D$305:D$316,$C$305:$C$316)))) -> 82.33022292 | H302: =IF(MAX(C305:C316)-MIN(C305:C316)<5,AVERAGEIF(C305:C316,">0",H305:H316), IF(FORECAST($C302,H$305:H$316,$C$305:$C$316)<0,0, IF(FORECAST($C302,H$305:H$316,$C$305:$C$316)>100,100, FORECAST($C302,H$305:H$316,$C$305:$C$316)))) -> 15.044634 | I302: =IF(MAX(C305:C316)-MIN(C305:C316)<5,AVERAGEIF(C305:C316,">0",I305:I316), IF(FORECAST($C302,I$305:I$316,$C$305:$C$316)<0,0, IF(FORECAST($C302,I$305:I$316,$C$305:$C$316)>100,100, FORECAST($C302,I$305:I$316,$C$305:$C$316)))) -> 89.59084222 | M302: =IF(MAX(C305:C316)-MIN(C305:C316)<5,AVERAGEIF(C305:C316,">0",M305:M316), IF(FORECAST($C302,M$305:M$316,$C$305:$C$316)<0,0, IF(FORECAST($C302,M$305:M$316,$C$305:$C$316)>100,100, FORECAST($C302,M$305:M$316,$C$305:$C$316)))) -> 8.597796575 | N302: =IF(MAX(C305:C316)-MIN(C305:C316)<5,AVERAGEIF(C305:C316,">0",N305:N316), IF(FORECAST($C302,N$305:N$316,$C$305:$C$316)<0,0, IF(FORECAST($C302,N$305:N$316,$C$305:$C$316)>100,100, FORECAST($C302,N$305:N$316,$C$305:$C$316)))) -> 95.70982886 | R302: =IF(MAX(C305:C316)-MIN(C305:C316)<5,AVERAGEIF(C305:C316,">0",R305:R316), IF(FORECAST($C302,R$305:R$316,$C$305:$C$316)<0,0, IF(FORECAST($C302,R$305:R$316,$C$305:$C$316)>100,100, FORECAST($C302,R$305:R$316,$C$305:$C$316)))) -> 2.522155495 | S302: =IF(MAX(C305:C316)-MIN(C305:C316)<5,AVERAGEIF(C305:C316,">0",S305:S316), IF(FORECAST($C302,S$305:S$316,$C$305:$C$316)<0,0, IF(FORECAST($C302,S$305:S$316,$C$305:$C$316)>100,100, FORECAST($C302,S$305:S$316,$C$305:$C$316)))) -> 97.35107849 | W302: =IF(MAX(C305:C316)-MIN(C305:C316)<5,AVERAGEIF(C305:C316,">0",W305:W316), IF(FORECAST($C302,W$305:W$316,$C$305:$C$316)<0,0, IF(FORECAST($C302,W$305:W$316,$C$305:$C$316)>100,100, FORECAST($C302,W$305:W$316,$C$305:$C$316)))) -> 1.612057812 | X302: =IF(MAX(C305:C316)-MIN(C305:C316)<5,AVERAGEIF(C305:C316,">0",X305:X316), IF(FORECAST($C302,X$305:X$316,$C$305:$C$316)<0,0, IF(FORECAST($C302,X$305:X$316,$C$305:$C$316)>100,100, FORECAST($C302,X$305:X$316,$C$305:$C$316)))) -> 98.30511696 | AB302: =IF(MAX(C305:C316)-MIN(C305:C316)<5,AVERAGEIF(C305:C316,">0",AB305:AB316), IF(FORECAST($C302,AB$305:AB$316,$C$305:$C$316)<0,0, IF(FORECAST($C302,AB$305:AB$316,$C$305:$C$316)>100,100, FORECAST($C302,AB$305:AB$316,$C$305:$C$316)))) -> 0.5336209169
B304: Survey | C304: Year | D304: Improved | E304: Not shared | H304: Open defecation | I304: Improved | J304: Not shared | M304: Open defecation | N304: Improved | O304: Not shared | R304: Open defecation | S304: Improved | T304: Not shared | W304: Open defecation | X304: Improved | Y304: Not shared | AB304: Open defecation
B305: MICS14 | C305: 2014 | D305: =IF(ISERROR(INDIRECT(CONCATENATE($B305,"!M122"))),"",INDIRECT(CONCATENATE($B305,"!M122"))) -> 82.33022292 | E305: =IF(ISERROR(INDIRECT(CONCATENATE($B305,"!M129"))),"",INDIRECT(CONCATENATE($B305,"!M129"))) -> 69.70231043 | H305: =IF(ISERROR(INDIRECT(CONCATENATE($B305,"!M127"))),"",INDIRECT(CONCATENATE($B305,"!M127"))) -> 15.044634 | I305: =IF(ISERROR(INDIRECT(CONCATENATE($B305,"!N122"))),"",INDIRECT(CONCATENATE($B305,"!N122"))) -> 89.59084222 | J305: =IF(ISERROR(INDIRECT(CONCATENATE($B305,"!N129"))),"",INDIRECT(CONCATENATE($B305,"!N129"))) -> 79.84854929 | M305: =IF(ISERROR(INDIRECT(CONCATENATE($B305,"!N127"))),"",INDIRECT(CONCATENATE($B305,"!N127"))) -> 8.597796575 | N305: =IF(ISERROR(INDIRECT(CONCATENATE($B305,"!O122"))),"",INDIRECT(CONCATENATE($B305,"!O122"))) -> 95.70982886 | O305: =IF(ISERROR(INDIRECT(CONCATENATE($B305,"!O129"))),"",INDIRECT(CONCATENATE($B305,"!O129"))) -> 84.8993626 | R305: =IF(ISERROR(INDIRECT(CONCATENATE($B305,"!O127"))),"",INDIRECT(CONCATENATE($B305,"!O127"))) -> 2.522155495 | S305: =IF(ISERROR(INDIRECT(CONCATENATE($B305,"!P122"))),"",INDIRECT(CONCATENATE($B305,"!P122"))) -> 97.35107849 | T305: =IF(ISERROR(INDIRECT(CONCATENATE($B305,"!P129"))),"",INDIRECT(CONCATENATE($B305,"!P129"))) -> 89.19038018 | W305: =IF(ISERROR(INDIRECT(CONCATENATE($B305,"!P127"))),"",INDIRECT(CONCATENATE($B305,"!P127"))) -> 1.612057812 | X305: =IF(ISERROR(INDIRECT(CONCATENATE($B305,"!Q122"))),"",INDIRECT(CONCATENATE($B305,"!Q122"))) -> 98.30511696 | Y305: =IF(ISERROR(INDIRECT(CONCATENATE($B305,"!Q129"))),"",INDIRECT(CONCATENATE($B305,"!Q129"))) -> 93.12625452 | AB305: =IF(ISERROR(INDIRECT(CONCATENATE($B305,"!Q2127"))),"",INDIRECT(CONCATENATE($B305,"!Q127"))) -> 0.5336209169
B318: =CONCATENATE("Rural use of sanitation facilities, ",C299,"–",C300) -> Rural use of sanitation facilities, 2010–2018 | S318: Data points used for regression

Sheet Hygiene
B4: Access to hygiene facilities by wealth quintile (%)
B5: =IF(ISERROR(INDIRECT(CONCATENATE($E$32,"!A2"))),"",INDIRECT(CONCATENATE($E$32,"!A2"))) -> 
B7: =CONCATENATE("National ",IF(ISERROR(INDIRECT(CONCATENATE($E$32,"!A2"))),"",INDIRECT(CONCATENATE($E$32,"!A210")))) -> National | K7: =CONCATENATE("Urban ",IF(ISERROR(INDIRECT(CONCATENATE($E$32,"!A2"))),"",INDIRECT(CONCATENATE($E$32,"!A210")))) -> Urban | S7: =CONCATENATE("Rural ",IF(ISERROR(INDIRECT(CONCATENATE($E$32,"!A2"))),"",INDIRECT(CONCATENATE($E$32,"!A210")))) -> Rural
E32: =INDEX(B88:B100,A88) -> 0 | G32: =IF(ISERROR(INDIRECT(CONCATENATE($E$32,"!A2"))),"",INDIRECT(CONCATENATE($E$32,"!A2"))) ->  | K32: Poorest | N32: Poor | Q32: Middle | T32: Rich | W32: Richest
K33: Basic | L33: Limited | M33: No facility | N33: Basic | O33: Limited | P33: No facility | Q33: Basic | R33: Limited | S33: No facility | T33: Basic | U33: Limited | V33: No facility | W33: Basic | X33: Limited | Y33: No facility
B34: >>> Select Survey : | G34: NATIONAL | J34: =IF(ISERROR(INDIRECT(CONCATENATE(#REF!,"!A2"))),"",INDIRECT(CONCATENATE(#REF!,"!A210"))) ->  | K34: =IF(ISERROR(INDIRECT(CONCATENATE($E$32,"!C222"))),"",INDIRECT(CONCATENATE($E$32,"!C222"))) ->  | L34: =IF(ISERROR(INDIRECT(CONCATENATE($E$32,"!C223"))),"",INDIRECT(CONCATENATE($E$32,"!C223"))) ->  | M34: =IF(ISERROR(INDIRECT(CONCATENATE($E$32,"!C224"))),"",INDIRECT(CONCATENATE($E$32,"!C224"))) ->  | N34: =IF(ISERROR(INDIRECT(CONCATENATE($E$32,"!D222"))),"",INDIRECT(CONCATENATE($E$32,"!D222"))) ->  | O34: =IF(ISERROR(INDIRECT(CONCATENATE($E$32,"!D223"))),"",INDIRECT(CONCATENATE($E$32,"!D223"))) ->  | P34: =IF(ISERROR(INDIRECT(CONCATENATE($E$32,"!D224"))),"",INDIRECT(CONCATENATE($E$32,"!D224"))) ->  | Q34: =IF(ISERROR(INDIRECT(CONCATENATE($E$32,"!E222"))),"",INDIRECT(CONCATENATE($E$32,"!E222"))) ->  | R34: =IF(ISERROR(INDIRECT(CONCATENATE($E$32,"!E223"))),"",INDIRECT(CONCATENATE($E$32,"!E223"))) ->  | S34: =IF(ISERROR(INDIRECT(CONCATENATE($E$32,"!E224"))),"",INDIRECT(CONCATENATE($E$32,"!E224"))) ->  | T34: =IF(ISERROR(INDIRECT(CONCATENATE($E$32,"!F222"))),"",INDIRECT(CONCATENATE($E$32,"!F222"))) ->  | U34: =IF(ISERROR(INDIRECT(CONCATENATE($E$32,"!F223"))),"",INDIRECT(CONCATENATE($E$32,"!F223"))) ->  | V34: =IF(ISERROR(INDIRECT(CONCATENATE($E$32,"!F224"))),"",INDIRECT(CONCATENATE($E$32,"!F224"))) ->  | W34: =IF(ISERROR(INDIRECT(CONCATENATE($E$32,"!G222"))),"",INDIRECT(CONCATENATE($E$32,"!G222"))) ->  | X34: =IF(ISERROR(INDIRECT(CONCATENATE($E$32,"!G223"))),"",INDIRECT(CONCATENATE($E$32,"!G223"))) ->  | Y34: =IF(ISERROR(INDIRECT(CONCATENATE($E$32,"!G224"))),"",INDIRECT(CONCATENATE($E$32,"!G224"))) -> 
G37: URBAN | J37: =IF(ISERROR(INDIRECT(CONCATENATE(#REF!,"!A2"))),"",INDIRECT(CONCATENATE(#REF!,"!A210"))) ->  | K37: =IF(ISERROR(INDIRECT(CONCATENATE($E$32,"!H222"))),"",INDIRECT(CONCATENATE($E$32,"!H222"))) ->  | L37: =IF(ISERROR(INDIRECT(CONCATENATE($E$32,"!H223"))),"",INDIRECT(CONCATENATE($E$32,"!H223"))) ->  | M37: =IF(ISERROR(INDIRECT(CONCATENATE($E$32,"!H224"))),"",INDIRECT(CONCATENATE($E$32,"!H224"))) ->  | N37: =IF(ISERROR(INDIRECT(CONCATENATE($E$32,"!I222"))),"",INDIRECT(CONCATENATE($E$32,"!I222"))) ->  | O37: =IF(ISERROR(INDIRECT(CONCATENATE($E$32,"!I223"))),"",INDIRECT(CONCATENATE($E$32,"!I223"))) ->  | P37: =IF(ISERROR(INDIRECT(CONCATENATE($E$32,"!I224"))),"",INDIRECT(CONCATENATE($E$32,"!I224"))) ->  | Q37: =IF(ISERROR(INDIRECT(CONCATENATE($E$32,"!J222"))),"",INDIRECT(CONCATENATE($E$32,"!J222"))) ->  | R37: =IF(ISERROR(INDIRECT(CONCATENATE($E$32,"!J223"))),"",INDIRECT(CONCATENATE($E$32,"!J223"))) ->  | S37: =IF(ISERROR(INDIRECT(CONCATENATE($E$32,"!J224"))),"",INDIRECT(CONCATENATE($E$32,"!J224"))) ->  | T37: =IF(ISERROR(INDIRECT(CONCATENATE($E$32,"!K222"))),"",INDIRECT(CONCATENATE($E$32,"!K222"))) ->  | U37: =IF(ISERROR(INDIRECT(CONCATENATE($E$32,"!K223"))),"",INDIRECT(CONCATENATE($E$32,"!K223"))) ->  | V37: =IF(ISERROR(INDIRECT(CONCATENATE($E$32,"!K224"))),"",INDIRECT(CONCATENATE($E$32,"!K224"))) ->  | W37: =IF(ISERROR(INDIRECT(CONCATENATE($E$32,"!L222"))),"",INDIRECT(CONCATENATE($E$32,"!L222"))) ->  | X37: =IF(ISERROR(INDIRECT(CONCATENATE($E$32,"!L223"))),"",INDIRECT(CONCATENATE($E$32,"!L223"))) ->  | Y37: =IF(ISERROR(INDIRECT(CONCATENATE($E$32,"!L224"))),"",INDIRECT(CONCATENATE($E$32,"!L224"))) -> 
G40: RURAL | J40: =IF(ISERROR(INDIRECT(CONCATENATE(#REF!,"!A2"))),"",INDIRECT(CONCATENATE(#REF!,"!A210"))) ->  | K40: =IF(ISERROR(INDIRECT(CONCATENATE($E$32,"!M222"))),"",INDIRECT(CONCATENATE($E$32,"!M222"))) ->  | L40: =IF(ISERROR(INDIRECT(CONCATENATE($E$32,"!M223"))),"",INDIRECT(CONCATENATE($E$32,"!M223"))) ->  | M40: =IF(ISERROR(INDIRECT(CONCATENATE($E$32,"!M224"))),"",INDIRECT(CONCATENATE($E$32,"!M224"))) ->  | N40: =IF(ISERROR(INDIRECT(CONCATENATE($E$32,"!N222"))),"",INDIRECT(CONCATENATE($E$32,"!N222"))) ->  | O40: =IF(ISERROR(INDIRECT(CONCATENATE($E$32,"!N223"))),"",INDIRECT(CONCATENATE($E$32,"!N223"))) ->  | P40: =IF(ISERROR(INDIRECT(CONCATENATE($E$32,"!N224"))),"",INDIRECT(CONCATENATE($E$32,"!N224"))) ->  | Q40: =IF(ISERROR(INDIRECT(CONCATENATE($E$32,"!O222"))),"",INDIRECT(CONCATENATE($E$32,"!O222"))) ->  | R40: =IF(ISERROR(INDIRECT(CONCATENATE($E$32,"!O223"))),"",INDIRECT(CONCATENATE($E$32,"!O223"))) ->  | S40: =IF(ISERROR(INDIRECT(CONCATENATE($E$32,"!O224"))),"",INDIRECT(CONCATENATE($E$32,"!O224"))) ->  | T40: =IF(ISERROR(INDIRECT(CONCATENATE($E$32,"!P222"))),"",INDIRECT(CONCATENATE($E$32,"!P222"))) ->  | U40: =IF(ISERROR(INDIRECT(CONCATENATE($E$32,"!P223"))),"",INDIRECT(CONCATENATE($E$32,"!P223"))) ->  | V40: =IF(ISERROR(INDIRECT(CONCATENATE($E$32,"!P224"))),"",INDIRECT(CONCATENATE($E$32,"!P224"))) ->  | W40: =IF(ISERROR(INDIRECT(CONCATENATE($E$32,"!Q222"))),"",INDIRECT(CONCATENATE($E$32,"!Q222"))) ->  | X40: =IF(ISERROR(INDIRECT(CONCATENATE($E$32,"!Q223"))),"",INDIRECT(CONCATENATE($E$32,"!Q223"))) ->  | Y40: =IF(ISERROR(INDIRECT(CONCATENATE($E$32,"!Q224"))),"",INDIRECT(CONCATENATE($E$32,"!Q224"))) -> 
A88: 2 | B88: Template

Sheet MICS14
A1: SLV
A2: =A1026 -> El Salvador
A3: =A1034 -> 2014
A4: Use of drinking water sources
A5: by wealth quintile and sub-national region
A6: Notes:
A7: WHO/UNICEF JMP customised wealth index excludes water,
A8: sanitation and hygiene assets.
A9: Survey used for analysis: | B9: =A1025 -> MICS14
A10: =B1028 -> 
A11: =B1027 -> 
A14: Use of drinking water sources | C14: NATIONAL wealth index quintile | H14: URBAN wealth index quintile | M14: RURAL wealth index quintile | R14: SUB-REGIONS: | BA14: Raw numbers of respondents: | BB14: Use of drinking water sources | BC14: NATIONAL wealth index quintile | BH14: URBAN wealth index quintile | BM14: RURAL wealth index quintile | BR14: SUB-REGIONS:
A15: Weighted percentage (used in graphs) | C15: Poorest | D15: Poor | E15: Middle | F15: Rich | G15: Richest | H15: Poorest | I15: Poor | J15: Middle | K15: Rich | L15: Richest | M15: Poorest | N15: Poor | O15: Middle | P15: Rich | Q15: Richest | R15: Metropolitana | S15: Central | T15: Occidente | U15: Oriental | V15: Para Central | BA15: Water data, raw numbers (weighted) | BC15: Poorest | BD15: Poor | BE15: Middle | BF15: Rich | BG15: Richest | BH15: Poorest | BI15: Poor | BJ15: Middle | BK15: Rich | BL15: Richest | BM15: Poorest | BN15: Poor | BO15: Middle | BP15: Rich | BQ15: Richest | BR15: Metropolitana | BS15: Central | BT15: Occidente | BU15: Oriental | BV15: Para Central
A16: Water | B16: Improved | C16: 88.85266341 | D16: 95.81371401 | E16: 98.60534793 | F16: 99.72341487 | G16: 99.52617132 | H16: 97.6732341 | I16: 99.67808767 | J16: 99.90147653 | K16: 99.96230014 | L16: 99.90741289 | M16: 84.71759366 | N16: 87.3597431 | O16: 94.13796597 | P16: 95.49158214 | Q16: 97.04681775 | R16: 99.62325692 | S16: 95.37324889 | T16: 95.76924352 | U16: 96.69983667 | V16: 93.12988873 | BA16: Water | BB16: Improved | BC16: N/A | BD16: N/A | BE16: N/A | BF16: N/A | BG16: N/A | BH16: N/A | BI16: N/A | BJ16: N/A | BK16: N/A | BL16: N/A | BM16: N/A | BN16: N/A | BO16: N/A | BP16: N/A | BQ16: N/A | BR16: N/A | BS16: N/A | BT16: N/A | BU16: N/A | BV16: N/A
B17: Not Improved | C17: 11.14733659 | D17: 4.18628599 | E17: 1.394652075 | F17: 0.2765851304 | G17: 0.4738286775 | H17: 2.326765904 | I17: 0.3219123295 | J17: 0.09852347104 | K17: 0.0376998593 | L17: 0.09258710808 | M17: 15.28240634 | N17: 12.6402569 | O17: 5.86203403 | P17: 4.50841786 | Q17: 2.953182247 | R17: 0.3767430822 | S17: 4.626751108 | T17: 4.23075648 | U17: 3.300163333 | V17: 6.870111273 | BB17: Not Improved | BC17: N/A | BD17: N/A | BE17: N/A | BF17: N/A | BG17: N/A | BH17: N/A | BI17: N/A | BJ17: N/A | BK17: N/A | BL17: N/A | BM17: N/A | BN17: N/A | BO17: N/A | BP17: N/A | BQ17: N/A | BR17: N/A | BS17: N/A | BT17: N/A | BU17: N/A | BV17: N/A
A18: Water ladder | B18: Basic | C18: =C16*C23/100 -> 86.1270817 | D18: =D16*D23/100 -> 94.21796243 | E18: =E16*E23/100 -> 98.13581483 | F18: 99.39844668 | G18: 99.25605946 | H18: 96.79968963 | I18: 99.44887341 | J18: 99.67043981 | K18: 99.94179862 | L18: 99.6277102 | M18: 80.73094552 | N18: 84.85404525 | O18: 92.14301257 | P18: 93.64066325 | Q18: 95.9749277 | R18: 99.17485276 | S18: 93.56730207 | T18: 95.31588735 | U18: 95.3069423 | V18: 91.80490914 | BA18: Water ladder | BB18: Basic | BC18: N/A | BD18: N/A | BE18: N/A | BF18: N/A | BG18: N/A | BH18: N/A | BI18: N/A | BJ18: N/A | BK18: N/A | BL18: N/A | BM18: N/A | BN18: N/A | BO18: N/A | BP18: N/A | BQ18: N/A | BR18: N/A | BS18: N/A | BT18: N/A | BU18: N/A | BV18: N/A
B19: Limited | C19: =C16*C22/100 -> 2.725581703 | D19: =D16*D22/100 -> 1.595751579 | E19: =E16*E22/100 -> 0.4695330969 | F19: 0.3249681849 | G19: 0.2701118611 | H19: 0.8735444632 | I19: 0.2292142591 | J19: 0.231036721 | K19: 0.02050151593 | L19: 0.2797026871 | M19: 3.98664814 | N19: 2.505697843 | O19: 1.994953402 | P19: 1.850918892 | Q19: 1.071890049 | R19: 0.4484041558 | S19: 1.805946826 | T19: 0.4533561703 | U19: 1.39289437 | V19: 1.324979588 | BB19: Limited | BC19: N/A | BD19: N/A | BE19: N/A | BF19: N/A | BG19: N/A | BH19: N/A | BI19: N/A | BJ19: N/A | BK19: N/A | BL19: N/A | BM19: N/A | BN19: N/A | BO19: N/A | BP19: N/A | BQ19: N/A | BR19: N/A | BS19: N/A | BT19: N/A | BU19: N/A | BV19: N/A
B20: Unimproved | C20: =100-C18-C19-C21 -> 9.246483755 | D20: =100-D18-D19-D21 -> 3.295820326 | E20: =100-E18-E19-E21 -> 1.267980762 | F20: 0.2765851304 | G20: 0.1514369116 | H20: 2.326765904 | I20: 0.3002371414 | J20: 0.09852347104 | K20: 0.0376998593 | L20: 0.09258710808 | M20: 12.88560914 | N20: 10.15446887 | O20: 4.862866502 | P20: 3.014893103 | Q20: 1.992272763 | R20: 0.2488487782 | S20: 4.115520586 | T20: 3.111780904 | U20: 2.876864722 | V20: 5.570028492 | BB20: Unimproved | BC20: N/A | BD20: N/A | BE20: N/A | BF20: N/A | BG20: N/A | BH20: N/A | BI20: N/A | BJ20: N/A | BK20: N/A | BL20: N/A | BM20: N/A | BN20: N/A | BO20: N/A | BP20: N/A | BQ20: N/A | BR20: N/A | BS20: N/A | BT20: N/A | BU20: N/A | BV20: N/A
B21: Surface water | C21: 1.90085284 | D21: 0.8904656638 | E21: 0.1266713129 | F21: 0 | G21: 0.3223917659 | H21: 0 | I21: 0.02167518813 | J21: 0 | K21: 0 | L21: 0 | M21: 2.396797193 | N21: 2.48578803 | O21: 0.9991675286 | P21: 1.493524757 | Q21: 0.9609094837 | R21: 0.127894304 | S21: 0.5112305224 | T21: 1.118975576 | U21: 0.4232986107 | V21: 1.30008278 | BB21: Surface water | BC21: N/A | BD21: N/A | BE21: N/A | BF21: N/A | BG21: N/A | BH21: N/A | BI21: N/A | BJ21: N/A | BK21: N/A | BL21: N/A | BM21: N/A | BN21: N/A | BO21: N/A | BP21: N/A | BQ21: N/A | BR21: N/A | BS21: N/A | BT21: N/A | BU21: N/A | BV21: N/A
A22: Improved water point at more than 30 minutes | B22: Yes | C22: 3.067529547 | D22: 1.665473043 | E22: 0.4761740684 | F22: 0.3258694915 | G22: 0.2713978218 | H22: 0.8943539869 | I22: 0.2299545111 | J22: 0.2312645709 | K22: 0.02050924789 | L22: 0.2799618958 | M22: 4.705808991 | N22: 2.868252303 | O22: 2.119180483 | P22: 1.938305818 | Q22: 1.104508189 | R22: 0.4500998759 | S22: 1.893556996 | T22: 0.4733838899 | U22: 1.440430944 | V22: 1.422722185 | BA22: Improved water point at more than 30 minutes | BB22: Yes | BC22: N/A | BD22: N/A | BE22: N/A | BF22: N/A | BG22: N/A | BH22: N/A | BI22: N/A | BJ22: N/A | BK22: N/A | BL22: N/A | BM22: N/A | BN22: N/A | BO22: N/A | BP22: N/A | BQ22: N/A | BR22: N/A | BS22: N/A | BT22: N/A | BU22: N/A | BV22: N/A
B23: No | C23: 96.93247045 | D23: 98.33452696 | E23: 99.52382593 | F23: 99.67413051 | G23: 99.72860218 | H23: 99.10564601 | I23: 99.77004549 | J23: 99.76873543 | K23: 99.97949075 | L23: 99.7200381 | M23: 95.29419101 | N23: 97.1317477 | O23: 97.88081952 | P23: 98.06169418 | Q23: 98.89549181 | R23: 99.54990012 | S23: 98.106443 | T23: 99.52661611 | U23: 98.55956906 | V23: 98.57727782 | BB23: No | BC23: N/A | BD23: N/A | BE23: N/A | BF23: N/A | BG23: N/A | BH23: N/A | BI23: N/A | BJ23: N/A | BK23: N/A | BL23: N/A | BM23: N/A | BN23: N/A | BO23: N/A | BP23: N/A | BQ23: N/A | BR23: N/A | BS23: N/A | BT23: N/A | BU23: N/A | BV23: N/A
A24: Manually calculated ratios | B24: Improved wells
B25: Improved springs
B26: Other
C27: NATIONAL wealth index quintile | H27: URBAN wealth index quintile | M27: RURAL wealth index quintile | R27: SUB-REGIONS: | BA27: Raw numbers of respondents: | BB27: Use of drinking water sources | BC27: NATIONAL wealth index quintile | BH27: URBAN wealth index quintile | BM27: RURAL wealth index quintile | BR27: SUB-REGIONS:
A28: Percentage based on weighted population | C28: Poorest | D28: Poor | E28: Middle | F28: Rich | G28: Richest | H28: Poorest | I28: Poor | J28: Middle | K28: Rich | L28: Richest | M28: Poorest | N28: Poor | O28: Middle | P28: Rich | Q28: Richest | R28: Metropolitana | S28: Central | T28: Occidente | U28: Oriental | V28: Para Central | BA28: Water data, raw numbers (weighted) | BC28: Poorest | BD28: Poor | BE28: Middle | BF28: Rich | BG28: Richest | BH28: Poorest | BI28: Poor | BJ28: Middle | BK28: Rich | BL28: Richest | BM28: Poorest | BN28: Poor | BO28: Middle | BP28: Rich | BQ28: Richest | BR28: Metropolitana | BS28: Central | BT28: Occidente | BU28: Oriental | BV28: Para Central
A29: Piped water | B29: Yes | C29: 64.28775818 | D29: 76.99003444 | E29: 84.94444439 | F29: 92.31198092 | G29: 93.96770964 | H29: 87.25388218 | I29: 93.11763317 | J29: 95.34552196 | K29: 97.5788811 | L29: 95.73783973 | M29: 55.09832216 | N29: 58.43923081 | O29: 69.18238108 | P29: 70.48878503 | Q29: 67.29668092 | R29: 96.50734869 | S29: 81.61326193 | T29: 80.59674397 | U29: 72.68508009 | V29: 74.72038821 | BA29: Piped water | BB29: Yes | BC29: N/A | BD29: N/A | BE29: N/A | BF29: N/A | BG29: N/A | BH29: N/A | BI29: N/A | BJ29: N/A | BK29: N/A | BL29: N/A | BM29: N/A | BN29: N/A | BO29: N/A | BP29: N/A | BQ29: N/A | BR29: N/A | BS29: N/A | BT29: N/A | BU29: N/A | BV29: N/A
B30: No | C30: 35.71224182 | D30: 23.00996556 | E30: 15.05555561 | F30: 7.688019081 | G30: 6.032290358 | H30: 12.74611782 | I30: 6.882366829 | J30: 4.654478044 | K30: 2.421118897 | L30: 4.262160269 | M30: 44.90167784 | N30: 41.56076919 | O30: 30.81761892 | P30: 29.51121497 | Q30: 32.70331908 | R30: 3.492651306 | S30: 18.38673807 | T30: 19.40325603 | U30: 27.31491991 | V30: 25.27961179 | BB30: No | BC30: N/A | BD30: N/A | BE30: N/A | BF30: N/A | BG30: N/A | BH30: N/A | BI30: N/A | BJ30: N/A | BK30: N/A | BL30: N/A | BM30: N/A | BN30: N/A | BO30: N/A | BP30: N/A | BQ30: N/A | BR30: N/A | BS30: N/A | BT30: N/A | BU30: N/A | BV30: N/A
A31: Piped water on premises | B31: Yes | C31: 47.10565354 | D31: 66.31200709 | E31: 78.49076242 | F31: 88.98174798 | G31: 93.50747957 | H31: 68.42351588 | I31: 84.72231078 | J31: 91.7596304 | K31: 96.10336989 | L31: 95.37523332 | M31: 36.16833673 | N31: 48.63023133 | O31: 60.26898346 | P31: 64.59198794 | Q31: 63.85590211 | R31: 92.93104877 | S31: 74.32617995 | T31: 70.87350485 | U31: 62.70516447 | V31: 65.69740971 | BA31: Piped water on premises | BB31: Yes | BC31: N/A | BD31: N/A | BE31: N/A | BF31: N/A | BG31: N/A | BH31: N/A | BI31: N/A | BJ31: N/A | BK31: N/A | BL31: N/A | BM31: N/A | BN31: N/A | BO31: N/A | BP31: N/A | BQ31: N/A | BR31: N/A | BS31: N/A | BT31: N/A | BU31: N/A | BV31: N/A
B32: No | C32: 52.89434646 | D32: 33.68799291 | E32: 21.50923758 | F32: 11.01825202 | G32: 6.492520426 | H32: 31.57648412 | I32: 15.27768922 | J32: 8.240369599 | K32: 3.896630107 | L32: 4.624766676 | M32: 63.83166327 | N32: 51.36976867 | O32: 39.73101654 | P32: 35.40801206 | Q32: 36.14409789 | R32: 7.068951231 | S32: 25.67382005 | T32: 29.12649515 | U32: 37.29483553 | V32: 34.30259029 | BB32: No | BC32: N/A | BD32: N/A | BE32: N/A | BF32: N/A | BG32: N/A | BH32: N/A | BI32: N/A | BJ32: N/A | BK32: N/A | BL32: N/A | BM32: N/A | BN32: N/A | BO32: N/A | BP32: N/A | BQ32: N/A | BR32: N/A | BS32: N/A | BT32: N/A | BU32: N/A | BV32: N/A
A33: Piped water into dwelling | B33: Yes | C33: N/A | D33: N/A | E33: N/A | F33: N/A | G33: N/A | H33: N/A | I33: N/A | J33: N/A | K33: N/A | L33: N/A | M33: N/A | N33: N/A | O33: N/A | P33: N/A | Q33: N/A | R33: N/A | S33: N/A | T33: N/A | U33: N/A | V33: N/A | BA33: Piped water into dwelling | BB33: Yes | BC33: N/A | BD33: N/A | BE33: N/A | BF33: N/A | BG33: N/A | BH33: N/A | BI33: N/A | BJ33: N/A | BK33: N/A | BL33: N/A | BM33: N/A | BN33: N/A | BO33: N/A | BP33: N/A | BQ33: N/A | BR33: N/A | BS33: N/A | BT33: N/A | BU33: N/A | BV33: N/A
B34: No | C34: N/A | D34: N/A | E34: N/A | F34: N/A | G34: N/A | H34: N/A | I34: N/A | J34: N/A | K34: N/A | L34: N/A | M34: N/A | N34: N/A | O34: N/A | P34: N/A | Q34: N/A | R34: N/A | S34: N/A | T34: N/A | U34: N/A | V34: N/A | BB34: No | BC34: N/A | BD34: N/A | BE34: N/A | BF34: N/A | BG34: N/A | BH34: N/A | BI34: N/A | BJ34: N/A | BK34: N/A | BL34: N/A | BM34: N/A | BN34: N/A | BO34: N/A | BP34: N/A | BQ34: N/A | BR34: N/A | BS34: N/A | BT34: N/A | BU34: N/A | BV34: N/A
A35: Water source on premises | B35: Yes | C35: 56.42734304 | D35: 75.99696756 | E35: 86.80720993 | F35: 93.11656031 | G35: 96.82369162 | H35: 73.49594895 | I35: 89.210231 | J35: 94.48552536 | K35: 97.50384673 | L35: 97.9008019 | M35: 46.55914909 | N35: 60.86323532 | O35: 72.08188683 | P35: 78.36295387 | Q35: 80.61833869 | R35: 93.81727457 | S35: 78.87086741 | T35: 77.63785179 | U35: 77.7746514 | V35: 76.31566195 | BA35: Water source on premises | BB35: Yes | BC35: N/A | BD35: N/A | BE35: N/A | BF35: N/A | BG35: N/A | BH35: N/A | BI35: N/A | BJ35: N/A | BK35: N/A | BL35: N/A | BM35: N/A | BN35: N/A | BO35: N/A | BP35: N/A | BQ35: N/A | BR35: N/A | BS35: N/A | BT35: N/A | BU35: N/A | BV35: N/A
B36: No | C36: 43.57265696 | D36: 24.00303244 | E36: 13.19279007 | F36: 6.88343969 | G36: 3.176308379 | H36: 26.50405105 | I36: 10.789769 | J36: 5.514474644 | K36: 2.496153275 | L36: 2.099198104 | M36: 53.44085091 | N36: 39.13676468 | O36: 27.91811317 | P36: 21.63704613 | Q36: 19.38166131 | R36: 6.182725434 | S36: 21.12913259 | T36: 22.36214821 | U36: 22.2253486 | V36: 23.68433805 | BB36: No | BC36: N/A | BD36: N/A | BE36: N/A | BF36: N/A | BG36: N/A | BH36: N/A | BI36: N/A | BJ36: N/A | BK36: N/A | BL36: N/A | BM36: N/A | BN36: N/A | BO36: N/A | BP36: N/A | BQ36: N/A | BR36: N/A | BS36: N/A | BT36: N/A | BU36: N/A | BV36: N/A
A37: Improved Water source on premises | B37: Yes | C37: 55.35878721 | D37: 74.73845717 | E37: 86.34166823 | F37: 93.09323906 | G37: 96.80766665 | H37: 72.68754265 | I37: 89.01193484 | J37: 94.48552536 | K37: 97.46614687 | L37: 97.9008019 | M37: 45.31611174 | N37: 59.15745107 | O37: 70.64069491 | P37: 77.47907518 | Q37: 80.1525407 | R37: 93.81727457 | S37: 78.55537077 | T37: 76.86727326 | U37: 77.03762242 | V37: 74.81951235 | BA37: Improved water source on premises | BB37: Yes | BC37: N/A | BD37: N/A | BE37: N/A | BF37: N/A | BG37: N/A | BH37: N/A | BI37: N/A | BJ37: N/A | BK37: N/A | BL37: N/A | BM37: N/A | BN37: N/A | BO37: N/A | BP37: N/A | BQ37: N/A | BR37: N/A | BS37: N/A | BT37: N/A | BU37: N/A | BV37: N/A
B38: No | C38: 44.64121279 | D38: 25.26154283 | E38: 13.65833177 | F38: 6.906760939 | G38: 3.192333354 | H38: 27.31245735 | I38: 10.98806516 | J38: 5.514474644 | K38: 2.533853134 | L38: 2.099198104 | M38: 54.68388826 | N38: 40.84254893 | O38: 29.35930509 | P38: 22.52092482 | Q38: 19.8474593 | R38: 6.182725434 | S38: 21.44462923 | T38: 23.13272674 | U38: 22.96237758 | V38: 25.18048765 | BB38: No | BC38: N/A | BD38: N/A | BE38: N/A | BF38: N/A | BG38: N/A | BH38: N/A | BI38: N/A | BJ38: N/A | BK38: N/A | BL38: N/A | BM38: N/A | BN38: N/A | BO38: N/A | BP38: N/A | BQ38: N/A | BR38: N/A | BS38: N/A | BT38: N/A | BU38: N/A | BV38: N/A
A39: Piped water on premises available when needed | B39: Yes | C39: N/A | D39: N/A | E39: N/A | F39: N/A | G39: N/A | H39: N/A | I39: N/A | J39: N/A | K39: N/A | L39: N/A | M39: N/A | N39: N/A | O39: N/A | P39: N/A | Q39: N/A | R39: N/A | S39: N/A | T39: N/A | U39: N/A | V39: N/A | BA39: Piped water on premises available when needed | BB39: Yes | BC39: N/A | BD39: N/A | BE39: N/A | BF39: N/A | BG39: N/A | BH39: N/A | BI39: N/A | BJ39: N/A | BK39: N/A | BL39: N/A | BM39: N/A | BN39: N/A | BO39: N/A | BP39: N/A | BQ39: N/A | BR39: N/A | BS39: N/A | BT39: N/A | BU39: N/A | BV39: N/A
B40: No | C40: N/A | D40: N/A | E40: N/A | F40: N/A | G40: N/A | H40: N/A | I40: N/A | J40: N/A | K40: N/A | L40: N/A | M40: N/A | N40: N/A | O40: N/A | P40: N/A | Q40: N/A | R40: N/A | S40: N/A | T40: N/A | U40: N/A | V40: N/A | BB40: No | BC40: N/A | BD40: N/A | BE40: N/A | BF40: N/A | BG40: N/A | BH40: N/A | BI40: N/A | BJ40: N/A | BK40: N/A | BL40: N/A | BM40: N/A | BN40: N/A | BO40: N/A | BP40: N/A | BQ40: N/A | BR40: N/A | BS40: N/A | BT40: N/A | BU40: N/A | BV40: N/A
A41: Water point at more than 30 minutes | B41: Yes | C41: 4.011205006 | D41: 1.937440902 | E41: 0.4977349688 | F41: 0.336791495 | G41: 0.287985577 | H41: 0.9835494867 | I41: 0.276568888 | J41: 0.2310331715 | K41: 0.02050149458 | L41: 0.3085350225 | M41: 6.697903211 | N41: 3.216049453 | O41: 2.535963785 | P41: 1.968177186 | Q41: 1.102678592 | R41: 0.5129958123 | S41: 2.555875913 | T41: 0.6503050061 | U41: 1.594687871 | V41: 1.863271429 | BA41: Water point at more than 30 minutes | BB41: Yes | BC41: N/A | BD41: N/A | BE41: N/A | BF41: N/A | BG41: N/A | BH41: N/A | BI41: N/A | BJ41: N/A | BK41: N/A | BL41: N/A | BM41: N/A | BN41: N/A | BO41: N/A | BP41: N/A | BQ41: N/A | BR41: N/A | BS41: N/A | BT41: N/A | BU41: N/A | BV41: N/A
B42: No | C42: 95.98879499 | D42: 98.0625591 | E42: 99.50226503 | F42: 99.66320851 | G42: 99.71201442 | H42: 99.01645051 | I42: 99.72343111 | J42: 99.76896683 | K42: 99.97949851 | L42: 99.69146498 | M42: 93.30209679 | N42: 96.78395055 | O42: 97.46403622 | P42: 98.03182281 | Q42: 98.89732141 | R42: 99.48700419 | S42: 97.44412409 | T42: 99.34969499 | U42: 98.40531213 | V42: 98.13672857 | BB42: No | BC42: N/A | BD42: N/A | BE42: N/A | BF42: N/A | BG42: N/A | BH42: N/A | BI42: N/A | BJ42: N/A | BK42: N/A | BL42: N/A | BM42: N/A | BN42: N/A | BO42: N/A | BP42: N/A | BQ42: N/A | BR42: N/A | BS42: N/A | BT42: N/A | BU42: N/A | BV42: N/A
A43: Water source available when needed | B43: Yes | C43: N/A | D43: N/A | E43: N/A | F43: N/A | G43: N/A | H43: N/A | I43: N/A | J43: N/A | K43: N/A | L43: N/A | M43: N/A | N43: N/A | O43: N/A | P43: N/A | Q43: N/A | R43: N/A | S43: N/A | T43: N/A | U43: N/A | V43: N/A | BA43: Water source available when needed | BB43: Yes | BC43: N/A | BD43: N/A | BE43: N/A | BF43: N/A | BG43: N/A | BH43: N/A | BI43: N/A | BJ43: N/A | BK43: N/A | BL43: N/A | BM43: N/A | BN43: N/A | BO43: N/A | BP43: N/A | BQ43: N/A | BR43: N/A | BS43: N/A | BT43: N/A | BU43: N/A | BV43: N/A
B44: No | C44: N/A | D44: N/A | E44: N/A | F44: N/A | G44: N/A | H44: N/A | I44: N/A | J44: N/A | K44: N/A | L44: N/A | M44: N/A | N44: N/A | O44: N/A | P44: N/A | Q44: N/A | R44: N/A | S44: N/A | T44: N/A | U44: N/A | V44: N/A | BB44: No | BC44: N/A | BD44: N/A | BE44: N/A | BF44: N/A | BG44: N/A | BH44: N/A | BI44: N/A | BJ44: N/A | BK44: N/A | BL44: N/A | BM44: N/A | BN44: N/A | BO44: N/A | BP44: N/A | BQ44: N/A | BR44: N/A | BS44: N/A | BT44: N/A | BU44: N/A | BV44: N/A
A45: Improved water source available when needed | B45: Yes | C45: N/A | D45: N/A | E45: N/A | F45: N/A | G45: N/A | H45: N/A | I45: N/A | J45: N/A | K45: N/A | L45: N/A | M45: N/A | N45: N/A | O45: N/A | P45: N/A | Q45: N/A | R45: N/A | S45: N/A | T45: N/A | U45: N/A | V45: N/A | BA45: Improved water source available when needed | BB45: Yes | BC45: N/A | BD45: N/A | BE45: N/A | BF45: N/A | BG45: N/A | BH45: N/A | BI45: N/A | BJ45: N/A | BK45: N/A | BL45: N/A | BM45: N/A | BN45: N/A | BO45: N/A | BP45: N/A | BQ45: N/A | BR45: N/A | BS45: N/A | BT45: N/A | BU45: N/A | BV45: N/A
B46: No | C46: N/A | D46: N/A | E46: N/A | F46: N/A | G46: N/A | H46: N/A | I46: N/A | J46: N/A | K46: N/A | L46: N/A | M46: N/A | N46: N/A | O46: N/A | P46: N/A | Q46: N/A | R46: N/A | S46: N/A | T46: N/A | U46: N/A | V46: N/A | BB46: No | BC46: N/A | BD46: N/A | BE46: N/A | BF46: N/A | BG46: N/A | BH46: N/A | BI46: N/A | BJ46: N/A | BK46: N/A | BL46: N/A | BM46: N/A | BN46: N/A | BO46: N/A | BP46: N/A | BQ46: N/A | BR46: N/A | BS46: N/A | BT46: N/A | BU46: N/A | BV46: N/A
A47: Microbiological quality at point of collection | B47: Not contaminated (No E. coli in 100 mL) | C47: N/A | D47: N/A | E47: N/A | F47: N/A | G47: N/A | H47: N/A | I47: N/A | J47: N/A | K47: N/A | L47: N/A | M47: N/A | N47: N/A | O47: N/A | P47: N/A | Q47: N/A | R47: N/A | S47: N/A | T47: N/A | U47: N/A | V47: N/A | BA47: Microbiological quality at point of collection | BB47: Not contaminated (No E. coli in 100 mL) | BC47: N/A | BD47: N/A | BE47: N/A | BF47: N/A | BG47: N/A | BH47: N/A | BI47: N/A | BJ47: N/A | BK47: N/A | BL47: N/A | BM47: N/A | BN47: N/A | BO47: N/A | BP47: N/A | BQ47: N/A | BR47: N/A | BS47: N/A | BT47: N/A | BU47: N/A | BV47: N/A
B48: Contaminated (E. coli detected in 100 mL) | C48: N/A | D48: N/A | E48: N/A | F48: N/A | G48: N/A | H48: N/A | I48: N/A | J48: N/A | K48: N/A | L48: N/A | M48: N/A | N48: N/A | O48: N/A | P48: N/A | Q48: N/A | R48: N/A | S48: N/A | T48: N/A | U48: N/A | V48: N/A | BB48: Contaminated (E. coli detected in 100 mL) | BC48: N/A | BD48: N/A | BE48: N/A | BF48: N/A | BG48: N/A | BH48: N/A | BI48: N/A | BJ48: N/A | BK48: N/A | BL48: N/A | BM48: N/A | BN48: N/A | BO48: N/A | BP48: N/A | BQ48: N/A | BR48: N/A | BS48: N/A | BT48: N/A | BU48: N/A | BV48: N/A
B49: Highly contaminated (>100 CFU/100 mL) | C49: N/A | D49: N/A | E49: N/A | F49: N/A | G49: N/A | H49: N/A | I49: N/A | J49: N/A | K49: N/A | L49: N/A | M49: N/A | N49: N/A | O49: N/A | P49: N/A | Q49: N/A | R49: N/A | S49: N/A | T49: N/A | U49: N/A | V49: N/A | BB49: Highly contaminated (>100 CFU/100 mL) | BC49: N/A | BD49: N/A | BE49: N/A | BF49: N/A | BG49: N/A | BH49: N/A | BI49: N/A | BJ49: N/A | BK49: N/A | BL49: N/A | BM49: N/A | BN49: N/A | BO49: N/A | BP49: N/A | BQ49: N/A | BR49: N/A | BS49: N/A | BT49: N/A | BU49: N/A | BV49: N/A
A50: Microbiological quality of improved water sources at point of collection | B50: Not contaminated (No E. coli in 100 mL) | C50: N/A | D50: N/A | E50: N/A | F50: N/A | G50: N/A | H50: N/A | I50: N/A | J50: N/A | K50: N/A | L50: N/A | M50: N/A | N50: N/A | O50: N/A | P50: N/A | Q50: N/A | R50: N/A | S50: N/A | T50: N/A | U50: N/A | V50: N/A | BA50: Microbiological quality of improved water sources at point of collection | BB50: Not contaminated (No E. coli in 100 mL) | BC50: N/A | BD50: N/A | BE50: N/A | BF50: N/A | BG50: N/A | BH50: N/A | BI50: N/A | BJ50: N/A | BK50: N/A | BL50: N/A | BM50: N/A | BN50: N/A | BO50: N/A | BP50: N/A | BQ50: N/A | BR50: N/A | BS50: N/A | BT50: N/A | BU50: N/A | BV50: N/A
B51: Contaminated (E. coli detected in 100 mL) | C51: N/A | D51: N/A | E51: N/A | F51: N/A | G51: N/A | H51: N/A | I51: N/A | J51: N/A | K51: N/A | L51: N/A | M51: N/A | N51: N/A | O51: N/A | P51: N/A | Q51: N/A | R51: N/A | S51: N/A | T51: N/A | U51: N/A | V51: N/A | BB51: Contaminated (E. coli detected in 100 mL) | BC51: N/A | BD51: N/A | BE51: N/A | BF51: N/A | BG51: N/A | BH51: N/A | BI51: N/A | BJ51: N/A | BK51: N/A | BL51: N/A | BM51: N/A | BN51: N/A | BO51: N/A | BP51: N/A | BQ51: N/A | BR51: N/A | BS51: N/A | BT51: N/A | BU51: N/A | BV51: N/A
B52: Highly contaminated (>100 CFU/100 mL) | C52: N/A | D52: N/A | E52: N/A | F52: N/A | G52: N/A | H52: N/A | I52: N/A | J52: N/A | K52: N/A | L52: N/A | M52: N/A | N52: N/A | O52: N/A | P52: N/A | Q52: N/A | R52: N/A | S52: N/A | T52: N/A | U52: N/A | V52: N/A | BB52: Highly contaminated (>100 CFU/100 mL) | BC52: N/A | BD52: N/A | BE52: N/A | BF52: N/A | BG52: N/A | BH52: N/A | BI52: N/A | BJ52: N/A | BK52: N/A | BL52: N/A | BM52: N/A | BN52: N/A | BO52: N/A | BP52: N/A | BQ52: N/A | BR52: N/A | BS52: N/A | BT52: N/A | BU52: N/A | BV52: N/A
A53: Microbiological quality of piped on premises at point of collection | B53: Not contaminated (No E. coli in 100 mL) | C53: N/A | D53: N/A | E53: N/A | F53: N/A | G53: N/A | H53: N/A | I53: N/A | J53: N/A | K53: N/A | L53: N/A | M53: N/A | N53: N/A | O53: N/A | P53: N/A | Q53: N/A | R53: N/A | S53: N/A | T53: N/A | U53: N/A | V53: N/A | BA53: Microbiological quality of piped on premises at point of collection | BB53: Not contaminated (No E. coli in 100 mL) | BC53: N/A | BD53: N/A | BE53: N/A | BF53: N/A | BG53: N/A | BH53: N/A | BI53: N/A | BJ53: N/A | BK53: N/A | BL53: N/A | BM53: N/A | BN53: N/A | BO53: N/A | BP53: N/A | BQ53: N/A | BR53: N/A | BS53: N/A | BT53: N/A | BU53: N/A | BV53: N/A
B54: Contaminated (E. coli detected in 100 mL) | C54: N/A | D54: N/A | E54: N/A | F54: N/A | G54: N/A | H54: N/A | I54: N/A | J54: N/A | K54: N/A | L54: N/A | M54: N/A | N54: N/A | O54: N/A | P54: N/A | Q54: N/A | R54: N/A | S54: N/A | T54: N/A | U54: N/A | V54: N/A | BB54: Contaminated (E. coli detected in 100 mL) | BC54: N/A | BD54: N/A | BE54: N/A | BF54: N/A | BG54: N/A | BH54: N/A | BI54: N/A | BJ54: N/A | BK54: N/A | BL54: N/A | BM54: N/A | BN54: N/A | BO54: N/A | BP54: N/A | BQ54: N/A | BR54: N/A | BS54: N/A | BT54: N/A | BU54: N/A | BV54: N/A
B55: Highly contaminated (>100 CFU/100 mL) | C55: N/A | D55: N/A | E55: N/A | F55: N/A | G55: N/A | H55: N/A | I55: N/A | J55: N/A | K55: N/A | L55: N/A | M55: N/A | N55: N/A | O55: N/A | P55: N/A | Q55: N/A | R55: N/A | S55: N/A | T55: N/A | U55: N/A | V55: N/A | BB55: Highly contaminated (>100 CFU/100 mL) | BC55: N/A | BD55: N/A | BE55: N/A | BF55: N/A | BG55: N/A | BH55: N/A | BI55: N/A | BJ55: N/A | BK55: N/A | BL55: N/A | BM55: N/A | BN55: N/A | BO55: N/A | BP55: N/A | BQ55: N/A | BR55: N/A | BS55: N/A | BT55: N/A | BU55: N/A | BV55: N/A
C56: NATIONAL wealth index quintile | H56: URBAN wealth index quintile | M56: RURAL wealth index quintile | R56: SUB-REGIONS: | BA56: Raw numbers of respondents: | BB56: Use of drinking water sources | BC56: NATIONAL wealth index quintile | BH56: URBAN wealth index quintile | BM56: RURAL wealth index quintile | BR56: SUB-REGIONS:
A57: Percentage based on weighted population | C57: Poorest | D57: Poor | E57: Middle | F57: Rich | G57: Richest | H57: Poorest | I57: Poor | J57: Middle | K57: Rich | L57: Richest | M57: Poorest | N57: Poor | O57: Middle | P57: Rich | Q57: Richest | R57: Metropolitana | S57: Central | T57: Occidente | U57: Oriental | V57: Para Central | BA57: Water data, raw numbers (weighted) | BC57: Poorest | BD57: Poor | BE57: Middle | BF57: Rich | BG57: Richest | BH57: Poorest | BI57: Poor | BJ57: Middle | BK57: Rich | BL57: Richest | BM57: Poorest | BN57: Poor | BO57: Middle | BP57: Rich | BQ57: Richest | BR57: Metropolitana | BS57: Central | BT57: Occidente | BU57: Oriental | BV57: Para Central
A58: Fuente principal de agua para beber | B58: Tubería dentro de la vivienda | C58: 12.3730329 | D58: 24.76515589 | E58: 38.70429729 | F58: 46.15893735 | G58: 38.4082469 | H58: 27.69543979 | I58: 42.55072549 | J58: 49.36077057 | K58: 49.45638244 | L58: 35.91230215 | M58: 8.390636325 | N58: 12.2526783 | O58: 18.68123875 | P58: 23.49076663 | Q58: 25.08257123 | R58: 40.75717679 | S58: 32.05203967 | T58: 35.61183806 | U58: 21.48703236 | V58: 25.66003966
B59: Tubería dentro del terreno, patio o lote | C59: 34.17928883 | D59: 38.15591355 | E59: 30.65327291 | F59: 18.44568812 | G59: 9.161588617 | H59: 38.01337959 | I59: 31.17609478 | J59: 19.92605642 | K59: 10.39138963 | L59: 5.760876397 | M59: 27.70337899 | N59: 35.74041984 | O59: 40.4836165 | P59: 35.87447277 | Q59: 31.97740262 | R59: 10.7926468 | S59: 30.14698215 | T59: 30.99307891 | U59: 31.51726084 | V59: 33.26743329
B60: Tubería al vecino | C60: 11.03889348 | D60: 5.040478195 | E60: 2.674950474 | F60: 0.9385451958 | G60: 0.1252387401 | H60: 10.61680977 | I60: 3.318274142 | J60: 1.533926634 | K60: 0.1260223166 | L60: 0.1011654805 | M60: 11.53595229 | N60: 6.522823022 | O60: 5.174477235 | P60: 2.671601168 | Q60: 0.626887544 | R60: 1.395993446 | S60: 3.469749021 | T60: 5.338258972 | U60: 5.836937741 | V60: 4.671347877
B61: Llave/grifo público | C61: 6.035511573 | D61: 5.438420749 | E61: 3.100514959 | F61: 1.886636112 | G61: 0.1481431581 | H61: 7.903766692 | I61: 4.338765521 | J61: 1.600411642 | K61: 0.9282356842 | L61: 0.01638900627 | M61: 7.394033144 | N61: 3.286176459 | O61: 3.477928955 | P61: 2.605668298 | Q61: 2.81389127 | R61: 1.714571121 | S61: 3.547724497 | T61: 4.318961636 | U61: 3.473701164 | V61: 4.239402558
B62: Pozo con tubería | C62: 1.600936085 | D62: 2.016313006 | E62: 1.239226014 | F62: 0.9394599682 | G62: 0.6972454264 | H62: 0.9465196794 | I62: 1.263851479 | J62: 0.6071739906 | K62: 0.09769893858 | L62: 0.4883799246 | M62: 1.413596251 | N62: 2.106281576 | O62: 2.846629633 | P62: 2.185672569 | Q62: 2.966682662 | R62: 0.02923164585 | S62: 1.002461894 | T62: 1.264117867 | U62: 2.613649937 | V62: 2.306549883
B63: Pozo protegido | C63: 11.18971942 | D63: 9.766046279 | E63: 7.09237534 | F63: 3.528503511 | G63: 1.921823516 | H63: 6.161502861 | I63: 3.190538132 | J63: 2.196211997 | K63: 0.6122380039 | L63: 0.9814276868 | M63: 13.4996339 | N63: 12.13017141 | O63: 12.5365119 | P63: 12.72909682 | Q63: 15.72684196 | R63: 0.7548033511 | S63: 4.22612509 | T63: 6.944633585 | U63: 14.37191185 | V63: 10.19504104
B64: Pozo no protegido | C64: 2.317205283 | D64: 1.278114833 | E64: 0.5011629207 | F64: 0.07809923607 | G64: 0.03028210759 | H64: 0.7003752221 | I64: 0.2439429902 | J64: 0 | K64: 0.0376998593 | L64: 0 | M64: 2.471377127 | N64: 3.30269243 | O64: 2.233400948 | P64: 0.7585202426 | Q64: 0.6825554348 | R64: 0.07773321158 | S64: 0.3312401587 | T64: 0.9164000053 | U64: 1.508047185 | V64: 2.028369375
B65: Manantial protegido | C65: 8.185094085 | D65: 4.298233182 | E65: 1.917887092 | F65: 0.7792972751 | G65: 0.2838692506 | H65: 1.257615135 | I65: 0.5483917777 | J65: 0.2177639504 | K65: 0.3274406916 | L65: 0.06837911011 | M65: 10.71498952 | N65: 10.73825689 | O65: 6.244168306 | P65: 4.849758156 | Q65: 4.146983466 | R65: 0.8120770259 | S65: 5.652850528 | T65: 3.135339601 | U65: 2.624969739 | V65: 4.016274364
B66: Manantial no protegido | C66: 6.448439827 | D66: 1.864624536 | E66: 0.5711825312 | F66: 0.165894952 | G66: 0.06422774036 | H66: 1.193453015 | I66: 0 | J66: 0.08324801984 | K66: 0 | L66: 0 | M66: 9.973379907 | N66: 6.542784858 | O66: 2.593608791 | P66: 1.833057497 | Q66: 0.932960503 | R66: 0.1417407034 | S66: 3.727640822 | T66: 1.752170892 | U66: 1.15803536 | V66: 3.139064965
B67: Recogen agua de lluvia | C67: 1.756756317 | D67: 0.5846134619 | E67: 0.4097397579 | F67: 0 | G67: 0 | H67: 0.223810138 | I67: 0.03600633043 | J67: 0 | K67: 0 | L67: 0 | M67: 2.636157139 | N67: 1.617672683 | O67: 1.080892704 | P67: 0.7218170141 | Q67: 0.7499487136 | R67: 0.3295142942 | S67: 0.6436700247 | T67: 1.240601978 | U67: 0.3531288914 | V67: 0
B68: Carro-tanque / camión cisterna | C68: 1.581939591 | D68: 1.303321541 | E68: 0.6872589754 | F68: 0.5586819278 | G68: 0.1930438644 | H68: 1.601844939 | I68: 0.192213034 | J68: 0.2396114995 | K68: 0.0520707742 | L68: 0 | M68: 1.054051108 | N68: 1.981695818 | O68: 1.140001869 | P68: 1.453156867 | Q68: 2.33768148 | R68: 0.5424693004 | S68: 0.66687985 | T68: 1.969383911 | U68: 0.3297088597 | V68: 0.8393807292
B69: Carreta con tanque/tambor pequeño | C69: 0 | D69: 0 | E69: 0.05028135406 | F69: 0 | G69: 0 | H69: 0 | I69: 0 | J69: 0 | K69: 0 | L69: 0 | M69: 0 | N69: 0 | O69: 0 | P69: 0.1319779582 | Q69: 0 | R69: 0 | S69: 0.04757245382 | T69: 0 | U69: 0 | V69: 0
B70: Agua de superficie (río, arroyo, represa, lago, estanque, canal, canal de irrigación) | C70: 1.69101972 | D70: 0.8449725558 | E70: 0.1229726058 | F70: 0 | G70: 0.3219395088 | H70: 0 | I70: 0.02088108001 | J70: 0 | K70: 0 | L70: 0 | M70: 2.120303812 | N70: 2.323644476 | O70: 0.9474658323 | P70: 1.452179836 | Q70: 0.954644058 | R70: 0.125904155 | S70: 0.4932141597 | T70: 1.058637533 | U70: 0.3982085384 | V70: 1.239351391
B71: Agua embotellada/envasada | C71: 0.9114911184 | D71: 4.445218162 | E71: 12.07554375 | F71: 26.48766542 | G71: 48.58697185 | H71: 3.252545506 | I71: 13.06322699 | J71: 24.21954983 | K71: 37.97082166 | L71: 56.57849313 | M71: 0.3751650027 | N71: 0.9835670945 | O71: 2.472500125 | P71: 8.777593898 | Q71: 10.6179268 | R71: 42.49477315 | S71: 13.91719372 | T71: 4.953029005 | U71: 14.09153528 | V71: 7.934419331
B72: Otra (especifique) | C72: 0.6906717652 | D72: 0.1985740662 | E72: 0.1993340169 | F72: 0.03259094233 | G72: 0.05737932076 | H72: 0.4329376668 | I72: 0.05708825938 | J72: 0.0152754512 | K72: 0 | L72: 0.09258710808 | M72: 0.7173454907 | N72: 0.47113514 | O72: 0.08755845954 | P72: 0.464660284 | Q72: 0.3830222508 | R72: 0.03136501222 | S72: 0.0746559681 | T72: 0.5035480504 | U72: 0.2358722485 | V72: 0.4633255416
A108: =A1026 -> El Salvador
A109: =A1034 -> 2014
A110: Use of sanitation facilities
A111: by wealth quintile and sub-national region
A112: Notes:
A113: WHO/UNICEF JMP customised wealth index excludes water,
A114: sanitation and hygiene assets.
A115: Survey used for analysis: | B115: =A1025 -> MICS14
A116: =B1030 -> 
A117: =B1029 -> 
A120: Use of sanitation facilities | C120: NATIONAL wealth index quintile | H120: URBAN wealth index quintile | M120: RURAL wealth index quintile | R120: SUB-REGIONS: | BA120: Raw numbers of respondents: | BB120: Use of sanitation facilities | BC120: NATIONAL wealth index quintile | BH120: URBAN wealth index quintile | BM120: RURAL wealth index quintile | BR120: SUB-REGIONS:
A121: Weighted percentage (used in graphs) | C121: Poorest | D121: Poor | E121: Middle | F121: Rich | G121: Richest | H121: Poorest | I121: Poor | J121: Middle | K121: Rich | L121: Richest | M121: Poorest | N121: Poor | O121: Middle | P121: Rich | Q121: Richest | R121: Metropolitana | S121: Central | T121: Occidente | U121: Oriental | V121: Para Central | BA121: Sanitation data, raw numbers (weighted) | BC121: Poorest | BD121: Poor | BE121: Middle | BF121: Rich | BG121: Richest | BH121: Poorest | BI121: Poor | BJ121: Middle | BK121: Rich | BL121: Richest | BM121: Poorest | BN121: Poor | BO121: Middle | BP121: Rich | BQ121: Richest | BR121: Metropolitana | BS121: Central | BT121: Occidente | BU121: Oriental | BV121: Para Central
A122: Sanitation | B122: Improved | C122: =C153+C154+C155+C158+C159+C161+C162 -> 88.15290991 | D122: =D153+D154+D155+D158+D159+D161+D162 -> 96.89914471 | E122: 98.89981865 | F122: 99.23981855 | G122: 99.79941484 | H122: 96.7845732 | I122: 99.21637765 | J122: 99.52940113 | K122: 99.84612656 | L122: 99.71410317 | M122: 82.33022292 | N122: 89.59084222 | O122: 95.70982886 | P122: 97.35107849 | Q122: 98.30511696 | R122: 99.35912909 | S122: 96.3109917 | T122: 96.83184753 | U122: 94.07391838 | V122: 95.16023754 | BA122: Sanitation | BB122: Improved | BC122: 6996.522363 | BD122: 7917.058967 | BE122: 8689.833534 | BF122: 9226.364607 | BG122: 9656.862659 | BH122: 5261.913036 | BI122: 5673.35796 | BJ122: 5883.128719 | BK122: 5997.790202 | BL122: 6033.559856 | BM122: 2438.853147 | BN122: 2557.037162 | BO122: 2688.620503 | BP122: 2954.499855 | BQ122: 2997.88169 | BR122: 12223.77847 | BS122: 8359.673573 | BT122: 9140.618653 | BU122: 8259.317914 | BV122: 4503.253523
B123: Not Improved | C123: =100-C122 -> 11.84709009 | D123: =100-D122 -> 3.100855289 | E123: 1.100181352 | F123: 0.7601814457 | G123: 0.2005851617 | H123: 3.215426796 | I123: 0.7836223495 | J123: 0.4705988716 | K123: 0.1538734381 | L123: 0.2858968257 | M123: 17.66977708 | N123: 10.40915778 | O123: 4.290171145 | P123: 2.648921512 | Q123: 1.694883039 | R123: 0.6408709125 | S123: 3.689008297 | T123: 3.168152469 | U123: 5.92608162 | V123: 4.839762456 | BB123: Not Improved | BC123: 2805.942174 | BD123: 1884.110438 | BE123: 1103.419272 | BF123: 581.7443821 | BG123: 143.9274628 | BH123: 808.5361667 | BI123: 399.2788272 | BJ123: 186.067 | BK123: 69.53625078 | BL123: 40.31686156 | BM123: 1286.806927 | BN123: 1177.023562 | BO123: 1043.211164 | BP123: 776.5626542 | BQ123: 731.8043139 | BR123: 128.0165636 | BS123: 1991.232723 | BT123: 1174.830369 | BU123: 1462.612528 | BV123: 1762.451544
A124: Sanitation ladder | B124: Basic | C124: =C122*C129/100 -> 65.30910863 | D124: =D122*D129/100 -> 81.16790545 | E124: 87.45858083 | F124: 94.19927415 | G124: 97.73101509 | H124: 75.00713973 | I124: 85.87843793 | J124: 93.6982206 | K124: 96.61845505 | L124: 98.03563521 | M124: 57.38606756 | N124: 71.53698781 | O124: 81.25703464 | P124: 86.82779701 | Q124: 91.54787343 | R124: 92.27017238 | S124: 83.56537847 | T124: 84.59911166 | U124: 82.08983333 | V124: 82.75382644 | BA124: Sanitation ladder | BB124: Basic | BC124: 5183.454971 | BD124: 6631.751968 | BE124: 7684.549061 | BF124: 8757.743229 | BG124: 9456.718676 | BH124: 4077.933427 | BI124: 4910.67232 | BJ124: 5538.450813 | BK124: 5803.902895 | BL124: 5931.998125 | BM124: 1699.936992 | BN124: 2041.757078 | BO124: 2282.62167 | BP124: 2635.129653 | BQ124: 2791.814933 | BR124: 11351.65089 | BS124: 7253.370292 | BT124: 7985.887265 | BU124: 7207.162651 | BV124: 3916.146807
B125: Limited | C125: =C122*C128/100 -> 22.84380128 | D125: =D122*D128/100 -> 15.73123927 | E125: 11.44123782 | F125: 5.0405444 | G125: 2.068399752 | H125: 21.77743348 | I125: 13.33793972 | J125: 5.831180524 | K125: 3.227671514 | L125: 1.678467961 | M125: 24.94415536 | N125: 18.05385441 | O125: 14.45279422 | P125: 10.52328148 | Q125: 6.757243529 | R125: 7.088956711 | S125: 12.74561323 | T125: 12.23273587 | U125: 11.98408505 | V125: 12.40641111 | BB125: Limited | BC125: 1813.067392 | BD125: 1285.306999 | BE125: 1005.284473 | BF125: 468.6213773 | BG125: 200.1439824 | BH125: 1183.979609 | BI125: 762.6856401 | BJ125: 344.6779064 | BK125: 193.8873069 | BL125: 101.5617309 | BM125: 738.9161555 | BN125: 515.2800833 | BO125: 405.9988334 | BP125: 319.370202 | BQ125: 206.066757 | BR125: 872.1275759 | BS125: 1106.303281 | BT125: 1154.731388 | BU125: 1052.155263 | BV125: 587.1067156
B126: Unimproved | C126: =100-(C124+C125+C127) -> 2.492156282 | D126: =100-(D124+D125+D127) -> 1.49005389 | E126: 0.6545284142 | F126: 0.6274738893 | G126: 0.1871905821 | H126: 2.15867418 | I126: 0.5698128722 | J126: 0.4705988716 | K126: 0.1538734381 | L126: 0.2858968257 | M126: 2.625143075 | N126: 1.811361205 | O126: 1.76801565 | P126: 1.0368637 | Q126: 1.161262122 | R126: 0.5187713528 | S126: 1.458664243 | T126: 1.224153695 | U126: 1.29278616 | V126: 1.07412139 | BB126: Unimproved | BC126: 1888.928105 | BD126: 1726.233064 | BE126: 1059.775353 | BF126: 568.7282803 | BG126: 142.6146881 | BH126: 744.3865359 | BI126: 386.2949542 | BJ126: 186.067 | BK126: 69.53625078 | BL126: 40.31686156 | BM126: 726.2950047 | BN126: 855.9766171 | BO126: 949.0885669 | BP126: 716.4157695 | BQ126: 711.9019292 | BR126: 112.9350763 | BS126: 1760.3719 | BT126: 974.2981667 | BU126: 1012.166766 | BV126: 1526.507581
B127: Open defecation | C127: =C163 -> 9.354933806 | D127: =D163 -> 1.610801399 | E127: 0.445652938 | F127: 0.1327075564 | G127: 0.01339457957 | H127: 1.056752617 | I127: 0.2138094774 | J127: 0 | K127: 0 | L127: 0 | M127: 15.044634 | N127: 8.597796575 | O127: 2.522155495 | P127: 1.612057812 | Q127: 0.5336209169 | R127: 0.1220995597 | S127: 2.230344054 | T127: 1.943998774 | U127: 4.63329546 | V127: 3.765641066 | BB127: Open defecation | BC127: 917.0140687 | BD127: 157.8773739 | BE127: 43.64391886 | BF127: 13.01610177 | BG127: 1.312774632 | BH127: 64.14963078 | BI127: 12.98387298 | BJ127: 0 | BK127: 0 | BL127: 0 | BM127: 560.5119224 | BN127: 321.046945 | BO127: 94.12259746 | BP127: 60.14688464 | BQ127: 19.90238465 | BR127: 15.08148735 | BS127: 230.8608232 | BT127: 200.5322025 | BU127: 450.4457618 | BV127: 235.9439631
A128: Shared among Improved Sanitation | B128: Yes | C128: 25.91383688 | D128: 16.23465234 | E128: 11.56851243 | F128: 5.079155195 | G128: 2.072556994 | H128: 22.50093456 | I128: 13.4432843 | J128: 5.858751744 | K128: 3.232645697 | L128: 1.683280406 | M128: 30.29768957 | N128: 20.15145071 | O128: 15.1006374 | P128: 10.80961982 | Q128: 6.873745475 | R128: 7.134680805 | S128: 13.23380957 | T128: 12.63296755 | U128: 12.73900913 | V128: 13.0373898 | BA128: Shared among improved sanitation facilities | BB128: Yes | BC128: N/A | BD128: N/A | BE128: N/A | BF128: N/A | BG128: N/A | BH128: N/A | BI128: N/A | BJ128: N/A | BK128: N/A | BL128: N/A | BM128: N/A | BN128: N/A | BO128: N/A | BP128: N/A | BQ128: N/A | BR128: N/A | BS128: N/A | BT128: N/A | BU128: N/A | BV128: N/A
B129: No | C129: 74.08616312 | D129: 83.76534766 | E129: 88.43148757 | F129: 94.9208448 | G129: 97.92744301 | H129: 77.49906544 | I129: 86.5567157 | J129: 94.14124826 | K129: 96.7673543 | L129: 98.31671959 | M129: 69.70231043 | N129: 79.84854929 | O129: 84.8993626 | P129: 89.19038018 | Q129: 93.12625452 | R129: 92.86531919 | S129: 86.76619043 | T129: 87.36703245 | U129: 87.26099087 | V129: 86.9626102 | BB129: No | BC129: N/A | BD129: N/A | BE129: N/A | BF129: N/A | BG129: N/A | BH129: N/A | BI129: N/A | BJ129: N/A | BK129: N/A | BL129: N/A | BM129: N/A | BN129: N/A | BO129: N/A | BP129: N/A | BQ129: N/A | BR129: N/A | BS129: N/A | BT129: N/A | BU129: N/A | BV129: N/A
A130: Manually calculated ratios | B130: Improved latrines
B131: Other
B132: Other
C133: NATIONAL wealth index quintile | H133: URBAN wealth index quintile | M133: RURAL wealth index quintile | R133: SUB-REGIONS: | BA133: Raw numbers of respondents: | BB133: Use of sanitation facilities | BC133: NATIONAL wealth index quintile | BH133: URBAN wealth index quintile | BM133: RURAL wealth index quintile | BR133: SUB-REGIONS:
A134: Percentage based on weighted population | C134: Poorest | D134: Poor | E134: Middle | F134: Rich | G134: Richest | H134: Poorest | I134: Poor | J134: Middle | K134: Rich | L134: Richest | M134: Poorest | N134: Poor | O134: Middle | P134: Rich | Q134: Richest | R134: Metropolitana | S134: Central | T134: Occidente | U134: Oriental | V134: Para Central | BA134: Sanitation data, raw numbers (weighted) | BC134: Poorest | BD134: Poor | BE134: Middle | BF134: Rich | BG134: Richest | BH134: Poorest | BI134: Poor | BJ134: Middle | BK134: Rich | BL134: Richest | BM134: Poorest | BN134: Poor | BO134: Middle | BP134: Rich | BQ134: Richest | BR134: Metropolitana | BS134: Central | BT134: Occidente | BU134: Oriental | BV134: Para Central
A135: Sanitation type | B135: Sewer connection | C135: 2.186881721 | D135: 8.753712924 | E135: 27.25257745 | F135: 54.6411226 | G135: 76.48568829 | H135: 13.09670962 | I135: 37.43886496 | J135: 59.77222362 | K135: 73.35740638 | L135: 85.20186413 | M135: 0.1878442476 | N135: 0.2582862245 | O135: 1.369370884 | P135: 2.352587744 | Q135: 3.19197665 | R135: 78.66279235 | S135: 18.74050868 | T135: 23.93694622 | U135: 15.13949007 | V135: 15.95315172 | BA135: Sanitation type | BB135: Sewer connection | BC135: N/A | BD135: N/A | BE135: N/A | BF135: N/A | BG135: N/A | BH135: N/A | BI135: N/A | BJ135: N/A | BK135: N/A | BL135: N/A | BM135: N/A | BN135: N/A | BO135: N/A | BP135: N/A | BQ135: N/A | BR135: N/A | BS135: N/A | BT135: N/A | BU135: N/A | BV135: N/A
B136: Septic tank connection | C136: 3.870472831 | D136: 13.79639391 | E136: 21.90356483 | F136: 21.17182289 | G136: 16.60331679 | H136: 10.18375271 | I136: 18.56958718 | J136: 19.68006961 | K136: 17.97478167 | L136: 11.43806109 | M136: 1.41310138 | N136: 4.226751154 | O136: 11.03058004 | P136: 22.44193004 | Q136: 37.41450189 | R136: 5.635721809 | S136: 18.99708382 | T136: 19.46228579 | U136: 20.49492297 | V136: 14.64935476 | BB136: Septic tank connection | BC136: N/A | BD136: N/A | BE136: N/A | BF136: N/A | BG136: N/A | BH136: N/A | BI136: N/A | BJ136: N/A | BK136: N/A | BL136: N/A | BM136: N/A | BN136: N/A | BO136: N/A | BP136: N/A | BQ136: N/A | BR136: N/A | BS136: N/A | BT136: N/A | BU136: N/A | BV136: N/A
B137: Improved latrines | C137: 65.31778113 | D137: 58.22657032 | E137: 39.57672009 | F137: 18.25579516 | G137: 5.442465738 | H137: 63.4003229 | I137: 37.41649915 | J137: 17.48194635 | K137: 7.521734658 | L137: 2.696300002 | M137: 63.86002232 | N137: 63.99368728 | O137: 59.64564874 | P137: 54.39203693 | Q137: 39.77245113 | R137: 14.66506511 | S137: 43.0251285 | T137: 45.21173038 | U137: 49.32112088 | V137: 41.26895053 | BB137: Improved latrines | BC137: N/A | BD137: N/A | BE137: N/A | BF137: N/A | BG137: N/A | BH137: N/A | BI137: N/A | BJ137: N/A | BK137: N/A | BL137: N/A | BM137: N/A | BN137: N/A | BO137: N/A | BP137: N/A | BQ137: N/A | BR137: N/A | BS137: N/A | BT137: N/A | BU137: N/A | BV137: N/A
B138: Unimproved facilities | C138: 19.26993051 | D138: 17.61252145 | E138: 10.82148469 | F138: 5.7985518 | G138: 1.4551346 | H138: 12.26246215 | I138: 6.36123924 | J138: 3.065760418 | K138: 1.146077293 | L138: 0.6637747757 | M138: 19.49439805 | N138: 22.92347877 | O138: 25.43224484 | P138: 19.20138748 | Q138: 19.08744941 | R138: 0.9143211653 | S138: 17.00693495 | T138: 9.445038841 | U138: 10.41117062 | V138: 24.36290193 | BB138: Unimproved facilities | BC138: N/A | BD138: N/A | BE138: N/A | BF138: N/A | BG138: N/A | BH138: N/A | BI138: N/A | BJ138: N/A | BK138: N/A | BL138: N/A | BM138: N/A | BN138: N/A | BO138: N/A | BP138: N/A | BQ138: N/A | BR138: N/A | BS138: N/A | BT138: N/A | BU138: N/A | BV138: N/A
B139: Open defecation | C139: 9.354933806 | D139: 1.610801399 | E139: 0.445652938 | F139: 0.1327075564 | G139: 0.01339457957 | H139: 1.056752617 | I139: 0.2138094774 | J139: 0 | K139: 0 | L139: 0 | M139: 15.044634 | N139: 8.597796575 | O139: 2.522155495 | P139: 1.612057812 | Q139: 0.5336209169 | R139: 0.1220995597 | S139: 2.230344054 | T139: 1.943998774 | U139: 4.63329546 | V139: 3.765641066 | BB139: Open defecation | BC139: N/A | BD139: N/A | BE139: N/A | BF139: N/A | BG139: N/A | BH139: N/A | BI139: N/A | BJ139: N/A | BK139: N/A | BL139: N/A | BM139: N/A | BN139: N/A | BO139: N/A | BP139: N/A | BQ139: N/A | BR139: N/A | BS139: N/A | BT139: N/A | BU139: N/A | BV139: N/A
A140: Septic tank emptying practices | B140: Not emptied/treated and disposed in situ | C140: N/A | D140: N/A | E140: N/A | F140: N/A | G140: N/A | H140: N/A | I140: N/A | J140: N/A | K140: N/A | L140: N/A | M140: N/A | N140: N/A | O140: N/A | P140: N/A | Q140: N/A | R140: N/A | S140: N/A | T140: N/A | U140: N/A | V140: N/A | BA140: Septic tank emptying practices | BB140: Not emptied/treated and disposed in situ | BC140: N/A | BD140: N/A | BE140: N/A | BF140: N/A | BG140: N/A | BH140: N/A | BI140: N/A | BJ140: N/A | BK140: N/A | BL140: N/A | BM140: N/A | BN140: N/A | BO140: N/A | BP140: N/A | BQ140: N/A | BR140: N/A | BS140: N/A | BT140: N/A | BU140: N/A | BV140: N/A
B141: Emptied and buried on site | C141: N/A | D141: N/A | E141: N/A | F141: N/A | G141: N/A | H141: N/A | I141: N/A | J141: N/A | K141: N/A | L141: N/A | M141: N/A | N141: N/A | O141: N/A | P141: N/A | Q141: N/A | R141: N/A | S141: N/A | T141: N/A | U141: N/A | V141: N/A | BB141: Emptied and buried on site | BC141: N/A | BD141: N/A | BE141: N/A | BF141: N/A | BG141: N/A | BH141: N/A | BI141: N/A | BJ141: N/A | BK141: N/A | BL141: N/A | BM141: N/A | BN141: N/A | BO141: N/A | BP141: N/A | BQ141: N/A | BR141: N/A | BS141: N/A | BT141: N/A | BU141: N/A | BV141: N/A
B142: Emptied and discharged locally | C142: N/A | D142: N/A | E142: N/A | F142: N/A | G142: N/A | H142: N/A | I142: N/A | J142: N/A | K142: N/A | L142: N/A | M142: N/A | N142: N/A | O142: N/A | P142: N/A | Q142: N/A | R142: N/A | S142: N/A | T142: N/A | U142: N/A | V142: N/A | BB142: Emptied and discharged locally | BC142: N/A | BD142: N/A | BE142: N/A | BF142: N/A | BG142: N/A | BH142: N/A | BI142: N/A | BJ142: N/A | BK142: N/A | BL142: N/A | BM142: N/A | BN142: N/A | BO142: N/A | BP142: N/A | BQ142: N/A | BR142: N/A | BS142: N/A | BT142: N/A | BU142: N/A | BV142: N/A
B143: Emptied and removed offsite | C143: N/A | D143: N/A | E143: N/A | F143: N/A | G143: N/A | H143: N/A | I143: N/A | J143: N/A | K143: N/A | L143: N/A | M143: N/A | N143: N/A | O143: N/A | P143: N/A | Q143: N/A | R143: N/A | S143: N/A | T143: N/A | U143: N/A | V143: N/A | BB143: Emptied and removed offsite | BC143: N/A | BD143: N/A | BE143: N/A | BF143: N/A | BG143: N/A | BH143: N/A | BI143: N/A | BJ143: N/A | BK143: N/A | BL143: N/A | BM143: N/A | BN143: N/A | BO143: N/A | BP143: N/A | BQ143: N/A | BR143: N/A | BS143: N/A | BT143: N/A | BU143: N/A | BV143: N/A
A144: Latrine emptying practices | B144: Not emptied/treated and disposed in situ | C144: N/A | D144: N/A | E144: N/A | F144: N/A | G144: N/A | H144: N/A | I144: N/A | J144: N/A | K144: N/A | L144: N/A | M144: N/A | N144: N/A | O144: N/A | P144: N/A | Q144: N/A | R144: N/A | S144: N/A | T144: N/A | U144: N/A | V144: N/A | BA144: Latrine emptying practices | BB144: Not emptied/treated and disposed in situ | BC144: N/A | BD144: N/A | BE144: N/A | BF144: N/A | BG144: N/A | BH144: N/A | BI144: N/A | BJ144: N/A | BK144: N/A | BL144: N/A | BM144: N/A | BN144: N/A | BO144: N/A | BP144: N/A | BQ144: N/A | BR144: N/A | BS144: N/A | BT144: N/A | BU144: N/A | BV144: N/A
B145: Emptied and buried on site | C145: N/A | D145: N/A | E145: N/A | F145: N/A | G145: N/A | H145: N/A | I145: N/A | J145: N/A | K145: N/A | L145: N/A | M145: N/A | N145: N/A | O145: N/A | P145: N/A | Q145: N/A | R145: N/A | S145: N/A | T145: N/A | U145: N/A | V145: N/A | BB145: Emptied and buried on site | BC145: N/A | BD145: N/A | BE145: N/A | BF145: N/A | BG145: N/A | BH145: N/A | BI145: N/A | BJ145: N/A | BK145: N/A | BL145: N/A | BM145: N/A | BN145: N/A | BO145: N/A | BP145: N/A | BQ145: N/A | BR145: N/A | BS145: N/A | BT145: N/A | BU145: N/A | BV145: N/A
B146: Emptied and discharged locally | C146: N/A | D146: N/A | E146: N/A | F146: N/A | G146: N/A | H146: N/A | I146: N/A | J146: N/A | K146: N/A | L146: N/A | M146: N/A | N146: N/A | O146: N/A | P146: N/A | Q146: N/A | R146: N/A | S146: N/A | T146: N/A | U146: N/A | V146: N/A | BB146: Emptied and discharged locally | BC146: N/A | BD146: N/A | BE146: N/A | BF146: N/A | BG146: N/A | BH146: N/A | BI146: N/A | BJ146: N/A | BK146: N/A | BL146: N/A | BM146: N/A | BN146: N/A | BO146: N/A | BP146: N/A | BQ146: N/A | BR146: N/A | BS146: N/A | BT146: N/A | BU146: N/A | BV146: N/A
B147: Emptied and removed offsite | C147: N/A | D147: N/A | E147: N/A | F147: N/A | G147: N/A | H147: N/A | I147: N/A | J147: N/A | K147: N/A | L147: N/A | M147: N/A | N147: N/A | O147: N/A | P147: N/A | Q147: N/A | R147: N/A | S147: N/A | T147: N/A | U147: N/A | V147: N/A | BB147: Emptied and removed offsite | BC147: N/A | BD147: N/A | BE147: N/A | BF147: N/A | BG147: N/A | BH147: N/A | BI147: N/A | BJ147: N/A | BK147: N/A | BL147: N/A | BM147: N/A | BN147: N/A | BO147: N/A | BP147: N/A | BQ147: N/A | BR147: N/A | BS147: N/A | BT147: N/A | BU147: N/A | BV147: N/A
A148: Shared among improved sanitation facilities | B148: Yes | C148: 18.49603623 | D148: 13.11381271 | E148: 10.26507222 | F148: 4.777897328 | G148: 2.04212089 | H148: 19.50398676 | I148: 12.55938181 | J148: 5.679136452 | K148: 3.195597078 | L148: 1.672107215 | M148: 19.83316086 | N148: 13.79945645 | O148: 10.87934477 | P148: 8.559765514 | Q148: 5.525043041 | R148: 7.060735495 | S148: 10.6879847 | T148: 11.19419412 | U148: 10.82249322 | V148: 9.370162007 | BA148: Shared among improved sanitation facilities | BB148: Yes | BC148: N/A | BD148: N/A | BE148: N/A | BF148: N/A | BG148: N/A | BH148: N/A | BI148: N/A | BJ148: N/A | BK148: N/A | BL148: N/A | BM148: N/A | BN148: N/A | BO148: N/A | BP148: N/A | BQ148: N/A | BR148: N/A | BS148: N/A | BT148: N/A | BU148: N/A | BV148: N/A
B149: No | C149: 52.87909945 | D149: 67.66286444 | E149: 78.46779016 | F149: 89.29084332 | G149: 96.48934993 | H149: 67.17679847 | I149: 80.86556947 | J149: 91.25510313 | K149: 95.65832563 | L149: 97.66411801 | M149: 45.62780709 | N149: 54.67926821 | O149: 61.16625489 | P149: 70.62678919 | Q149: 74.85388663 | R149: 91.90284378 | S149: 70.0747363 | T149: 77.41676826 | U149: 74.13304069 | V149: 62.501295 | BB149: No | BC149: N/A | BD149: N/A | BE149: N/A | BF149: N/A | BG149: N/A | BH149: N/A | BI149: N/A | BJ149: N/A | BK149: N/A | BL149: N/A | BM149: N/A | BN149: N/A | BO149: N/A | BP149: N/A | BQ149: N/A | BR149: N/A | BS149: N/A | BT149: N/A | BU149: N/A | BV149: N/A
B150: DK/missing | C150: 28.62486432 | D150: 19.22332285 | E150: 11.26713763 | F150: 5.931259357 | G150: 1.46852918 | H150: 13.31921477 | I150: 6.575048717 | J150: 3.065760418 | K150: 1.146077293 | L150: 0.6637747757 | M150: 34.53903205 | N150: 31.52127534 | O150: 27.95440034 | P150: 20.81344529 | Q150: 19.62107033 | R150: 1.036420725 | S150: 19.237279 | T150: 11.38903762 | U150: 15.04446608 | V150: 28.128543 | BB150: DK/missing | BC150: N/A | BD150: N/A | BE150: N/A | BF150: N/A | BG150: N/A | BH150: N/A | BI150: N/A | BJ150: N/A | BK150: N/A | BL150: N/A | BM150: N/A | BN150: N/A | BO150: N/A | BP150: N/A | BQ150: N/A | BR150: N/A | BS150: N/A | BT150: N/A | BU150: N/A | BV150: N/A
A151: Shared among all sanitation facilities | B151: Yes | C151: 26.48108923 | D151: 16.57533344 | E151: 11.92184978 | F151: 5.688429424 | G151: 2.180805117 | H151: 23.12925215 | I151: 13.62005135 | J151: 6.487016505 | K151: 3.211767881 | L151: 1.672107215 | M151: 31.0544619 | N151: 20.84374776 | O151: 15.21287274 | P151: 11.89806928 | Q151: 7.963599037 | R151: 7.241466384 | S151: 14.46581429 | T151: 13.87914507 | U151: 13.70115067 | V151: 14.14865402 | BA151: Shared among all sanitation facilities | BB151: Yes | BC151: N/A | BD151: N/A | BE151: N/A | BF151: N/A | BG151: N/A | BH151: N/A | BI151: N/A | BJ151: N/A | BK151: N/A | BL151: N/A | BM151: N/A | BN151: N/A | BO151: N/A | BP151: N/A | BQ151: N/A | BR151: N/A | BS151: N/A | BT151: N/A | BU151: N/A | BV151: N/A
B152: No | C152: 73.51891077 | D152: 83.42466656 | E152: 88.07815022 | F152: 94.31157058 | G152: 97.81919488 | H152: 76.87074785 | I152: 86.37994865 | J152: 93.5129835 | K152: 96.78823212 | L152: 98.32789278 | M152: 68.9455381 | N152: 79.15625224 | O152: 84.78712726 | P152: 88.10193072 | Q152: 92.03640096 | R152: 92.75853362 | S152: 85.53418571 | T152: 86.12085493 | U152: 86.29884933 | V152: 85.85134598 | BB152: No | BC152: N/A | BD152: N/A | BE152: N/A | BF152: N/A | BG152: N/A | BH152: N/A | BI152: N/A | BJ152: N/A | BK152: N/A | BL152: N/A | BM152: N/A | BN152: N/A | BO152: N/A | BP152: N/A | BQ152: N/A | BR152: N/A | BS152: N/A | BT152: N/A | BU152: N/A | BV152: N/A
A153: Tipo de instalación sanitaria | B153: Inodoro conectado al alcantarillado | C153: 2.186881721 | D153: 8.753712924 | E153: 27.25257745 | F153: 54.6411226 | G153: 76.48568829 | H153: 13.09670962 | I153: 37.43886496 | J153: 59.77222362 | K153: 73.35740638 | L153: 85.20186413 | M153: 0.1878442476 | N153: 0.2582862245 | O153: 1.369370884 | P153: 2.352587744 | Q153: 3.19197665 | R153: 78.66279235 | S153: 18.74050868 | T153: 23.93694622 | U153: 15.13949007 | V153: 15.95315172 | BA153: Tipo de instalación sanitaria | BB153: Inodoro conectado al alcantarillado | BC153: 214.3683052 | BD153: 857.9662329 | BE153: 2668.913806 | BF153: 5359.260857 | BG153: 7496.201783 | BH153: 795.0291049 | BI153: 2273.526286 | BJ153: 3627.693237 | BK153: 4450.833322 | BL153: 5175.056188 | BM153: 6.998438133 | BN153: 9.644564462 | BO153: 51.1026163 | BP153: 87.7765193 | BQ153: 119.0507064 | BR153: 9716.266877 | BS153: 1939.812493 | BT153: 2469.203484 | BU153: 1471.850694 | BV153: 999.5774356
B154: Inodoro conectado a tanque séptico | C154: 3.870472831 | D154: 13.79639391 | E154: 21.90356483 | F154: 21.17182289 | G154: 16.60331679 | H154: 10.18375271 | I154: 18.56958718 | J154: 19.68006961 | K154: 17.97478167 | L154: 11.43806109 | M154: 1.41310138 | N154: 4.226751154 | O154: 11.03058004 | P154: 22.44193004 | Q154: 37.41450189 | R154: 5.635721809 | S154: 18.99708382 | T154: 19.46228579 | U154: 20.49492297 | V154: 14.64935476 | BB154: Inodoro conectado a tanque séptico | BC154: 379.4017267 | BD154: 1352.207939 | BE154: 2145.071477 | BF154: 2076.555464 | BG154: 1627.256232 | BH154: 618.1995351 | BI154: 1127.663582 | BJ154: 1194.421942 | BK154: 1090.588683 | BL154: 694.7337296 | BM154: 52.6473539 | BN154: 157.8294547 | BO154: 411.6426789 | BP154: 837.3224379 | BQ154: 1395.44344 | BR154: 696.1128064 | BS154: 1966.370345 | BT154: 2007.622169 | BU154: 1992.502155 | BV154: 917.8853632
B155: Letrina (pozo negro, hoyo) | C155: 23.52049918 | D155: 17.26936559 | E155: 12.63157196 | F155: 4.360725647 | G155: 1.180916003 | H155: 21.0506466 | I155: 10.33672353 | J155: 4.35881861 | K155: 1.086026917 | L155: 0.6954540368 | M155: 22.68624595 | N155: 22.81412171 | O155: 18.23812404 | P155: 17.15916359 | Q155: 12.93603955 | R155: 4.403392756 | S155: 14.80699019 | T155: 13.155365 | U155: 16.44125341 | V155: 11.91687194 | BB155: Letrina (pozo negro, hoyo) | BC155: 2305.588591 | BD155: 1692.599777 | BE155: 1237.041775 | BF155: 427.7047241 | BG155: 115.739099 | BH155: 1277.868809 | BI155: 627.7116755 | BJ155: 264.5452325 | BK155: 65.89279842 | BL155: 42.24102082 | BM155: 845.2124075 | BN155: 851.8931582 | BO155: 680.6160885 | BP155: 640.2191195 | BQ155: 482.4736566 | BR155: 543.8980476 | BS155: 1532.65768 | BT155: 1357.03497 | BU155: 1598.40722 | BV155: 746.6760488
B156: Baldeo a otra parte | C156: 0.1965967497 | D156: 0.3588182644 | E156: 0.06283318731 | F156: 0.2137348693 | G156: 0.177179804 | H156: 0.39966828 | I156: 0.06004100921 | J156: 0.1740047069 | K156: 0.1377026361 | L156: 0.2858968257 | M156: 0.3212250305 | N156: 0.06454316896 | O156: 0.373161658 | P156: 0.1174409276 | Q156: 0.05490527182 | R156: 0.1997764952 | S156: 0.1984049843 | T156: 0.3371817496 | U156: 0.1705232666 | V156: 0.03748713127 | BB156: Baldeo a otra parte | BC156: 19.27132667 | BD156: 35.16838595 | BE156: 6.153412879 | BF156: 20.96334892 | BG156: 17.36502073 | BH156: 24.26165991 | BI156: 3.646072413 | BJ156: 10.56068622 | BK156: 8.354868465 | BL156: 17.36502073 | BM156: 11.96775271 | BN156: 2.410081122 | BO156: 13.92576492 | BP156: 4.38179442 | BQ156: 2.047794239 | BR156: 24.6759832 | BS156: 20.53671401 | BT156: 34.78181149 | BU156: 16.57815337 | BV156: 2.348833083
B157: Sitio desconocido/ no está seguro/ NS dónde | C157: 0 | D157: 0 | E157: 0.02204190366 | F157: 0 | G157: 0 | H157: 0 | I157: 0 | J157: 0 | K157: 0 | L157: 0 | M157: 0 | N157: 0 | O157: 0 | P157: 0.05785535203 | Q157: 0 | R157: 0 | S157: 0 | T157: 0.02092608227 | U157: 0 | V157: 0 | BB157: Sitio desconocido/ no está seguro/ NS dónde | BC157: 0 | BD157: 0 | BE157: 2.158619349 | BF157: 0 | BG157: 0 | BH157: 0 | BI157: 0 | BJ157: 0 | BK157: 0 | BL157: 0 | BM157: 0 | BN157: 0 | BO157: 0 | BP157: 2.158619349 | BQ157: 0 | BR157: 0 | BS157: 0 | BT157: 2.158619349 | BU157: 0 | BV157: 0
B158: Letrina de fosa mejorada con ventilación | C158: 0.07067349656 | D158: 0.2816750172 | E158: 0.3335980973 | F158: 0.3239324283 | G158: 0.04735800522 | H158: 0.2735778791 | I158: 0.5725863941 | J158: 0.3213426707 | K158: 0.2022098217 | L158: 0.05957860327 | M158: 0.05180177877 | N158: 0.1494047636 | O158: 0.1265743496 | P158: 0.04035462358 | Q158: 0.08342536049 | R158: 0.003903187041 | S158: 0.1423987474 | T158: 0.3372462673 | U158: 0.5117022756 | V158: 0.06161986075 | BB158: Letrina de fosa mejorada con ventilación | BC158: 6.927744437 | BD158: 27.60744561 | BE158: 32.67010503 | BF158: 31.77164562 | BG158: 4.641458698 | BH158: 16.60740618 | BI158: 34.77109201 | BJ158: 19.50291561 | BK158: 12.26873 | BL158: 3.618730913 | BM158: 1.929958189 | BN158: 5.578864599 | BO158: 4.723541663 | BP158: 1.505656231 | BQ158: 3.111503994 | BR158: 0.482113663 | BS158: 14.73956091 | BT158: 34.78846678 | BU158: 49.7473393 | BV158: 3.860918737
B159: Letrina de fosa con losa | C159: 41.72660845 | D159: 40.67552971 | E159: 26.58950814 | F159: 13.53529149 | G159: 4.21419173 | H159: 42.07609841 | I159: 26.50718923 | J159: 12.74385689 | K159: 6.233497919 | L159: 1.941267362 | M159: 41.1219746 | N159: 41.03016081 | O159: 41.28095035 | P159: 37.13466336 | Q159: 26.75298622 | R159: 10.25776917 | S159: 28.07573957 | T159: 31.66411042 | U159: 32.3681652 | V159: 29.29045873 | BB159: Letrina de fosa con losa | BC159: 4090.235996 | BD159: 3986.677573 | BE159: 2603.977752 | BF159: 1327.556142 | BG159: 413.0240868 | BH159: 2554.208181 | BI159: 1609.685324 | BJ159: 773.4496168 | BK159: 378.2066682 | BL159: 117.9101864 | BM159: 1532.064989 | BN159: 1532.09112 | BO159: 1540.535578 | BP159: 1385.517503 | BQ159: 997.8023827 | BR159: 1267.018623 | BS159: 2906.093495 | BT159: 3266.295169 | BU159: 3146.810506 | BV159: 1835.253756
B160: Letrina de fosa sin losa/Foso abierto | C160: 1.844796316 | D160: 0.9745791723 | E160: 0.5080577339 | F160: 0.4088458125 | G160: 0.01001077811 | H160: 1.428070047 | I160: 0.4548925504 | J160: 0.2886865087 | K160: 0.01617080208 | L160: 0 | M160: 1.781455136 | N160: 1.593157651 | O160: 1.087837157 | P160: 0.7144229839 | Q160: 1.10635685 | R160: 0.2931901704 | S160: 1.088441121 | T160: 0.7300965056 | U160: 0.8664454128 | V160: 0.937907124 | BB160: Letrina de fosa sin losa/Foso abierto | BC160: 180.8355046 | BD160: 95.52015567 | BE160: 49.75537828 | BF160: 40.10004289 | BG160: 0.9811353522 | BH160: 86.69026679 | BI160: 27.62397236 | BJ160: 17.52094923 | BK160: 0.9811353522 | BL160: 0 | BM160: 66.37096275 | BN160: 59.4894741 | BO160: 40.59625153 | BP160: 26.65556811 | BQ160: 41.26363659 | BR160: 36.21424889 | BS160: 112.6635205 | BT160: 75.31273285 | BU160: 84.23522035 | BV160: 58.76649419
B161: Letrina abonera | C161: 16.77777423 | D161: 16.12246756 | E161: 10.18899818 | F161: 5.171077911 | G161: 1.267944018 | H161: 10.10378797 | I161: 5.791426368 | J161: 2.595161546 | K161: 0.992203855 | L161: 0.37787795 | M161: 16.86925497 | N161: 21.11211756 | O161: 23.66422919 | P161: 18.22237913 | Q161: 17.92618729 | R161: 0.3955498125 | S161: 15.5482707 | T161: 8.241811229 | U161: 9.118384462 | V161: 23.28878054 | BB161: Letrina abonera | BC161: 1644.635369 | BD161: 1580.190358 | BE161: 997.83435 | BF161: 507.1849574 | BG161: 124.2685321 | BH161: 613.3453164 | BI161: 351.6922881 | BJ161: 157.5054334 | BK161: 60.20024696 | BL161: 22.95184083 | BM161: 628.4910972 | BN161: 788.3392898 | BO161: 883.109199 | BP161: 679.8883561 | BQ161: 668.5904984 | BR161: 48.85750209 | BS161: 1609.386931 | BT161: 850.1798358 | BU161: 886.4829949 | BV161: 1459.206302
B162: Inodoro de compostaje | C162: 0 | D162: 0 | E162: 0 | F162: 0.03584558985 | G162: 0 | H162: 0 | I162: 0 | J162: 0.05792817834 | K162: 0 | L162: 0 | M162: 0 | N162: 0 | O162: 0 | P162: 0 | Q162: 0 | R162: 0 | S162: 0 | T162: 0.03408261252 | U162: 0 | V162: 0 | BB162: Inodoro de compostaje | BC162: 0 | BD162: 0 | BE162: 0 | BF162: 3.51577452 | BG162: 0 | BH162: 0 | BI162: 0 | BJ162: 3.51577452 | BK162: 0 | BL162: 0 | BM162: 0 | BN162: 0 | BO162: 0 | BP162: 0 | BQ162: 0 | BR162: 0 | BS162: 0 | BT162: 3.51577452 | BU162: 0 | BV162: 0
B163: No hay instalacion sanitaria | C163: 9.354933806 | D163: 1.610801399 | E163: 0.445652938 | F163: 0.1327075564 | G163: 0.01339457957 | H163: 1.056752617 | I163: 0.2138094774 | J163: 0 | K163: 0 | L163: 0 | M163: 15.044634 | N163: 8.597796575 | O163: 2.522155495 | P163: 1.612057812 | Q163: 0.5336209169 | R163: 0.1220995597 | S163: 2.230344054 | T163: 1.943998774 | U163: 4.63329546 | V163: 3.765641066 | BB163: No hay instalacion sanitaria | BC163: 917.0140687 | BD163: 157.8773739 | BE163: 43.64391886 | BF163: 13.01610177 | BG163: 1.312774632 | BH163: 64.14963078 | BI163: 12.98387298 | BJ163: 0 | BK163: 0 | BL163: 0 | BM163: 560.5119224 | BN163: 321.046945 | BO163: 94.12259746 | BP163: 60.14688464 | BQ163: 19.90238465 | BR163: 15.08148735 | BS163: 230.8608232 | BT163: 200.5322025 | BU163: 450.4457618 | BV163: 235.9439631
B164: Otros | C164: 0.4507632163 | D164: 0.07278656639 | E164: 0.005536065285 | F164: 0 | G164: 0 | H164: 0.3309358525 | I164: 0.05487931252 | J164: 0 | K164: 0 | L164: 0 | M164: 0.5224629079 | N164: 0.1536603851 | O164: 0.08674351007 | P164: 0 | Q164: 0 | R164: 0.02580468728 | S164: 0.132433984 | T164: 0.1312968099 | U164: 0.1712640092 | V164: 0.07616887334 | BB164: Otros | BC164: 44.18590442 | BD164: 7.133934676 | BE164: 0.5421608688 | BF164: 0 | BG164: 0 | BH164: 20.08929282 | BI164: 3.332621321 | BJ164: 0 | BK164: 0 | BL164: 0 | BM164: 19.46519196 | BN164: 5.737772088 | BO164: 3.237121778 | BP164: 0 | BQ164: 0 | BR164: 3.187342081 | BS164: 13.70811759 | BT164: 13.5438555 | BU164: 16.65016784 | BV164: 4.772516956
B165: Omitido | C165: 0 | D165: 0.08386988674 | E165: 0.05605952407 | F165: 0.004893207503 | G165: 0 | H165: 0 | I165: 0 | J165: 0.007907656091 | K165: 0 | L165: 0 | M165: 0 | N165: 0 | O165: 0.2202733245 | P165: 0.1471444368 | Q165: 0 | R165: 0 | S165: 0.03938415345 | T165: 0.004652547106 | U165: 0.08455347143 | V165: 0.02255826088 | BB165: Omitido | BC165: 0 | BD165: 8.220229679 | BE165: 5.490050914 | BF165: 0.4799311249 | BG165: 0 | BH165: 0 | BI165: 0 | BJ165: 0.4799311249 | BK165: 0 | BL165: 0 | BM165: 0 | BN165: 0 | BO165: 8.220229679 | BP165: 5.490050914 | BQ165: 0 | BR165: 0 | BS165: 4.076616819 | BT165: 0.4799311249 | BU165: 8.220229679 | BV165: 1.413434095
BB166: Total | BC166: 9802.464537 | BD166: 9801.169405 | BE166: 9793.252806 | BF166: 9808.108989 | BG166: 9800.790122 | BH166: 6070.449202 | BI166: 6072.636787 | BJ166: 6069.195719 | BK166: 6067.326453 | BL166: 6073.876718 | BM166: 3725.660074 | BN166: 3734.060724 | BO166: 3731.831668 | BP166: 3731.062509 | BQ166: 3729.686004 | BR166: 12351.79503 | BS166: 10350.9063 | BT166: 10315.44902 | BU166: 9721.930442 | BV166: 6265.705066
A208: =A1026 -> El Salvador
A209: =A1034 -> 2014
A210: Access to hygiene facilities
A211: by wealth quintile and sub-national region
A212: Notes:
A213: WHO/UNICEF JMP customised wealth index excludes water,
A214: sanitation and hygiene assets.
A215: Survey used for analysis: | B215: =A1025 -> MICS14
A220: Access to handwashing | C220: NATIONAL wealth index quintile | H220: URBAN wealth index quintile | M220: RURAL wealth index quintile | R220: SUB-REGIONS: | BA220: Raw numbers of respondents: | BB220: Access to handwashing | BC220: NATIONAL wealth index quintile | BH220: URBAN wealth index quintile | BM220: RURAL wealth index quintile | BR220: SUB-REGIONS:
A221: Weighted percentage (used in graphs) | C221: Poorest | D221: Poor | E221: Middle | F221: Rich | G221: Richest | H221: Poorest | I221: Poor | J221: Middle | K221: Rich | L221: Richest | M221: Poorest | N221: Poor | O221: Middle | P221: Rich | Q221: Richest | R221: Metropolitana | S221: Central | T221: Occidente | U221: Oriental | V221: Para Central | BA221: Hygiene data, raw numbers (weighted) | BC221: Poorest | BD221: Poor | BE221: Middle | BF221: Rich | BG221: Richest | BH221: Poorest | BI221: Poor | BJ221: Middle | BK221: Rich | BL221: Richest | BM221: Poorest | BN221: Poor | BO221: Middle | BP221: Rich | BQ221: Richest | BR221: Metropolitana | BS221: Central | BT221: Occidente | BU221: Oriental | BV221: Para Central
A222: Hygiene ladder | B222: Basic | C222: 81.7609658 | D222: 88.49299192 | E222: 93.24548323 | F222: 93.24348008 | G222: 93.8908733 | H222: 87.57033076 | I222: 93.55983214 | J222: 93.71791797 | K222: 93.33031273 | L222: 94.25715863 | M222: 75.26134698 | N222: 84.89941432 | O222: 88.25676819 | P222: 90.32439751 | Q222: 92.90369243 | R222: 91.27948338 | S222: 89.26898129 | T222: 91.26922211 | U222: 87.47026317 | V222: 90.5457669 | BA222: Hygiene ladder | BB222: Basic | BC222: 7842.254506 | BD222: 8346.452899 | BE222: 8657.907039 | BF222: 8226.511881 | BG222: 7920.301186 | BH222: 5043.734311 | BI222: 5332.757208 | BJ222: 5102.234771 | BK222: 4964.462454 | BL222: 4795.916367 | BM222: 2762.710351 | BN222: 3134.026223 | BO222: 3222.087043 | BP222: 3262.139347 | BQ222: 3373.359436 | BR222: 9672.061863 | BS222: 8840.116444 | BT222: 8892.694495 | BU222: 8167.094291 | BV222: 5421.460418
B223: Limited | C223: 13.10108041 | D223: 8.734347229 | E223: 4.990911639 | F223: 4.674669609 | G223: 3.71384041 | H223: 9.576468066 | I223: 4.827274527 | J223: 4.443916372 | K223: 4.218236269 | L223: 3.069684834 | M223: 17.05309776 | N223: 11.30665368 | O223: 8.120289159 | P223: 7.771491392 | Q223: 5.503140011 | R223: 5.752490846 | S223: 7.304725833 | T223: 6.446256917 | U223: 9.949378307 | V223: 6.339426621 | BB223: Limited | BC223: 1256.614399 | BD223: 823.8032885 | BE223: 463.409567 | BF223: 412.428033 | BG223: 313.2864098 | BH223: 551.5699226 | BI223: 275.1467423 | BJ223: 241.9377759 | BK223: 224.3780715 | BL223: 156.1892163 | BM223: 625.9889251 | BN223: 417.3803721 | BO223: 296.4563401 | BP223: 280.6737554 | BQ223: 199.8205754 | BR223: 609.5394635 | BS223: 723.3713887 | BT223: 628.0824145 | BU223: 928.972977 | BV223: 379.5754531
B224: No facility | C224: 5.137953797 | D224: 2.772660856 | E224: 1.763605126 | F224: 2.081850312 | G224: 2.395286295 | H224: 2.853201175 | I224: 1.61289333 | J224: 1.838165662 | K224: 2.451450997 | L224: 2.673156534 | M224: 7.685555261 | N224: 3.793931997 | O224: 3.622942654 | P224: 1.9041111 | Q224: 1.59316756 | R224: 2.968025769 | S224: 3.426292882 | T224: 2.284520973 | U224: 2.580358525 | V224: 3.114806478 | BB224: No facility | BC224: 492.8163571 | BD224: 261.5109144 | BE224: 163.751945 | BF224: 183.6736072 | BG224: 202.0578594 | BH224: 164.3340677 | BI224: 91.93227836 | BJ224: 100.0742756 | BK224: 130.3985391 | BL224: 136.0133846 | BM224: 282.1230807 | BN224: 140.0514063 | BO224: 132.2667578 | BP224: 68.76852671 | BQ224: 57.84836621 | BR224: 314.4948655 | BS224: 339.2984619 | BT224: 222.5892433 | BU224: 240.9279522 | BV224: 186.5001602
A225: Lugar que usan con mayor frecuencia los miembros del hogar | B225: Lugar observado | C225: 92.82225782 | D225: 93.56287814 | E225: 93.1387843 | F225: 88.07956686 | G225: 84.00942673 | H225: 92.17282029 | I225: 92.34709973 | J225: 88.05404858 | K225: 85.5210374 | L225: 81.53121661 | M225: 90.95567519 | N225: 95.10843177 | O225: 94.28462204 | P225: 94.95453625 | Q225: 95.80377564 | R225: 83.23973399 | S225: 92.39275827 | T225: 92.2962916 | U225: 93.56235701 | V225: 92.58392806 | BA225: Observed handwashing place | BB225: Fixed | BC225: N/A | BD225: N/A | BE225: N/A | BF225: N/A | BG225: N/A | BH225: N/A | BI225: N/A | BJ225: N/A | BK225: N/A | BL225: N/A | BM225: N/A | BN225: N/A | BO225: N/A | BP225: N/A | BQ225: N/A | BR225: N/A | BS225: N/A | BT225: N/A | BU225: N/A | BV225: N/A
B226: No está en la vivienda/patio/lote | C226: 2.178819346 | D226: 0.8932231698 | E226: 0.8575150762 | F226: 0.8469613201 | G226: 1.020527644 | H226: 1.352296411 | I226: 0.605728698 | J226: 0.9329314537 | K226: 0.7891955953 | L226: 1.351328213 | M226: 3.410563133 | N226: 1.143816282 | O226: 1.153161154 | P226: 0.5689047011 | Q226: 0.7694989611 | R226: 1.249151218 | S226: 1.47217878 | T226: 1.086407523 | U226: 1.064862936 | V226: 0.7329438291 | BB226: Mobile | BC226: N/A | BD226: N/A | BE226: N/A | BF226: N/A | BG226: N/A | BH226: N/A | BI226: N/A | BJ226: N/A | BK226: N/A | BL226: N/A | BM226: N/A | BN226: N/A | BO226: N/A | BP226: N/A | BQ226: N/A | BR226: N/A | BS226: N/A | BT226: N/A | BU226: N/A | BV226: N/A
B227: No obtuvo permiso para ver el lugar | C227: 2.150268172 | D227: 3.768961521 | E227: 5.189126271 | F227: 10.0477622 | G227: 13.9289246 | H227: 5.120064274 | I227: 6.13902283 | J227: 10.29706283 | K227: 12.32976986 | L227: 16.22946588 | M227: 1.47189267 | N227: 1.140922044 | O227: 2.171092749 | P227: 3.202328543 | Q227: 2.645199253 | R227: 14.21411896 | S227: 4.329282759 | T227: 5.545884315 | U227: 3.959452537 | V227: 4.439548818 | BA227: Water / Soap | BB227: Water and soap | BC227: N/A | BD227: N/A | BE227: N/A | BF227: N/A | BG227: N/A | BH227: N/A | BI227: N/A | BJ227: N/A | BK227: N/A | BL227: N/A | BM227: N/A | BN227: N/A | BO227: N/A | BP227: N/A | BQ227: N/A | BR227: N/A | BS227: N/A | BT227: N/A | BU227: N/A | BV227: N/A
B228: (especificar) | C228: 2.848654666 | D228: 1.774937165 | E228: 0.8145743533 | F228: 1.025709624 | G228: 1.041121029 | H228: 1.354819029 | I228: 0.9081487423 | J228: 0.7159571348 | K228: 1.359997135 | L228: 0.8879892928 | M228: 4.161869003 | N228: 2.606829909 | O228: 2.391124054 | P228: 1.274230506 | Q228: 0.7815261425 | R228: 1.296995838 | S228: 1.805780195 | T228: 1.07141656 | U228: 1.413327518 | V228: 2.243579295 | BB228: Water only | BC228: N/A | BD228: N/A | BE228: N/A | BF228: N/A | BG228: N/A | BH228: N/A | BI228: N/A | BJ228: N/A | BK228: N/A | BL228: N/A | BM228: N/A | BN228: N/A | BO228: N/A | BP228: N/A | BQ228: N/A | BR228: N/A | BS228: N/A | BT228: N/A | BU228: N/A | BV228: N/A
BB229: Soap only | BC229: N/A | BD229: N/A | BE229: N/A | BF229: N/A | BG229: N/A | BH229: N/A | BI229: N/A | BJ229: N/A | BK229: N/A | BL229: N/A | BM229: N/A | BN229: N/A | BO229: N/A | BP229: N/A | BQ229: N/A | BR229: N/A | BS229: N/A | BT229: N/A | BU229: N/A | BV229: N/A
BB230: Neither | BC230: N/A | BD230: N/A | BE230: N/A | BF230: N/A | BG230: N/A | BH230: N/A | BI230: N/A | BJ230: N/A | BK230: N/A | BL230: N/A | BM230: N/A | BN230: N/A | BO230: N/A | BP230: N/A | BQ230: N/A | BR230: N/A | BS230: N/A | BT230: N/A | BU230: N/A | BV230: N/A
BA231: Lugar que usan con mayor frecuencia los miembros del hogar | BB231: Lugar observado | BC231: 9098.868905 | BD231: 9170.256187 | BE231: 9121.316607 | BF231: 8638.939914 | BG231: 8233.587596 | BH231: 5595.304234 | BI231: 5607.90395 | BJ231: 5344.172547 | BK231: 5188.840525 | BL231: 4952.105583 | BM231: 3388.699276 | BN231: 3551.406595 | BO231: 3518.543383 | BP231: 3542.813103 | BQ231: 3573.180011 | BR231: 10281.60133 | BS231: 9563.487833 | BT231: 9520.776909 | BU231: 9096.067268 | BV231: 5801.035871
BB232: No está en la vivienda/patio/lote | BC232: 213.5779937 | BD232: 87.54631603 | BE232: 83.97861926 | BF232: 83.07088937 | BG232: 100.0197725 | BH232: 82.09046672 | BI232: 36.78370375 | BJ232: 56.62143585 | BK232: 47.88307312 | BL232: 82.07800973 | BM232: 127.0659889 | BN232: 42.71079453 | BO232: 43.03403314 | BP232: 21.22619002 | BQ232: 28.69989505 | BR232: 154.2925981 | BS232: 152.383846 | BT232: 112.0678142 | BU232: 103.525234 | BV232: 45.92409863
BB233: No obtuvo permiso para ver el lugar | BC233: 210.779275 | BD233: 369.4023035 | BE233: 508.1842541 | BF233: 985.4954676 | BG233: 1365.144666 | BH233: 310.8109009 | BI233: 372.8005588 | BJ233: 624.9488963 | BK233: 748.0873886 | BL233: 985.7577497 | BM233: 54.83771755 | BN233: 42.60272193 | BO233: 81.02152673 | BP233: 119.4808797 | BQ233: 98.65762632 | BR233: 1755.698839 | BS233: 448.1200016 | BT233: 572.0828694 | BU233: 384.9352216 | BV233: 278.1690352
BB234: (especificar) | BC234: 279.2383634 | BD234: 173.9645984 | BE234: 79.7733257 | BF234: 100.6027178 | BG234: 102.0380869 | BH234: 82.24360095 | BI234: 55.14857461 | BJ234: 43.45283978 | BK234: 82.51546595 | BL234: 53.93537491 | BM234: 155.0570918 | BN234: 97.34061177 | BO234: 89.23272466 | BP234: 47.54233669 | BQ234: 29.14847115 | BR234: 160.2022675 | BS234: 186.9146159 | BT234: 110.5214291 | BU234: 137.4027182 | BV234: 140.5760616
BB235: Total | BC235: 9802.464537 | BD235: 9801.169405 | BE235: 9793.252806 | BF235: 9808.108989 | BG235: 9800.790122 | BH235: 6070.449202 | BI235: 6072.636787 | BJ235: 6069.195719 | BK235: 6067.326453 | BL235: 6073.876718 | BM235: 3725.660074 | BN235: 3734.060724 | BO235: 3731.831668 | BP235: 3731.062509 | BQ235: 3729.686004 | BR235: 12351.79503 | BS235: 10350.9063 | BT235: 10315.44902 | BU235: 9721.930442 | BV235: 6265.705066
BA259: Raw numbers of respondents: | BB259: Menstrual health and hygiene | BC259: NATIONAL wealth index quintile | BH259: URBAN wealth index quintile | BM259: RURAL wealth index quintile | BR259: SUB-REGIONS:
BA260: MHH data, raw numbers (weighted) | BC260: Poorest | BD260: Poor | BE260: Middle | BF260: Rich | BG260: Richest | BH260: Poorest | BI260: Poor | BJ260: Middle | BK260: Rich | BL260: Richest | BM260: Poorest | BN260: Poor | BO260: Middle | BP260: Rich | BQ260: Richest | BR260: Metropolitana | BS260: Central | BT260: Occidente | BU260: Oriental | BV260: Para Central
BA261: Private place to wash and change | BB261: Yes | BC261: N/A | BD261: N/A | BE261: N/A | BF261: N/A | BG261: N/A | BH261: N/A | BI261: N/A | BJ261: N/A | BK261: N/A | BL261: N/A | BM261: N/A | BN261: N/A | BO261: N/A | BP261: N/A | BQ261: N/A | BR261: N/A | BS261: N/A | BT261: N/A | BU261: N/A | BV261: N/A
BB262: No | BC262: N/A | BD262: N/A | BE262: N/A | BF262: N/A | BG262: N/A | BH262: N/A | BI262: N/A | BJ262: N/A | BK262: N/A | BL262: N/A | BM262: N/A | BN262: N/A | BO262: N/A | BP262: N/A | BQ262: N/A | BR262: N/A | BS262: N/A | BT262: N/A | BU262: N/A | BV262: N/A
BB263: DK/not sure/missing | BC263: N/A | BD263: N/A | BE263: N/A | BF263: N/A | BG263: N/A | BH263: N/A | BI263: N/A | BJ263: N/A | BK263: N/A | BL263: N/A | BM263: N/A | BN263: N/A | BO263: N/A | BP263: N/A | BQ263: N/A | BR263: N/A | BS263: N/A | BT263: N/A | BU263: N/A | BV263: N/A
BA264: Use of menstrual materials | BB264: Materials reusable | BC264: N/A | BD264: N/A | BE264: N/A | BF264: N/A | BG264: N/A | BH264: N/A | BI264: N/A | BJ264: N/A | BK264: N/A | BL264: N/A | BM264: N/A | BN264: N/A | BO264: N/A | BP264: N/A | BQ264: N/A | BR264: N/A | BS264: N/A | BT264: N/A | BU264: N/A | BV264: N/A
BB265: Materials not reusable | BC265: N/A | BD265: N/A | BE265: N/A | BF265: N/A | BG265: N/A | BH265: N/A | BI265: N/A | BJ265: N/A | BK265: N/A | BL265: N/A | BM265: N/A | BN265: N/A | BO265: N/A | BP265: N/A | BQ265: N/A | BR265: N/A | BS265: N/A | BT265: N/A | BU265: N/A | BV265: N/A
BB266: No materials used | BC266: N/A | BD266: N/A | BE266: N/A | BF266: N/A | BG266: N/A | BH266: N/A | BI266: N/A | BJ266: N/A | BK266: N/A | BL266: N/A | BM266: N/A | BN266: N/A | BO266: N/A | BP266: N/A | BQ266: N/A | BR266: N/A | BS266: N/A | BT266: N/A | BU266: N/A | BV266: N/A
BB267: DK/not sure/missing | BC267: N/A | BD267: N/A | BE267: N/A | BF267: N/A | BG267: N/A | BH267: N/A | BI267: N/A | BJ267: N/A | BK267: N/A | BL267: N/A | BM267: N/A | BN267: N/A | BO267: N/A | BP267: N/A | BQ267: N/A | BR267: N/A | BS267: N/A | BT267: N/A | BU267: N/A | BV267: N/A
BA268: Use of menstrual materials with private place to wash and change | BB268: Materials reusable | BC268: N/A | BD268: N/A | BE268: N/A | BF268: N/A | BG268: N/A | BH268: N/A | BI268: N/A | BJ268: N/A | BK268: N/A | BL268: N/A | BM268: N/A | BN268: N/A | BO268: N/A | BP268: N/A | BQ268: N/A | BR268: N/A | BS268: N/A | BT268: N/A | BU268: N/A | BV268: N/A
BB269: Materials not reusable | BC269: N/A | BD269: N/A | BE269: N/A | BF269: N/A | BG269: N/A | BH269: N/A | BI269: N/A | BJ269: N/A | BK269: N/A | BL269: N/A | BM269: N/A | BN269: N/A | BO269: N/A | BP269: N/A | BQ269: N/A | BR269: N/A | BS269: N/A | BT269: N/A | BU269: N/A | BV269: N/A
BB270: No materials used | BC270: N/A | BD270: N/A | BE270: N/A | BF270: N/A | BG270: N/A | BH270: N/A | BI270: N/A | BJ270: N/A | BK270: N/A | BL270: N/A | BM270: N/A | BN270: N/A | BO270: N/A | BP270: N/A | BQ270: N/A | BR270: N/A | BS270: N/A | BT270: N/A | BU270: N/A | BV270: N/A
BA271: Awareness of menstruation before menarche | BB271: Yes | BC271: N/A | BD271: N/A | BE271: N/A | BF271: N/A | BG271: N/A | BH271: N/A | BI271: N/A | BJ271: N/A | BK271: N/A | BL271: N/A | BM271: N/A | BN271: N/A | BO271: N/A | BP271: N/A | BQ271: N/A | BR271: N/A | BS271: N/A | BT271: N/A | BU271: N/A | BV271: N/A
BB272: No | BC272: N/A | BD272: N/A | BE272: N/A | BF272: N/A | BG272: N/A | BH272: N/A | BI272: N/A | BJ272: N/A | BK272: N/A | BL272: N/A | BM272: N/A | BN272: N/A | BO272: N/A | BP272: N/A | BQ272: N/A | BR272: N/A | BS272: N/A | BT272: N/A | BU272: N/A | BV272: N/A
BB273: DK/not sure/missing | BC273: N/A | BD273: N/A | BE273: N/A | BF273: N/A | BG273: N/A | BH273: N/A | BI273: N/A | BJ273: N/A | BK273: N/A | BL273: N/A | BM273: N/A | BN273: N/A | BO273: N/A | BP273: N/A | BQ273: N/A | BR273: N/A | BS273: N/A | BT273: N/A | BU273: N/A | BV273: N/A
BA274: Participation in (all) activities during menstruation | BB274: Yes | BC274: N/A | BD274: N/A | BE274: N/A | BF274: N/A | BG274: N/A | BH274: N/A | BI274: N/A | BJ274: N/A | BK274: N/A | BL274: N/A | BM274: N/A | BN274: N/A | BO274: N/A | BP274: N/A | BQ274: N/A | BR274: N/A | BS274: N/A | BT274: N/A | BU274: N/A | BV274: N/A
BB275: No | BC275: N/A | BD275: N/A | BE275: N/A | BF275: N/A | BG275: N/A | BH275: N/A | BI275: N/A | BJ275: N/A | BK275: N/A | BL275: N/A | BM275: N/A | BN275: N/A | BO275: N/A | BP275: N/A | BQ275: N/A | BR275: N/A | BS275: N/A | BT275: N/A | BU275: N/A | BV275: N/A
BB276: DK/not sure/missing/no such activity | BC276: N/A | BD276: N/A | BE276: N/A | BF276: N/A | BG276: N/A | BH276: N/A | BI276: N/A | BJ276: N/A | BK276: N/A | BL276: N/A | BM276: N/A | BN276: N/A | BO276: N/A | BP276: N/A | BQ276: N/A | BR276: N/A | BS276: N/A | BT276: N/A | BU276: N/A | BV276: N/A
BA277: Participation in specific activities during menstruation | BB277: Did not go to school (amongst those usually attending school) | BC277: N/A | BD277: N/A | BE277: N/A | BF277: N/A | BG277: N/A | BH277: N/A | BI277: N/A | BJ277: N/A | BK277: N/A | BL277: N/A | BM277: N/A | BN277: N/A | BO277: N/A | BP277: N/A | BQ277: N/A | BR277: N/A | BS277: N/A | BT277: N/A | BU277: N/A | BV277: N/A
BB278: Did not go to work (amongst those who usually work) | BC278: N/A | BD278: N/A | BE278: N/A | BF278: N/A | BG278: N/A | BH278: N/A | BI278: N/A | BJ278: N/A | BK278: N/A | BL278: N/A | BM278: N/A | BN278: N/A | BO278: N/A | BP278: N/A | BQ278: N/A | BR278: N/A | BS278: N/A | BT278: N/A | BU278: N/A | BV278: N/A
BB279: Did not participate in social activities | BC279: N/A | BD279: N/A | BE279: N/A | BF279: N/A | BG279: N/A | BH279: N/A | BI279: N/A | BJ279: N/A | BK279: N/A | BL279: N/A | BM279: N/A | BN279: N/A | BO279: N/A | BP279: N/A | BQ279: N/A | BR279: N/A | BS279: N/A | BT279: N/A | BU279: N/A | BV279: N/A
BB280: Did not cook food | BC280: N/A | BD280: N/A | BE280: N/A | BF280: N/A | BG280: N/A | BH280: N/A | BI280: N/A | BJ280: N/A | BK280: N/A | BL280: N/A | BM280: N/A | BN280: N/A | BO280: N/A | BP280: N/A | BQ280: N/A | BR280: N/A | BS280: N/A | BT280: N/A | BU280: N/A | BV280: N/A
BB281: Did not eat with others | BC281: N/A | BD281: N/A | BE281: N/A | BF281: N/A | BG281: N/A | BH281: N/A | BI281: N/A | BJ281: N/A | BK281: N/A | BL281: N/A | BM281: N/A | BN281: N/A | BO281: N/A | BP281: N/A | BQ281: N/A | BR281: N/A | BS281: N/A | BT281: N/A | BU281: N/A | BV281: N/A
BB282: Did not bathe in regular place | BC282: N/A | BD282: N/A | BE282: N/A | BF282: N/A | BG282: N/A | BH282: N/A | BI282: N/A | BJ282: N/A | BK282: N/A | BL282: N/A | BM282: N/A | BN282: N/A | BO282: N/A | BP282: N/A | BQ282: N/A | BR282: N/A | BS282: N/A | BT282: N/A | BU282: N/A | BV282: N/A
BB283: Did not participate in other activities | BC283: N/A | BD283: N/A | BE283: N/A | BF283: N/A | BG283: N/A | BH283: N/A | BI283: N/A | BJ283: N/A | BK283: N/A | BL283: N/A | BM283: N/A | BN283: N/A | BO283: N/A | BP283: N/A | BQ283: N/A | BR283: N/A | BS283: N/A | BT283: N/A | BU283: N/A | BV283: N/A
BB284: DK/not sure/missing/no such activity | BC284: N/A | BD284: N/A | BE284: N/A | BF284: N/A | BG284: N/A | BH284: N/A | BI284: N/A | BJ284: N/A | BK284: N/A | BL284: N/A | BM284: N/A | BN284: N/A | BO284: N/A | BP284: N/A | BQ284: N/A | BR284: N/A | BS284: N/A | BT284: N/A | BU284: N/A | BV284: N/A
BA339: Raw numbers of respondents: | BB339: Basic water, sanitation and hygiene | BC339: NATIONAL wealth index quintile | BH339: URBAN wealth index quintile | BM339: RURAL wealth index quintile | BR339: SUB-REGIONS:
BA340: WatSan data, raw numbers (weighted) | BC340: Poorest | BD340: Poor | BE340: Middle | BF340: Rich | BG340: Richest | BH340: Poorest | BI340: Poor | BJ340: Middle | BK340: Rich | BL340: Richest | BM340: Poorest | BN340: Poor | BO340: Middle | BP340: Rich | BQ340: Richest | BR340: Metropolitana | BS340: Central | BT340: Occidente | BU340: Oriental | BV340: Para Central
BA341: Use of Basic Water Sanitation and Hygiene | BB341: Yes | BC341: N/A | BD341: N/A | BE341: N/A | BF341: N/A | BG341: N/A | BH341: N/A | BI341: N/A | BJ341: N/A | BK341: N/A | BL341: N/A | BM341: N/A | BN341: N/A | BO341: N/A | BP341: N/A | BQ341: N/A | BR341: N/A | BS341: N/A | BT341: N/A | BU341: N/A | BV341: N/A
BB342: No | BC342: N/A | BD342: N/A | BE342: N/A | BF342: N/A | BG342: N/A | BH342: N/A | BI342: N/A | BJ342: N/A | BK342: N/A | BL342: N/A | BM342: N/A | BN342: N/A | BO342: N/A | BP342: N/A | BQ342: N/A | BR342: N/A | BS342: N/A | BT342: N/A | BU342: N/A | BV342: N/A
BA343: Use of Basic Water and Sanitation | BB343: Yes | BC343: N/A | BD343: N/A | BE343: N/A | BF343: N/A | BG343: N/A | BH343: N/A | BI343: N/A | BJ343: N/A | BK343: N/A | BL343: N/A | BM343: N/A | BN343: N/A | BO343: N/A | BP343: N/A | BQ343: N/A | BR343: N/A | BS343: N/A | BT343: N/A | BU343: N/A | BV343: N/A
BB344: No | BC344: N/A | BD344: N/A | BE344: N/A | BF344: N/A | BG344: N/A | BH344: N/A | BI344: N/A | BJ344: N/A | BK344: N/A | BL344: N/A | BM344: N/A | BN344: N/A | BO344: N/A | BP344: N/A | BQ344: N/A | BR344: N/A | BS344: N/A | BT344: N/A | BU344: N/A | BV344: N/A
BA345: Use of Basic Water and Hygiene | BB345: Yes | BC345: N/A | BD345: N/A | BE345: N/A | BF345: N/A | BG345: N/A | BH345: N/A | BI345: N/A | BJ345: N/A | BK345: N/A | BL345: N/A | BM345: N/A | BN345: N/A | BO345: N/A | BP345: N/A | BQ345: N/A | BR345: N/A | BS345: N/A | BT345: N/A | BU345: N/A | BV345: N/A
BB346: No | BC346: N/A | BD346: N/A | BE346: N/A | BF346: N/A | BG346: N/A | BH346: N/A | BI346: N/A | BJ346: N/A | BK346: N/A | BL346: N/A | BM346: N/A | BN346: N/A | BO346: N/A | BP346: N/A | BQ346: N/A | BR346: N/A | BS346: N/A | BT346: N/A | BU346: N/A | BV346: N/A
BA347: Use of Basic Sanitation and Hygiene | BB347: Yes | BC347: N/A | BD347: N/A | BE347: N/A | BF347: N/A | BG347: N/A | BH347: N/A | BI347: N/A | BJ347: N/A | BK347: N/A | BL347: N/A | BM347: N/A | BN347: N/A | BO347: N/A | BP347: N/A | BQ347: N/A | BR347: N/A | BS347: N/A | BT347: N/A | BU347: N/A | BV347: N/A
BB348: No | BC348: N/A | BD348: N/A | BE348: N/A | BF348: N/A | BG348: N/A | BH348: N/A | BI348: N/A | BJ348: N/A | BK348: N/A | BL348: N/A | BM348: N/A | BN348: N/A | BO348: N/A | BP348: N/A | BQ348: N/A | BR348: N/A | BS348: N/A | BT348: N/A | BU348: N/A | BV348: N/A
BA349: Use of Basic Water | BB349: Yes | BC349: N/A | BD349: N/A | BE349: N/A | BF349: N/A | BG349: N/A | BH349: N/A | BI349: N/A | BJ349: N/A | BK349: N/A | BL349: N/A | BM349: N/A | BN349: N/A | BO349: N/A | BP349: N/A | BQ349: N/A | BR349: N/A | BS349: N/A | BT349: N/A | BU349: N/A | BV349: N/A
BB350: No | BC350: N/A | BD350: N/A | BE350: N/A | BF350: N/A | BG350: N/A | BH350: N/A | BI350: N/A | BJ350: N/A | BK350: N/A | BL350: N/A | BM350: N/A | BN350: N/A | BO350: N/A | BP350: N/A | BQ350: N/A | BR350: N/A | BS350: N/A | BT350: N/A | BU350: N/A | BV350: N/A
BA351: Use of Basic Sanitation | BB351: Yes | BC351: N/A | BD351: N/A | BE351: N/A | BF351: N/A | BG351: N/A | BH351: N/A | BI351: N/A | BJ351: N/A | BK351: N/A | BL351: N/A | BM351: N/A | BN351: N/A | BO351: N/A | BP351: N/A | BQ351: N/A | BR351: N/A | BS351: N/A | BT351: N/A | BU351: N/A | BV351: N/A
BB352: No | BC352: N/A | BD352: N/A | BE352: N/A | BF352: N/A | BG352: N/A | BH352: N/A | BI352: N/A | BJ352: N/A | BK352: N/A | BL352: N/A | BM352: N/A | BN352: N/A | BO352: N/A | BP352: N/A | BQ352: N/A | BR352: N/A | BS352: N/A | BT352: N/A | BU352: N/A | BV352: N/A
BA353: Access to Basic Hygiene | BB353: Yes | BC353: N/A | BD353: N/A | BE353: N/A | BF353: N/A | BG353: N/A | BH353: N/A | BI353: N/A | BJ353: N/A | BK353: N/A | BL353: N/A | BM353: N/A | BN353: N/A | BO353: N/A | BP353: N/A | BQ353: N/A | BR353: N/A | BS353: N/A | BT353: N/A | BU353: N/A | BV353: N/A
BB354: No | BC354: N/A | BD354: N/A | BE354: N/A | BF354: N/A | BG354: N/A | BH354: N/A | BI354: N/A | BJ354: N/A | BK354: N/A | BL354: N/A | BM354: N/A | BN354: N/A | BO354: N/A | BP354: N/A | BQ354: N/A | BR354: N/A | BS354: N/A | BT354: N/A | BU354: N/A | BV354: N/A
C399: INITIAL (national) Wealth Index | H399: URBAN Wealth Index | M399: RURAL Wealth Index
C400: Component Matrix | H400: Component Matrix | M400: Component Matrix
E401: Component | J401: Component | O401: Component
B402: Note: The INITIAL (national) Wealth Index is based on the first component of the Principal Component Analysis (PCA) which has been obtained at national level. The final national-level (NATIONAL) Wealth Index is based on the URBAN and RURAL specific wealth indexes. Regression procedures are used to establish the relationships between the two sets of scores (urban and rural) and the initial (national) wealth factors. This allows best use of the available information for each area and a better precision of the FINAL (NATIONAL) Wealth Index. For dependency reasons, all WASH variables (contained in the generic MICS and DHS scripts) have been excluded from the sets of asset variables used in the PCAs. The PCA can extracts as many components as there are asset variables in the input. Only the first of the components is used to represent the Wealth Index. The scores represent the weights of the asset variables on the Wealth Index (correlations between the variables and the component). The communalities are the proportion of each variable's variance that can be explained by the component. Proportion of explained variance is the part of the model's total variance that is explained by the component. For more information on the procedure used: The DHS Wealth Index, DHS Comparative Reports No. 6, Shea Oscar Rutstein, Kiersten Johnson, ORC Macro International Inc., 2004. The DHS Wealth Index: Approaches for Rural and Urban Areas, Shea O. Rutstein, ORC Macro International Inc., 2008. MICS Methodological Paper No. 4, Review of options for reporting water, sanitation and hygiene coverage by wealth quintile, UNICEF, 2016. | E402: 1 | J402: 1 | O402: 1
C403: Wood fuel | E403: -0.66976479 | H403: Refrigetaror | J403: 0.617616913 | M403: Refrigetaror | O403: 0.6739943087
C404: LPG fuel | E404: 0.6599809647 | H404: Lavadora | J404: 0.581356208 | M404: Cocina | O404: 0.6262522142
C405: Refrigetaror | E405: 0.6513587499 | H405: Wood fuel | J405: -0.5580734881 | M405: Earth/sand floor | O405: -0.6258104168
... 301 more rows

Sheet data_summary
A1: iso3 | B1: year | C1: data_source | D1: row | E1: var1 | F1: var2 | G1: varname | H1: total_q1 | I1: total_q2 | J1: total_q3 | K1: total_q4 | L1: total_q5 | M1: urban_q1 | N1: urban_q2 | O1: urban_q3 | P1: urban_q4 | Q1: urban_q5 | R1: rural_q1 | S1: rural_q2 | T1: rural_q3 | U1: rural_q4 | V1: rural_q5 | W1: region_1_name | X1: region_2_name | Y1: region_3_name | Z1: region_4_name | AA1: region_5_name | AB1: region_1 | AC1: region_2 | AD1: region_3 | AE1: region_4 | AF1: region_5 | AG1: n_total_q1 | AH1: n_total_q2 | AI1: n_total_q3 | AJ1: n_total_q4 | AK1: n_total_q5 | AL1: n_urban_q1 | AM1: n_urban_q2 | AN1: n_urban_q3 | AO1: n_urban_q4 | AP1: n_urban_q5 | AQ1: n_rural_q1 | AR1: n_rural_q2 | AS1: n_rural_q3 | AT1: n_rural_q4 | AU1: n_rural_q5 | AV1: n_region_1 | AW1: n_region_2 | AX1: n_region_3 | AY1: n_region_4 | AZ1: n_region_5
A2: SLV | B2: 2014 | C2: SLV_2014_MICS | D2: 16 | E2: Water | F2: Improved | G2: w_imp | H2: 88.85266341 | I2: 95.81371401 | J2: 98.60534793 | K2: 99.72341487 | L2: 99.52617132 | M2: 97.6732341 | N2: 99.67808767 | O2: 99.90147653 | P2: 99.96230014 | Q2: 99.90741289 | R2: 84.71759366 | S2: 87.3597431 | T2: 94.13796597 | U2: 95.49158214 | V2: 97.04681775 | W2: Metropolitana | X2: Central | Y2: Occidente | Z2: Oriental | AA2: Para Central | AB2: 99.62325692 | AC2: 95.37324889 | AD2: 95.76924352 | AE2: 96.69983667 | AF2: 93.12988873
A3: SLV | B3: 2014 | C3: SLV_2014_MICS | D3: 17 | E3: Water | F3: Not Improved | H3: 11.14733659 | I3: 4.18628599 | J3: 1.394652075 | K3: 0.2765851304 | L3: 0.4738286775 | M3: 2.326765904 | N3: 0.3219123295 | O3: 0.09852347104 | P3: 0.0376998593 | Q3: 0.09258710808 | R3: 15.28240634 | S3: 12.6402569 | T3: 5.86203403 | U3: 4.50841786 | V3: 2.953182247 | W3: Metropolitana | X3: Central | Y3: Occidente | Z3: Oriental | AA3: Para Central | AB3: 0.3767430822 | AC3: 4.626751108 | AD3: 4.23075648 | AE3: 3.300163333 | AF3: 6.870111273
A4: SLV | B4: 2014 | C4: SLV_2014_MICS | D4: 18 | E4: Water ladder | F4: Basic | G4: w_bas | H4: 86.1270817 | I4: 94.21796243 | J4: 98.13581483 | K4: 99.39844668 | L4: 99.25605946 | M4: 96.79968963 | N4: 99.44887341 | O4: 99.67043981 | P4: 99.94179862 | Q4: 99.6277102 | R4: 80.73094552 | S4: 84.85404525 | T4: 92.14301257 | U4: 93.64066325 | V4: 95.9749277 | W4: Metropolitana | X4: Central | Y4: Occidente | Z4: Oriental | AA4: Para Central | AB4: 99.17485276 | AC4: 93.56730207 | AD4: 95.31588735 | AE4: 95.3069423 | AF4: 91.80490914
A5: SLV | B5: 2014 | C5: SLV_2014_MICS | D5: 19 | E5: Water ladder | F5: Limited | G5: w_lim | H5: 2.725581703 | I5: 1.595751579 | J5: 0.4695330969 | K5: 0.3249681849 | L5: 0.2701118611 | M5: 0.8735444632 | N5: 0.2292142591 | O5: 0.231036721 | P5: 0.02050151593 | Q5: 0.2797026871 | R5: 3.98664814 | S5: 2.505697843 | T5: 1.994953402 | U5: 1.850918892 | V5: 1.071890049 | W5: Metropolitana | X5: Central | Y5: Occidente | Z5: Oriental | AA5: Para Central | AB5: 0.4484041558 | AC5: 1.805946826 | AD5: 0.4533561703 | AE5: 1.39289437 | AF5: 1.324979588
A6: SLV | B6: 2014 | C6: SLV_2014_MICS | D6: 20 | E6: Water ladder | F6: Unimproved | G6: w_unimp | H6: 9.246483755 | I6: 3.295820326 | J6: 1.267980762 | K6: 0.2765851304 | L6: 0.1514369116 | M6: 2.326765904 | N6: 0.3002371414 | O6: 0.09852347104 | P6: 0.0376998593 | Q6: 0.09258710808 | R6: 12.88560914 | S6: 10.15446887 | T6: 4.862866502 | U6: 3.014893103 | V6: 1.992272763 | W6: Metropolitana | X6: Central | Y6: Occidente | Z6: Oriental | AA6: Para Central | AB6: 0.2488487782 | AC6: 4.115520586 | AD6: 3.111780904 | AE6: 2.876864722 | AF6: 5.570028492
A7: SLV | B7: 2014 | C7: SLV_2014_MICS | D7: 21 | E7: Water ladder | F7: Surface water | G7: w_sur | H7: 1.90085284 | I7: 0.8904656638 | J7: 0.1266713129 | K7: 0 | L7: 0.3223917659 | M7: 0 | N7: 0.02167518813 | O7: 0 | P7: 0 | Q7: 0 | R7: 2.396797193 | S7: 2.48578803 | T7: 0.9991675286 | U7: 1.493524757 | V7: 0.9609094837 | W7: Metropolitana | X7: Central | Y7: Occidente | Z7: Oriental | AA7: Para Central | AB7: 0.127894304 | AC7: 0.5112305224 | AD7: 1.118975576 | AE7: 0.4232986107 | AF7: 1.30008278
A8: SLV | B8: 2014 | C8: SLV_2014_MICS | D8: 22 | E8: Improved water point at more than 30 minutes | F8: Yes | H8: 3.067529547 | I8: 1.665473043 | J8: 0.4761740684 | K8: 0.3258694915 | L8: 0.2713978218 | M8: 0.8943539869 | N8: 0.2299545111 | O8: 0.2312645709 | P8: 0.02050924789 | Q8: 0.2799618958 | R8: 4.705808991 | S8: 2.868252303 | T8: 2.119180483 | U8: 1.938305818 | V8: 1.104508189 | W8: Metropolitana | X8: Central | Y8: Occidente | Z8: Oriental | AA8: Para Central | AB8: 0.4500998759 | AC8: 1.893556996 | AD8: 0.4733838899 | AE8: 1.440430944 | AF8: 1.422722185
A9: SLV | B9: 2014 | C9: SLV_2014_MICS | D9: 23 | E9: Improved water point at more than 30 minutes | F9: No | H9: 96.93247045 | I9: 98.33452696 | J9: 99.52382593 | K9: 99.67413051 | L9: 99.72860218 | M9: 99.10564601 | N9: 99.77004549 | O9: 99.76873543 | P9: 99.97949075 | Q9: 99.7200381 | R9: 95.29419101 | S9: 97.1317477 | T9: 97.88081952 | U9: 98.06169418 | V9: 98.89549181 | W9: Metropolitana | X9: Central | Y9: Occidente | Z9: Oriental | AA9: Para Central | AB9: 99.54990012 | AC9: 98.106443 | AD9: 99.52661611 | AE9: 98.55956906 | AF9: 98.57727782
A10: SLV | B10: 2014 | C10: SLV_2014_MICS | D10: 29 | E10: Piped water | F10: Yes | G10: w_pip | H10: 64.28775818 | I10: 76.99003444 | J10: 84.94444439 | K10: 92.31198092 | L10: 93.96770964 | M10: 87.25388218 | N10: 93.11763317 | O10: 95.34552196 | P10: 97.5788811 | Q10: 95.73783973 | R10: 55.09832216 | S10: 58.43923081 | T10: 69.18238108 | U10: 70.48878503 | V10: 67.29668092 | W10: Metropolitana | X10: Central | Y10: Occidente | Z10: Oriental | AA10: Para Central | AB10: 96.50734869 | AC10: 81.61326193 | AD10: 80.59674397 | AE10: 72.68508009 | AF10: 74.72038821
A11: SLV | B11: 2014 | C11: SLV_2014_MICS | D11: 30 | E11: Piped water | F11: No | H11: 35.71224182 | I11: 23.00996556 | J11: 15.05555561 | K11: 7.688019081 | L11: 6.032290358 | M11: 12.74611782 | N11: 6.882366829 | O11: 4.654478044 | P11: 2.421118897 | Q11: 4.262160269 | R11: 44.90167784 | S11: 41.56076919 | T11: 30.81761892 | U11: 29.51121497 | V11: 32.70331908 | W11: Metropolitana | X11: Central | Y11: Occidente | Z11: Oriental | AA11: Para Central | AB11: 3.492651306 | AC11: 18.38673807 | AD11: 19.40325603 | AE11: 27.31491991 | AF11: 25.27961179
A12: SLV | B12: 2014 | C12: SLV_2014_MICS | D12: 31 | E12: Piped water on premises | F12: Yes | G12: w_pop | H12: 47.10565354 | I12: 66.31200709 | J12: 78.49076242 | K12: 88.98174798 | L12: 93.50747957 | M12: 68.42351588 | N12: 84.72231078 | O12: 91.7596304 | P12: 96.10336989 | Q12: 95.37523332 | R12: 36.16833673 | S12: 48.63023133 | T12: 60.26898346 | U12: 64.59198794 | V12: 63.85590211 | W12: Metropolitana | X12: Central | Y12: Occidente | Z12: Oriental | AA12: Para Central | AB12: 92.93104877 | AC12: 74.32617995 | AD12: 70.87350485 | AE12: 62.70516447 | AF12: 65.69740971
A13: SLV | B13: 2014 | C13: SLV_2014_MICS | D13: 32 | E13: Piped water on premises | F13: No | H13: 52.89434646 | I13: 33.68799291 | J13: 21.50923758 | K13: 11.01825202 | L13: 6.492520426 | M13: 31.57648412 | N13: 15.27768922 | O13: 8.240369599 | P13: 3.896630107 | Q13: 4.624766676 | R13: 63.83166327 | S13: 51.36976867 | T13: 39.73101654 | U13: 35.40801206 | V13: 36.14409789 | W13: Metropolitana | X13: Central | Y13: Occidente | Z13: Oriental | AA13: Para Central | AB13: 7.068951231 | AC13: 25.67382005 | AD13: 29.12649515 | AE13: 37.29483553 | AF13: 34.30259029
A14: SLV | B14: 2014 | C14: SLV_2014_MICS | D14: 35 | E14: Water source on premises | F14: Yes | H14: 56.42734304 | I14: 75.99696756 | J14: 86.80720993 | K14: 93.11656031 | L14: 96.82369162 | M14: 73.49594895 | N14: 89.210231 | O14: 94.48552536 | P14: 97.50384673 | Q14: 97.9008019 | R14: 46.55914909 | S14: 60.86323532 | T14: 72.08188683 | U14: 78.36295387 | V14: 80.61833869 | W14: Metropolitana | X14: Central | Y14: Occidente | Z14: Oriental | AA14: Para Central | AB14: 93.81727457 | AC14: 78.87086741 | AD14: 77.63785179 | AE14: 77.7746514 | AF14: 76.31566195
A15: SLV | B15: 2014 | C15: SLV_2014_MICS | D15: 36 | E15: Water source on premises | F15: No | H15: 43.57265696 | I15: 24.00303244 | J15: 13.19279007 | K15: 6.88343969 | L15: 3.176308379 | M15: 26.50405105 | N15: 10.789769 | O15: 5.514474644 | P15: 2.496153275 | Q15: 2.099198104 | R15: 53.44085091 | S15: 39.13676468 | T15: 27.91811317 | U15: 21.63704613 | V15: 19.38166131 | W15: Metropolitana | X15: Central | Y15: Occidente | Z15: Oriental | AA15: Para Central | AB15: 6.182725434 | AC15: 21.12913259 | AD15: 22.36214821 | AE15: 22.2253486 | AF15: 23.68433805
A16: SLV | B16: 2014 | C16: SLV_2014_MICS | D16: 37 | E16: Improved Water source on premises | F16: Yes | G16: w_premises | H16: 55.35878721 | I16: 74.73845717 | J16: 86.34166823 | K16: 93.09323906 | L16: 96.80766665 | M16: 72.68754265 | N16: 89.01193484 | O16: 94.48552536 | P16: 97.46614687 | Q16: 97.9008019 | R16: 45.31611174 | S16: 59.15745107 | T16: 70.64069491 | U16: 77.47907518 | V16: 80.1525407 | W16: Metropolitana | X16: Central | Y16: Occidente | Z16: Oriental | AA16: Para Central | AB16: 93.81727457 | AC16: 78.55537077 | AD16: 76.86727326 | AE16: 77.03762242 | AF16: 74.81951235
A17: SLV | B17: 2014 | C17: SLV_2014_MICS | D17: 38 | E17: Improved Water source on premises | F17: No | H17: 44.64121279 | I17: 25.26154283 | J17: 13.65833177 | K17: 6.906760939 | L17: 3.192333354 | M17: 27.31245735 | N17: 10.98806516 | O17: 5.514474644 | P17: 2.533853134 | Q17: 2.099198104 | R17: 54.68388826 | S17: 40.84254893 | T17: 29.35930509 | U17: 22.52092482 | V17: 19.8474593 | W17: Metropolitana | X17: Central | Y17: Occidente | Z17: Oriental | AA17: Para Central | AB17: 6.182725434 | AC17: 21.44462923 | AD17: 23.13272674 | AE17: 22.96237758 | AF17: 25.18048765
A18: SLV | B18: 2014 | C18: SLV_2014_MICS | D18: 41 | E18: Water point at more than 30 minutes | F18: Yes | H18: 4.011205006 | I18: 1.937440902 | J18: 0.4977349688 | K18: 0.336791495 | L18: 0.287985577 | M18: 0.9835494867 | N18: 0.276568888 | O18: 0.2310331715 | P18: 0.02050149458 | Q18: 0.3085350225 | R18: 6.697903211 | S18: 3.216049453 | T18: 2.535963785 | U18: 1.968177186 | V18: 1.102678592 | W18: Metropolitana | X18: Central | Y18: Occidente | Z18: Oriental | AA18: Para Central | AB18: 0.5129958123 | AC18: 2.555875913 | AD18: 0.6503050061 | AE18: 1.594687871 | AF18: 1.863271429
A19: SLV | B19: 2014 | C19: SLV_2014_MICS | D19: 42 | E19: Water point at more than 30 minutes | F19: No | G19: w_30min | H19: 95.98879499 | I19: 98.0625591 | J19: 99.50226503 | K19: 99.66320851 | L19: 99.71201442 | M19: 99.01645051 | N19: 99.72343111 | O19: 99.76896683 | P19: 99.97949851 | Q19: 99.69146498 | R19: 93.30209679 | S19: 96.78395055 | T19: 97.46403622 | U19: 98.03182281 | V19: 98.89732141 | W19: Metropolitana | X19: Central | Y19: Occidente | Z19: Oriental | AA19: Para Central | AB19: 99.48700419 | AC19: 97.44412409 | AD19: 99.34969499 | AE19: 98.40531213 | AF19: 98.13672857
A20: SLV | B20: 2014 | C20: SLV_2014_MICS | D20: 58 | E20: Fuente principal de agua para beber | F20: Tubería dentro de la vivienda | H20: 12.3730329 | I20: 24.76515589 | J20: 38.70429729 | K20: 46.15893735 | L20: 38.4082469 | M20: 27.69543979 | N20: 42.55072549 | O20: 49.36077057 | P20: 49.45638244 | Q20: 35.91230215 | R20: 8.390636325 | S20: 12.2526783 | T20: 18.68123875 | U20: 23.49076663 | V20: 25.08257123 | W20: Metropolitana | X20: Central | Y20: Occidente | Z20: Oriental | AA20: Para Central | AB20: 40.75717679 | AC20: 32.05203967 | AD20: 35.61183806 | AE20: 21.48703236 | AF20: 25.66003966
A21: SLV | B21: 2014 | C21: SLV_2014_MICS | D21: 59 | E21: Fuente principal de agua para beber | F21: Tubería dentro del terreno, patio o lote | H21: 34.17928883 | I21: 38.15591355 | J21: 30.65327291 | K21: 18.44568812 | L21: 9.161588617 | M21: 38.01337959 | N21: 31.17609478 | O21: 19.92605642 | P21: 10.39138963 | Q21: 5.760876397 | R21: 27.70337899 | S21: 35.74041984 | T21: 40.4836165 | U21: 35.87447277 | V21: 31.97740262 | W21: Metropolitana | X21: Central | Y21: Occidente | Z21: Oriental | AA21: Para Central | AB21: 10.7926468 | AC21: 30.14698215 | AD21: 30.99307891 | AE21: 31.51726084 | AF21: 33.26743329
A22: SLV | B22: 2014 | C22: SLV_2014_MICS | D22: 60 | E22: Fuente principal de agua para beber | F22: Tubería al vecino | H22: 11.03889348 | I22: 5.040478195 | J22: 2.674950474 | K22: 0.9385451958 | L22: 0.1252387401 | M22: 10.61680977 | N22: 3.318274142 | O22: 1.533926634 | P22: 0.1260223166 | Q22: 0.1011654805 | R22: 11.53595229 | S22: 6.522823022 | T22: 5.174477235 | U22: 2.671601168 | V22: 0.626887544 | W22: Metropolitana | X22: Central | Y22: Occidente | Z22: Oriental | AA22: Para Central | AB22: 1.395993446 | AC22: 3.469749021 | AD22: 5.338258972 | AE22: 5.836937741 | AF22: 4.671347877
A23: SLV | B23: 2014 | C23: SLV_2014_MICS | D23: 61 | E23: Fuente principal de agua para beber | F23: Llave/grifo público | H23: 6.035511573 | I23: 5.438420749 | J23: 3.100514959 | K23: 1.886636112 | L23: 0.1481431581 | M23: 7.903766692 | N23: 4.338765521 | O23: 1.600411642 | P23: 0.9282356842 | Q23: 0.01638900627 | R23: 7.394033144 | S23: 3.286176459 | T23: 3.477928955 | U23: 2.605668298 | V23: 2.81389127 | W23: Metropolitana | X23: Central | Y23: Occidente | Z23: Oriental | AA23: Para Central | AB23: 1.714571121 | AC23: 3.547724497 | AD23: 4.318961636 | AE23: 3.473701164 | AF23: 4.239402558
A24: SLV | B24: 2014 | C24: SLV_2014_MICS | D24: 62 | E24: Fuente principal de agua para beber | F24: Pozo con tubería | H24: 1.600936085 | I24: 2.016313006 | J24: 1.239226014 | K24: 0.9394599682 | L24: 0.6972454264 | M24: 0.9465196794 | N24: 1.263851479 | O24: 0.6071739906 | P24: 0.09769893858 | Q24: 0.4883799246 | R24: 1.413596251 | S24: 2.106281576 | T24: 2.846629633 | U24: 2.185672569 | V24: 2.966682662 | W24: Metropolitana | X24: Central | Y24: Occidente | Z24: Oriental | AA24: Para Central | AB24: 0.02923164585 | AC24: 1.002461894 | AD24: 1.264117867 | AE24: 2.613649937 | AF24: 2.306549883
A25: SLV | B25: 2014 | C25: SLV_2014_MICS | D25: 63 | E25: Fuente principal de agua para beber | F25: Pozo protegido | H25: 11.18971942 | I25: 9.766046279 | J25: 7.09237534 | K25: 3.528503511 | L25: 1.921823516 | M25: 6.161502861 | N25: 3.190538132 | O25: 2.196211997 | P25: 0.6122380039 | Q25: 0.9814276868 | R25: 13.4996339 | S25: 12.13017141 | T25: 12.5365119 | U25: 12.72909682 | V25: 15.72684196 | W25: Metropolitana | X25: Central | Y25: Occidente | Z25: Oriental | AA25: Para Central | AB25: 0.7548033511 | AC25: 4.22612509 | AD25: 6.944633585 | AE25: 14.37191185 | AF25: 10.19504104
A26: SLV | B26: 2014 | C26: SLV_2014_MICS | D26: 64 | E26: Fuente principal de agua para beber | F26: Pozo no protegido | H26: 2.317205283 | I26: 1.278114833 | J26: 0.5011629207 | K26: 0.07809923607 | L26: 0.03028210759 | M26: 0.7003752221 | N26: 0.2439429902 | O26: 0 | P26: 0.0376998593 | Q26: 0 | R26: 2.471377127 | S26: 3.30269243 | T26: 2.233400948 | U26: 0.7585202426 | V26: 0.6825554348 | W26: Metropolitana | X26: Central | Y26: Occidente | Z26: Oriental | AA26: Para Central | AB26: 0.07773321158 | AC26: 0.3312401587 | AD26: 0.9164000053 | AE26: 1.508047185 | AF26: 2.028369375
A27: SLV | B27: 2014 | C27: SLV_2014_MICS | D27: 65 | E27: Fuente principal de agua para beber | F27: Manantial protegido | H27: 8.185094085 | I27: 4.298233182 | J27: 1.917887092 | K27: 0.7792972751 | L27: 0.2838692506 | M27: 1.257615135 | N27: 0.5483917777 | O27: 0.2177639504 | P27: 0.3274406916 | Q27: 0.06837911011 | R27: 10.71498952 | S27: 10.73825689 | T27: 6.244168306 | U27: 4.849758156 | V27: 4.146983466 | W27: Metropolitana | X27: Central | Y27: Occidente | Z27: Oriental | AA27: Para Central | AB27: 0.8120770259 | AC27: 5.652850528 | AD27: 3.135339601 | AE27: 2.624969739 | AF27: 4.016274364
A28: SLV | B28: 2014 | C28: SLV_2014_MICS | D28: 66 | E28: Fuente principal de agua para beber | F28: Manantial no protegido | H28: 6.448439827 | I28: 1.864624536 | J28: 0.5711825312 | K28: 0.165894952 | L28: 0.06422774036 | M28: 1.193453015 | N28: 0 | O28: 0.08324801984 | P28: 0 | Q28: 0 | R28: 9.973379907 | S28: 6.542784858 | T28: 2.593608791 | U28: 1.833057497 | V28: 0.932960503 | W28: Metropolitana | X28: Central | Y28: Occidente | Z28: Oriental | AA28: Para Central | AB28: 0.1417407034 | AC28: 3.727640822 | AD28: 1.752170892 | AE28: 1.15803536 | AF28: 3.139064965
A29: SLV | B29: 2014 | C29: SLV_2014_MICS | D29: 67 | E29: Fuente principal de agua para beber | F29: Recogen agua de lluvia | H29: 1.756756317 | I29: 0.5846134619 | J29: 0.4097397579 | K29: 0 | L29: 0 | M29: 0.223810138 | N29: 0.03600633043 | O29: 0 | P29: 0 | Q29: 0 | R29: 2.636157139 | S29: 1.617672683 | T29: 1.080892704 | U29: 0.7218170141 | V29: 0.7499487136 | W29: Metropolitana | X29: Central | Y29: Occidente | Z29: Oriental | AA29: Para Central | AB29: 0.3295142942 | AC29: 0.6436700247 | AD29: 1.240601978 | AE29: 0.3531288914 | AF29: 0
A30: SLV | B30: 2014 | C30: SLV_2014_MICS | D30: 68 | E30: Fuente principal de agua para beber | F30: Carro-tanque / camión cisterna | H30: 1.581939591 | I30: 1.303321541 | J30: 0.6872589754 | K30: 0.5586819278 | L30: 0.1930438644 | M30: 1.601844939 | N30: 0.192213034 | O30: 0.2396114995 | P30: 0.0520707742 | Q30: 0 | R30: 1.054051108 | S30: 1.981695818 | T30: 1.140001869 | U30: 1.453156867 | V30: 2.33768148 | W30: Metropolitana | X30: Central | Y30: Occidente | Z30: Oriental | AA30: Para Central | AB30: 0.5424693004 | AC30: 0.66687985 | AD30: 1.969383911 | AE30: 0.3297088597 | AF30: 0.8393807292
A31: SLV | B31: 2014 | C31: SLV_2014_MICS | D31: 69 | E31: Fuente principal de agua para beber | F31: Carreta con tanque/tambor pequeño | H31: 0 | I31: 0 | J31: 0.05028135406 | K31: 0 | L31: 0 | M31: 0 | N31: 0 | O31: 0 | P31: 0 | Q31: 0 | R31: 0 | S31: 0 | T31: 0 | U31: 0.1319779582 | V31: 0 | W31: Metropolitana | X31: Central | Y31: Occidente | Z31: Oriental | AA31: Para Central | AB31: 0 | AC31: 0.04757245382 | AD31: 0 | AE31: 0 | AF31: 0
A32: SLV | B32: 2014 | C32: SLV_2014_MICS | D32: 70 | E32: Fuente principal de agua para beber | F32: Agua de superficie (río, arroyo, represa, lago, estanque, canal, canal de irrigación) | H32: 1.69101972 | I32: 0.8449725558 | J32: 0.1229726058 | K32: 0 | L32: 0.3219395088 | M32: 0 | N32: 0.02088108001 | O32: 0 | P32: 0 | Q32: 0 | R32: 2.120303812 | S32: 2.323644476 | T32: 0.9474658323 | U32: 1.452179836 | V32: 0.954644058 | W32: Metropolitana | X32: Central | Y32: Occidente | Z32: Oriental | AA32: Para Central | AB32: 0.125904155 | AC32: 0.4932141597 | AD32: 1.058637533 | AE32: 0.3982085384 | AF32: 1.239351391
A33: SLV | B33: 2014 | C33: SLV_2014_MICS | D33: 71 | E33: Fuente principal de agua para beber | F33: Agua embotellada/envasada | H33: 0.9114911184 | I33: 4.445218162 | J33: 12.07554375 | K33: 26.48766542 | L33: 48.58697185 | M33: 3.252545506 | N33: 13.06322699 | O33: 24.21954983 | P33: 37.97082166 | Q33: 56.57849313 | R33: 0.3751650027 | S33: 0.9835670945 | T33: 2.472500125 | U33: 8.777593898 | V33: 10.6179268 | W33: Metropolitana | X33: Central | Y33: Occidente | Z33: Oriental | AA33: Para Central | AB33: 42.49477315 | AC33: 13.91719372 | AD33: 4.953029005 | AE33: 14.09153528 | AF33: 7.934419331
A34: SLV | B34: 2014 | C34: SLV_2014_MICS | D34: 72 | E34: Fuente principal de agua para beber | F34: Otra (especifique) | H34: 0.6906717652 | I34: 0.1985740662 | J34: 0.1993340169 | K34: 0.03259094233 | L34: 0.05737932076 | M34: 0.4329376668 | N34: 0.05708825938 | O34: 0.0152754512 | P34: 0 | Q34: 0.09258710808 | R34: 0.7173454907 | S34: 0.47113514 | T34: 0.08755845954 | U34: 0.464660284 | V34: 0.3830222508 | W34: Metropolitana | X34: Central | Y34: Occidente | Z34: Oriental | AA34: Para Central | AB34: 0.03136501222 | AC34: 0.0746559681 | AD34: 0.5035480504 | AE34: 0.2358722485 | AF34: 0.4633255416
A35: SLV | B35: 2014 | C35: SLV_2014_MICS | D35: 122 | E35: Sanitation | F35: Improved | G35: s_imp | H35: 88.15290991 | I35: 96.89914471 | J35: 98.89981865 | K35: 99.23981855 | L35: 99.79941484 | M35: 96.7845732 | N35: 99.21637765 | O35: 99.52940113 | P35: 99.84612656 | Q35: 99.71410317 | R35: 82.33022292 | S35: 89.59084222 | T35: 95.70982886 | U35: 97.35107849 | V35: 98.30511696 | W35: Metropolitana | X35: Central | Y35: Occidente | Z35: Oriental | AA35: Para Central | AB35: 99.35912909 | AC35: 96.3109917 | AD35: 96.83184753 | AE35: 94.07391838 | AF35: 95.16023754 | AG35: 6996.522363 | AH35: 7917.058967 | AI35: 8689.833534 | AJ35: 9226.364607 | AK35: 9656.862659 | AL35: 5261.913036 | AM35: 5673.35796 | AN35: 5883.128719 | AO35: 5997.790202 | AP35: 6033.559856 | AQ35: 2438.853147 | AR35: 2557.037162 | AS35: 2688.620503 | AT35: 2954.499855 | AU35: 2997.88169 | AV35: 12223.77847 | AW35: 8359.673573 | AX35: 9140.618653 | AY35: 8259.317914 | AZ35: 4503.253523
A36: SLV | B36: 2014 | C36: SLV_2014_MICS | D36: 123 | E36: Sanitation | F36: Not Improved | H36: 11.84709009 | I36: 3.100855289 | J36: 1.100181352 | K36: 0.7601814457 | L36: 0.2005851617 | M36: 3.215426796 | N36: 0.7836223495 | O36: 0.4705988716 | P36: 0.1538734381 | Q36: 0.2858968257 | R36: 17.66977708 | S36: 10.40915778 | T36: 4.290171145 | U36: 2.648921512 | V36: 1.694883039 | W36: Metropolitana | X36: Central | Y36: Occidente | Z36: Oriental | AA36: Para Central | AB36: 0.6408709125 | AC36: 3.689008297 | AD36: 3.168152469 | AE36: 5.92608162 | AF36: 4.839762456 | AG36: 2805.942174 | AH36: 1884.110438 | AI36: 1103.419272 | AJ36: 581.7443821 | AK36: 143.9274628 | AL36: 808.5361667 | AM36: 399.2788272 | AN36: 186.067 | AO36: 69.53625078 | AP36: 40.31686156 | AQ36: 1286.806927 | AR36: 1177.023562 | AS36: 1043.211164 | AT36: 776.5626542 | AU36: 731.8043139 | AV36: 128.0165636 | AW36: 1991.232723 | AX36: 1174.830369 | AY36: 1462.612528 | AZ36: 1762.451544
A37: SLV | B37: 2014 | C37: SLV_2014_MICS | D37: 124 | E37: Sanitation ladder | F37: Basic | G37: s_bas | H37: 65.30910863 | I37: 81.16790545 | J37: 87.45858083 | K37: 94.19927415 | L37: 97.73101509 | M37: 75.00713973 | N37: 85.87843793 | O37: 93.6982206 | P37: 96.61845505 | Q37: 98.03563521 | R37: 57.38606756 | S37: 71.53698781 | T37: 81.25703464 | U37: 86.82779701 | V37: 91.54787343 | W37: Metropolitana | X37: Central | Y37: Occidente | Z37: Oriental | AA37: Para Central | AB37: 92.27017238 | AC37: 83.56537847 | AD37: 84.59911166 | AE37: 82.08983333 | AF37: 82.75382644 | AG37: 5183.454971 | AH37: 6631.751968 | AI37: 7684.549061 | AJ37: 8757.743229 | AK37: 9456.718676 | AL37: 4077.933427 | AM37: 4910.67232 | AN37: 5538.450813 | AO37: 5803.902895 | AP37: 5931.998125 | AQ37: 1699.936992 | AR37: 2041.757078 | AS37: 2282.62167 | AT37: 2635.129653 | AU37: 2791.814933 | AV37: 11351.65089 | AW37: 7253.370292 | AX37: 7985.887265 | AY37: 7207.162651 | AZ37: 3916.146807
A38: SLV | B38: 2014 | C38: SLV_2014_MICS | D38: 125 | E38: Sanitation ladder | F38: Limited | G38: s_lim | H38: 22.84380128 | I38: 15.73123927 | J38: 11.44123782 | K38: 5.0405444 | L38: 2.068399752 | M38: 21.77743348 | N38: 13.33793972 | O38: 5.831180524 | P38: 3.227671514 | Q38: 1.678467961 | R38: 24.94415536 | S38: 18.05385441 | T38: 14.45279422 | U38: 10.52328148 | V38: 6.757243529 | W38: Metropolitana | X38: Central | Y38: Occidente | Z38: Oriental | AA38: Para Central | AB38: 7.088956711 | AC38: 12.74561323 | AD38: 12.23273587 | AE38: 11.98408505 | AF38: 12.40641111 | AG38: 1813.067392 | AH38: 1285.306999 | AI38: 1005.284473 | AJ38: 468.6213773 | AK38: 200.1439824 | AL38: 1183.979609 | AM38: 762.6856401 | AN38: 344.6779064 | AO38: 193.8873069 | AP38: 101.5617309 | AQ38: 738.9161555 | AR38: 515.2800833 | AS38: 405.9988334 | AT38: 319.370202 | AU38: 206.066757 | AV38: 872.1275759 | AW38: 1106.303281 | AX38: 1154.731388 | AY38: 1052.155263 | AZ38: 587.1067156
A39: SLV | B39: 2014 | C39: SLV_2014_MICS | D39: 126 | E39: Sanitation ladder | F39: Unimproved | G39: s_unimp | H39: 2.492156282 | I39: 1.49005389 | J39: 0.6545284142 | K39: 0.6274738893 | L39: 0.1871905821 | M39: 2.15867418 | N39: 0.5698128722 | O39: 0.4705988716 | P39: 0.1538734381 | Q39: 0.2858968257 | R39: 2.625143075 | S39: 1.811361205 | T39: 1.76801565 | U39: 1.0368637 | V39: 1.161262122 | W39: Metropolitana | X39: Central | Y39: Occidente | Z39: Oriental | AA39: Para Central | AB39: 0.5187713528 | AC39: 1.458664243 | AD39: 1.224153695 | AE39: 1.29278616 | AF39: 1.07412139 | AG39: 1888.928105 | AH39: 1726.233064 | AI39: 1059.775353 | AJ39: 568.7282803 | AK39: 142.6146881 | AL39: 744.3865359 | AM39: 386.2949542 | AN39: 186.067 | AO39: 69.53625078 | AP39: 40.31686156 | AQ39: 726.2950047 | AR39: 855.9766171 | AS39: 949.0885669 | AT39: 716.4157695 | AU39: 711.9019292 | AV39: 112.9350763 | AW39: 1760.3719 | AX39: 974.2981667 | AY39: 1012.166766 | AZ39: 1526.507581
A40: SLV | B40: 2014 | C40: SLV_2014_MICS | D40: 127 | E40: Sanitation ladder | F40: Open defecation | G40: s_od | H40: 9.354933806 | I40: 1.610801399 | J40: 0.445652938 | K40: 0.1327075564 | L40: 0.01339457957 | M40: 1.056752617 | N40: 0.2138094774 | O40: 0 | P40: 0 | Q40: 0 | R40: 15.044634 | S40: 8.597796575 | T40: 2.522155495 | U40: 1.612057812 | V40: 0.5336209169 | W40: Metropolitana | X40: Central | Y40: Occidente | Z40: Oriental | AA40: Para Central | AB40: 0.1220995597 | AC40: 2.230344054 | AD40: 1.943998774 | AE40: 4.63329546 | AF40: 3.765641066 | AG40: 917.0140687 | AH40: 157.8773739 | AI40: 43.64391886 | AJ40: 13.01610177 | AK40: 1.312774632 | AL40: 64.14963078 | AM40: 12.98387298 | AN40: 0 | AO40: 0 | AP40: 0 | AQ40: 560.5119224 | AR40: 321.046945 | AS40: 94.12259746 | AT40: 60.14688464 | AU40: 19.90238465 | AV40: 15.08148735 | AW40: 230.8608232 | AX40: 200.5322025 | AY40: 450.4457618 | AZ40: 235.9439631
A41: SLV | B41: 2014 | C41: SLV_2014_MICS | D41: 128 | E41: Shared among Improved Sanitation | F41: Yes | G41: s_shared | H41: 25.91383688 | I41: 16.23465234 | J41: 11.56851243 | K41: 5.079155195 | L41: 2.072556994 | M41: 22.50093456 | N41: 13.4432843 | O41: 5.858751744 | P41: 3.232645697 | Q41: 1.683280406 | R41: 30.29768957 | S41: 20.15145071 | T41: 15.1006374 | U41: 10.80961982 | V41: 6.873745475 | W41: Metropolitana | X41: Central | Y41: Occidente | Z41: Oriental | AA41: Para Central | AB41: 7.134680805 | AC41: 13.23380957 | AD41: 12.63296755 | AE41: 12.73900913 | AF41: 13.0373898
A42: SLV | B42: 2014 | C42: SLV_2014_MICS | D42: 129 | E42: Shared among Improved Sanitation | F42: No | H42: 74.08616312 | I42: 83.76534766 | J42: 88.43148757 | K42: 94.9208448 | L42: 97.92744301 | M42: 77.49906544 | N42: 86.5567157 | O42: 94.14124826 | P42: 96.7673543 | Q42: 98.31671959 | R42: 69.70231043 | S42: 79.84854929 | T42: 84.8993626 | U42: 89.19038018 | V42: 93.12625452 | W42: Metropolitana | X42: Central | Y42: Occidente | Z42: Oriental | AA42: Para Central | AB42: 92.86531919 | AC42: 86.76619043 | AD42: 87.36703245 | AE42: 87.26099087 | AF42: 86.9626102
A43: SLV | B43: 2014 | C43: SLV_2014_MICS | D43: 135 | E43: Sanitation type | F43: Sewer connection | G43: s_sew | H43: 2.186881721 | I43: 8.753712924 | J43: 27.25257745 | K43: 54.6411226 | L43: 76.48568829 | M43: 13.09670962 | N43: 37.43886496 | O43: 59.77222362 | P43: 73.35740638 | Q43: 85.20186413 | R43: 0.1878442476 | S43: 0.2582862245 | T43: 1.369370884 | U43: 2.352587744 | V43: 3.19197665 | W43: Metropolitana | X43: Central | Y43: Occidente | Z43: Oriental | AA43: Para Central | AB43: 78.66279235 | AC43: 18.74050868 | AD43: 23.93694622 | AE43: 15.13949007 | AF43: 15.95315172
A44: SLV | B44: 2014 | C44: SLV_2014_MICS | D44: 136 | E44: Sanitation type | F44: Septic tank connection | G44: s_sep | H44: 3.870472831 | I44: 13.79639391 | J44: 21.90356483 | K44: 21.17182289 | L44: 16.60331679 | M44: 10.18375271 | N44: 18.56958718 | O44: 19.68006961 | P44: 17.97478167 | Q44: 11.43806109 | R44: 1.41310138 | S44: 4.226751154 | T44: 11.03058004 | U44: 22.44193004 | V44: 37.41450189 | W44: Metropolitana | X44: Central | Y44: Occidente | Z44: Oriental | AA44: Para Central | AB44: 5.635721809 | AC44: 18.99708382 | AD44: 19.46228579 | AE44: 20.49492297 | AF44: 14.64935476
A45: SLV | B45: 2014 | C45: SLV_2014_MICS | D45: 137 | E45: Sanitation type | F45: Improved latrines | G45: s_lat | H45: 65.31778113 | I45: 58.22657032 | J45: 39.57672009 | K45: 18.25579516 | L45: 5.442465738 | M45: 63.4003229 | N45: 37.41649915 | O45: 17.48194635 | P45: 7.521734658 | Q45: 2.696300002 | R45: 63.86002232 | S45: 63.99368728 | T45: 59.64564874 | U45: 54.39203693 | V45: 39.77245113 | W45: Metropolitana | X45: Central | Y45: Occidente | Z45: Oriental | AA45: Para Central | AB45: 14.66506511 | AC45: 43.0251285 | AD45: 45.21173038 | AE45: 49.32112088 | AF45: 41.26895053
A46: SLV | B46: 2014 | C46: SLV_2014_MICS | D46: 138 | E46: Sanitation type | F46: Unimproved facilities | H46: 19.26993051 | I46: 17.61252145 | J46: 10.82148469 | K46: 5.7985518 | L46: 1.4551346 | M46: 12.26246215 | N46: 6.36123924 | O46: 3.065760418 | P46: 1.146077293 | Q46: 0.6637747757 | R46: 19.49439805 | S46: 22.92347877 | T46: 25.43224484 | U46: 19.20138748 | V46: 19.08744941 | W46: Metropolitana | X46: Central | Y46: Occidente | Z46: Oriental | AA46: Para Central | AB46: 0.9143211653 | AC46: 17.00693495 | AD46: 9.445038841 | AE46: 10.41117062 | AF46: 24.36290193
A47: SLV | B47: 2014 | C47: SLV_2014_MICS | D47: 139 | E47: Sanitation type | F47: Open defecation | H47: 9.354933806 | I47: 1.610801399 | J47: 0.445652938 | K47: 0.1327075564 | L47: 0.01339457957 | M47: 1.056752617 | N47: 0.2138094774 | O47: 0 | P47: 0 | Q47: 0 | R47: 15.044634 | S47: 8.597796575 | T47: 2.522155495 | U47: 1.612057812 | V47: 0.5336209169 | W47: Metropolitana | X47: Central | Y47: Occidente | Z47: Oriental | AA47: Para Central | AB47: 0.1220995597 | AC47: 2.230344054 | AD47: 1.943998774 | AE47: 4.63329546 | AF47: 3.765641066
A48: SLV | B48: 2014 | C48: SLV_2014_MICS | D48: 148 | E48: Shared among improved sanitation facilities | F48: Yes | H48: 18.49603623 | I48: 13.11381271 | J48: 10.26507222 | K48: 4.777897328 | L48: 2.04212089 | M48: 19.50398676 | N48: 12.55938181 | O48: 5.679136452 | P48: 3.195597078 | Q48: 1.672107215 | R48: 19.83316086 | S48: 13.79945645 | T48: 10.87934477 | U48: 8.559765514 | V48: 5.525043041 | W48: Metropolitana | X48: Central | Y48: Occidente | Z48: Oriental | AA48: Para Central | AB48: 7.060735495 | AC48: 10.6879847 | AD48: 11.19419412 | AE48: 10.82249322 | AF48: 9.370162007
A49: SLV | B49: 2014 | C49: SLV_2014_MICS | D49: 149 | E49: Shared among improved sanitation facilities | F49: No | H49: 52.87909945 | I49: 67.66286444 | J49: 78.46779016 | K49: 89.29084332 | L49: 96.48934993 | M49: 67.17679847 | N49: 80.86556947 | O49: 91.25510313 | P49: 95.65832563 | Q49: 97.66411801 | R49: 45.62780709 | S49: 54.67926821 | T49: 61.16625489 | U49: 70.62678919 | V49: 74.85388663 | W49: Metropolitana | X49: Central | Y49: Occidente | Z49: Oriental | AA49: Para Central | AB49: 91.90284378 | AC49: 70.0747363 | AD49: 77.41676826 | AE49: 74.13304069 | AF49: 62.501295
A50: SLV | B50: 2014 | C50: SLV_2014_MICS | D50: 150 | E50: Shared among improved sanitation facilities | F50: DK/missing | H50: 28.62486432 | I50: 19.22332285 | J50: 11.26713763 | K50: 5.931259357 | L50: 1.46852918 | M50: 13.31921477 | N50: 6.575048717 | O50: 3.065760418 | P50: 1.146077293 | Q50: 0.6637747757 | R50: 34.53903205 | S50: 31.52127534 | T50: 27.95440034 | U50: 20.81344529 | V50: 19.62107033 | W50: Metropolitana | X50: Central | Y50: Occidente | Z50: Oriental | AA50: Para Central | AB50: 1.036420725 | AC50: 19.237279 | AD50: 11.38903762 | AE50: 15.04446608 | AF50: 28.128543
A51: SLV | B51: 2014 | C51: SLV_2014_MICS | D51: 151 | E51: Shared among all sanitation facilities | F51: Yes | H51: 26.48108923 | I51: 16.57533344 | J51: 11.92184978 | K51: 5.688429424 | L51: 2.180805117 | M51: 23.12925215 | N51: 13.62005135 | O51: 6.487016505 | P51: 3.211767881 | Q51: 1.672107215 | R51: 31.0544619 | S51: 20.84374776 | T51: 15.21287274 | U51: 11.89806928 | V51: 7.963599037 | W51: Metropolitana | X51: Central | Y51: Occidente | Z51: Oriental | AA51: Para Central | AB51: 7.241466384 | AC51: 14.46581429 | AD51: 13.87914507 | AE51: 13.70115067 | AF51: 14.14865402
A52: SLV | B52: 2014 | C52: SLV_2014_MICS | D52: 152 | E52: Shared among all sanitation facilities | F52: No | H52: 73.51891077 | I52: 83.42466656 | J52: 88.07815022 | K52: 94.31157058 | L52: 97.81919488 | M52: 76.87074785 | N52: 86.37994865 | O52: 93.5129835 | P52: 96.78823212 | Q52: 98.32789278 | R52: 68.9455381 | S52: 79.15625224 | T52: 84.78712726 | U52: 88.10193072 | V52: 92.03640096 | W52: Metropolitana | X52: Central | Y52: Occidente | Z52: Oriental | AA52: Para Central | AB52: 92.75853362 | AC52: 85.53418571 | AD52: 86.12085493 | AE52: 86.29884933 | AF52: 85.85134598
A53: SLV | B53: 2014 | C53: SLV_2014_MICS | D53: 153 | E53: Tipo de instalación sanitaria | F53: Inodoro conectado al alcantarillado | H53: 2.186881721 | I53: 8.753712924 | J53: 27.25257745 | K53: 54.6411226 | L53: 76.48568829 | M53: 13.09670962 | N53: 37.43886496 | O53: 59.77222362 | P53: 73.35740638 | Q53: 85.20186413 | R53: 0.1878442476 | S53: 0.2582862245 | T53: 1.369370884 | U53: 2.352587744 | V53: 3.19197665 | W53: Metropolitana | X53: Central | Y53: Occidente | Z53: Oriental | AA53: Para Central | AB53: 78.66279235 | AC53: 18.74050868 | AD53: 23.93694622 | AE53: 15.13949007 | AF53: 15.95315172 | AG53: 214.3683052 | AH53: 857.9662329 | AI53: 2668.913806 | AJ53: 5359.260857 | AK53: 7496.201783 | AL53: 795.0291049 | AM53: 2273.526286 | AN53: 3627.693237 | AO53: 4450.833322 | AP53: 5175.056188 | AQ53: 6.998438133 | AR53: 9.644564462 | AS53: 51.1026163 | AT53: 87.7765193 | AU53: 119.0507064 | AV53: 9716.266877 | AW53: 1939.812493 | AX53: 2469.203484 | AY53: 1471.850694 | AZ53: 999.5774356
A54: SLV | B54: 2014 | C54: SLV_2014_MICS | D54: 154 | E54: Tipo de instalación sanitaria | F54: Inodoro conectado a tanque séptico | H54: 3.870472831 | I54: 13.79639391 | J54: 21.90356483 | K54: 21.17182289 | L54: 16.60331679 | M54: 10.18375271 | N54: 18.56958718 | O54: 19.68006961 | P54: 17.97478167 | Q54: 11.43806109 | R54: 1.41310138 | S54: 4.226751154 | T54: 11.03058004 | U54: 22.44193004 | V54: 37.41450189 | W54: Metropolitana | X54: Central | Y54: Occidente | Z54: Oriental | AA54: Para Central | AB54: 5.635721809 | AC54: 18.99708382 | AD54: 19.46228579 | AE54: 20.49492297 | AF54: 14.64935476 | AG54: 379.4017267 | AH54: 1352.207939 | AI54: 2145.071477 | AJ54: 2076.555464 | AK54: 1627.256232 | AL54: 618.1995351 | AM54: 1127.663582 | AN54: 1194.421942 | AO54: 1090.588683 | AP54: 694.7337296 | AQ54: 52.6473539 | AR54: 157.8294547 | AS54: 411.6426789 | AT54: 837.3224379 | AU54: 1395.44344 | AV54: 696.1128064 | AW54: 1966.370345 | AX54: 2007.622169 | AY54: 1992.502155 | AZ54: 917.8853632
A55: SLV | B55: 2014 | C55: SLV_2014_MICS | D55: 155 | E55: Tipo de instalación sanitaria | F55: Letrina (pozo negro, hoyo) | H55: 23.52049918 | I55: 17.26936559 | J55: 12.63157196 | K55: 4.360725647 | L55: 1.180916003 | M55: 21.0506466 | N55: 10.33672353 | O55: 4.35881861 | P55: 1.086026917 | Q55: 0.6954540368 | R55: 22.68624595 | S55: 22.81412171 | T55: 18.23812404 | U55: 17.15916359 | V55: 12.93603955 | W55: Metropolitana | X55: Central | Y55: Occidente | Z55: Oriental | AA55: Para Central | AB55: 4.403392756 | AC55: 14.80699019 | AD55: 13.155365 | AE55: 16.44125341 | AF55: 11.91687194 | AG55: 2305.588591 | AH55: 1692.599777 | AI55: 1237.041775 | AJ55: 427.7047241 | AK55: 115.739099 | AL55: 1277.868809 | AM55: 627.7116755 | AN55: 264.5452325 | AO55: 65.89279842 | AP55: 42.24102082 | AQ55: 845.2124075 | AR55: 851.8931582 | AS55: 680.6160885 | AT55: 640.2191195 | AU55: 482.4736566 | AV55: 543.8980476 | AW55: 1532.65768 | AX55: 1357.03497 | AY55: 1598.40722 | AZ55: 746.6760488
A56: SLV | B56: 2014 | C56: SLV_2014_MICS | D56: 156 | E56: Tipo de instalación sanitaria | F56: Baldeo a otra parte | H56: 0.1965967497 | I56: 0.3588182644 | J56: 0.06283318731 | K56: 0.2137348693 | L56: 0.177179804 | M56: 0.39966828 | N56: 0.06004100921 | O56: 0.1740047069 | P56: 0.1377026361 | Q56: 0.2858968257 | R56: 0.3212250305 | S56: 0.06454316896 | T56: 0.373161658 | U56: 0.1174409276 | V56: 0.05490527182 | W56: Metropolitana | X56: Central | Y56: Occidente | Z56: Oriental | AA56: Para Central | AB56: 0.1997764952 | AC56: 0.1984049843 | AD56: 0.3371817496 | AE56: 0.1705232666 | AF56: 0.03748713127 | AG56: 19.27132667 | AH56: 35.16838595 | AI56: 6.153412879 | AJ56: 20.96334892 | AK56: 17.36502073 | AL56: 24.26165991 | AM56: 3.646072413 | AN56: 10.56068622 | AO56: 8.354868465 | AP56: 17.36502073 | AQ56: 11.96775271 | AR56: 2.410081122 | AS56: 13.92576492 | AT56: 4.38179442 | AU56: 2.047794239 | AV56: 24.6759832 | AW56: 20.53671401 | AX56: 34.78181149 | AY56: 16.57815337 | AZ56: 2.348833083
A57: SLV | B57: 2014 | C57: SLV_2014_MICS | D57: 157 | E57: Tipo de instalación sanitaria | F57: Sitio desconocido/ no está seguro/ NS dónde | H57: 0 | I57: 0 | J57: 0.02204190366 | K57: 0 | L57: 0 | M57: 0 | N57: 0 | O57: 0 | P57: 0 | Q57: 0 | R57: 0 | S57: 0 | T57: 0 | U57: 0.05785535203 | V57: 0 | W57: Metropolitana | X57: Central | Y57: Occidente | Z57: Oriental | AA57: Para Central | AB57: 0 | AC57: 0 | AD57: 0.02092608227 | AE57: 0 | AF57: 0 | AG57: 0 | AH57: 0 | AI57: 2.158619349 | AJ57: 0 | AK57: 0 | AL57: 0 | AM57: 0 | AN57: 0 | AO57: 0 | AP57: 0 | AQ57: 0 | AR57: 0 | AS57: 0 | AT57: 2.158619349 | AU57: 0 | AV57: 0 | AW57: 0 | AX57: 2.158619349 | AY57: 0 | AZ57: 0
A58: SLV | B58: 2014 | C58: SLV_2014_MICS | D58: 158 | E58: Tipo de instalación sanitaria | F58: Letrina de fosa mejorada con ventilación | H58: 0.07067349656 | I58: 0.2816750172 | J58: 0.3335980973 | K58: 0.3239324283 | L58: 0.04735800522 | M58: 0.2735778791 | N58: 0.5725863941 | O58: 0.3213426707 | P58: 0.2022098217 | Q58: 0.05957860327 | R58: 0.05180177877 | S58: 0.1494047636 | T58: 0.1265743496 | U58: 0.04035462358 | V58: 0.08342536049 | W58: Metropolitana | X58: Central | Y58: Occidente | Z58: Oriental | AA58: Para Central | AB58: 0.003903187041 | AC58: 0.1423987474 | AD58: 0.3372462673 | AE58: 0.5117022756 | AF58: 0.06161986075 | AG58: 6.927744437 | AH58: 27.60744561 | AI58: 32.67010503 | AJ58: 31.77164562 | AK58: 4.641458698 | AL58: 16.60740618 | AM58: 34.77109201 | AN58: 19.50291561 | AO58: 12.26873 | AP58: 3.618730913 | AQ58: 1.929958189 | AR58: 5.578864599 | AS58: 4.723541663 | AT58: 1.505656231 | AU58: 3.111503994 | AV58: 0.482113663 | AW58: 14.73956091 | AX58: 34.78846678 | AY58: 49.7473393 | AZ58: 3.860918737
A59: SLV | B59: 2014 | C59: SLV_2014_MICS | D59: 159 | E59: Tipo de instalación sanitaria | F59: Letrina de fosa con losa | H59: 41.72660845 | I59: 40.67552971 | J59: 26.58950814 | K59: 13.53529149 | L59: 4.21419173 | M59: 42.07609841 | N59: 26.50718923 | O59: 12.74385689 | P59: 6.233497919 | Q59: 1.941267362 | R59: 41.1219746 | S59: 41.03016081 | T59: 41.28095035 | U59: 37.13466336 | V59: 26.75298622 | W59: Metropolitana | X59: Central | Y59: Occidente | Z59: Oriental | AA59: Para Central | AB59: 10.25776917 | AC59: 28.07573957 | AD59: 31.66411042 | AE59: 32.3681652 | AF59: 29.29045873 | AG59: 4090.235996 | AH59: 3986.677573 | AI59: 2603.977752 | AJ59: 1327.556142 | AK59: 413.0240868 | AL59: 2554.208181 | AM59: 1609.685324 | AN59: 773.4496168 | AO59: 378.2066682 | AP59: 117.9101864 | AQ59: 1532.064989 | AR59: 1532.09112 | AS59: 1540.535578 | AT59: 1385.517503 | AU59: 997.8023827 | AV59: 1267.018623 | AW59: 2906.093495 | AX59: 3266.295169 | AY59: 3146.810506 | AZ59: 1835.253756
A60: SLV | B60: 2014 | C60: SLV_2014_MICS | D60: 160 | E60: Tipo de instalación sanitaria | F60: Letrina de fosa sin losa/Foso abierto | H60: 1.844796316 | I60: 0.9745791723 | J60: 0.5080577339 | K60: 0.4088458125 | L60: 0.01001077811 | M60: 1.428070047 | N60: 0.4548925504 | O60: 0.2886865087 | P60: 0.01617080208 | Q60: 0 | R60: 1.781455136 | S60: 1.593157651 | T60: 1.087837157 | U60: 0.7144229839 | V60: 1.10635685 | W60: Metropolitana | X60: Central | Y60: Occidente | Z60: Oriental | AA60: Para Central | AB60: 0.2931901704 | AC60: 1.088441121 | AD60: 0.7300965056 | AE60: 0.8664454128 | AF60: 0.937907124 | AG60: 180.8355046 | AH60: 95.52015567 | AI60: 49.75537828 | AJ60: 40.10004289 | AK60: 0.9811353522 | AL60: 86.69026679 | AM60: 27.62397236 | AN60: 17.52094923 | AO60: 0.9811353522 | AP60: 0 | AQ60: 66.37096275 | AR60: 59.4894741 | AS60: 40.59625153 | AT60: 26.65556811 | AU60: 41.26363659 | AV60: 36.21424889 | AW60: 112.6635205 | AX60: 75.31273285 | AY60: 84.23522035 | AZ60: 58.76649419
A61: SLV | B61: 2014 | C61: SLV_2014_MICS | D61: 161 | E61: Tipo de instalación sanitaria | F61: Letrina abonera | H61: 16.77777423 | I61: 16.12246756 | J61: 10.18899818 | K61: 5.171077911 | L61: 1.267944018 | M61: 10.10378797 | N61: 5.791426368 | O61: 2.595161546 | P61: 0.992203855 | Q61: 0.37787795 | R61: 16.86925497 | S61: 21.11211756 | T61: 23.66422919 | U61: 18.22237913 | V61: 17.92618729 | W61: Metropolitana | X61: Central | Y61: Occidente | Z61: Oriental | AA61: Para Central | AB61: 0.3955498125 | AC61: 15.5482707 | AD61: 8.241811229 | AE61: 9.118384462 | AF61: 23.28878054 | AG61: 1644.635369 | AH61: 1580.190358 | AI61: 997.83435 | AJ61: 507.1849574 | AK61: 124.2685321 | AL61: 613.3453164 | AM61: 351.6922881 | AN61: 157.5054334 | AO61: 60.20024696 | AP61: 22.95184083 | AQ61: 628.4910972 | AR61: 788.3392898 | AS61: 883.109199 | AT61: 679.8883561 | AU61: 668.5904984 | AV61: 48.85750209 | AW61: 1609.386931 | AX61: 850.1798358 | AY61: 886.4829949 | AZ61: 1459.206302
A62: SLV | B62: 2014 | C62: SLV_2014_MICS | D62: 162 | E62: Tipo de instalación sanitaria | F62: Inodoro de compostaje | H62: 0 | I62: 0 | J62: 0 | K62: 0.03584558985 | L62: 0 | M62: 0 | N62: 0 | O62: 0.05792817834 | P62: 0 | Q62: 0 | R62: 0 | S62: 0 | T62: 0 | U62: 0 | V62: 0 | W62: Metropolitana | X62: Central | Y62: Occidente | Z62: Oriental | AA62: Para Central | AB62: 0 | AC62: 0 | AD62: 0.03408261252 | AE62: 0 | AF62: 0 | AG62: 0 | AH62: 0 | AI62: 0 | AJ62: 3.51577452 | AK62: 0 | AL62: 0 | AM62: 0 | AN62: 3.51577452 | AO62: 0 | AP62: 0 | AQ62: 0 | AR62: 0 | AS62: 0 | AT62: 0 | AU62: 0 | AV62: 0 | AW62: 0 | AX62: 3.51577452 | AY62: 0 | AZ62: 0
A63: SLV | B63: 2014 | C63: SLV_2014_MICS | D63: 163 | E63: Tipo de instalación sanitaria | F63: No hay instalacion sanitaria | H63: 9.354933806 | I63: 1.610801399 | J63: 0.445652938 | K63: 0.1327075564 | L63: 0.01339457957 | M63: 1.056752617 | N63: 0.2138094774 | O63: 0 | P63: 0 | Q63: 0 | R63: 15.044634 | S63: 8.597796575 | T63: 2.522155495 | U63: 1.612057812 | V63: 0.5336209169 | W63: Metropolitana | X63: Central | Y63: Occidente | Z63: Oriental | AA63: Para Central | AB63: 0.1220995597 | AC63: 2.230344054 | AD63: 1.943998774 | AE63: 4.63329546 | AF63: 3.765641066 | AG63: 917.0140687 | AH63: 157.8773739 | AI63: 43.64391886 | AJ63: 13.01610177 | AK63: 1.312774632 | AL63: 64.14963078 | AM63: 12.98387298 | AN63: 0 | AO63: 0 | AP63: 0 | AQ63: 560.5119224 | AR63: 321.046945 | AS63: 94.12259746 | AT63: 60.14688464 | AU63: 19.90238465 | AV63: 15.08148735 | AW63: 230.8608232 | AX63: 200.5322025 | AY63: 450.4457618 | AZ63: 235.9439631
A64: SLV | B64: 2014 | C64: SLV_2014_MICS | D64: 164 | E64: Tipo de instalación sanitaria | F64: Otros | H64: 0.4507632163 | I64: 0.07278656639 | J64: 0.005536065285 | K64: 0 | L64: 0 | M64: 0.3309358525 | N64: 0.05487931252 | O64: 0 | P64: 0 | Q64: 0 | R64: 0.5224629079 | S64: 0.1536603851 | T64: 0.08674351007 | U64: 0 | V64: 0 | W64: Metropolitana | X64: Central | Y64: Occidente | Z64: Oriental | AA64: Para Central | AB64: 0.02580468728 | AC64: 0.132433984 | AD64: 0.1312968099 | AE64: 0.1712640092 | AF64: 0.07616887334 | AG64: 44.18590442 | AH64: 7.133934676 | AI64: 0.5421608688 | AJ64: 0 | AK64: 0 | AL64: 20.08929282 | AM64: 3.332621321 | AN64: 0 | AO64: 0 | AP64: 0 | AQ64: 19.46519196 | AR64: 5.737772088 | AS64: 3.237121778 | AT64: 0 | AU64: 0 | AV64: 3.187342081 | AW64: 13.70811759 | AX64: 13.5438555 | AY64: 16.65016784 | AZ64: 4.772516956
A65: SLV | B65: 2014 | C65: SLV_2014_MICS | D65: 165 | E65: Tipo de instalación sanitaria | F65: Omitido | H65: 0 | I65: 0.08386988674 | J65: 0.05605952407 | K65: 0.004893207503 | L65: 0 | M65: 0 | N65: 0 | O65: 0.007907656091 | P65: 0 | Q65: 0 | R65: 0 | S65: 0 | T65: 0.2202733245 | U65: 0.1471444368 | V65: 0 | W65: Metropolitana | X65: Central | Y65: Occidente | Z65: Oriental | AA65: Para Central | AB65: 0 | AC65: 0.03938415345 | AD65: 0.004652547106 | AE65: 0.08455347143 | AF65: 0.02255826088 | AG65: 0 | AH65: 8.220229679 | AI65: 5.490050914 | AJ65: 0.4799311249 | AK65: 0 | AL65: 0 | AM65: 0 | AN65: 0.4799311249 | AO65: 0 | AP65: 0 | AQ65: 0 | AR65: 0 | AS65: 8.220229679 | AT65: 5.490050914 | AU65: 0 | AV65: 0 | AW65: 4.076616819 | AX65: 0.4799311249 | AY65: 8.220229679 | AZ65: 1.413434095
A66: SLV | B66: 2014 | C66: SLV_2014_MICS | D66: 222 | E66: Hygiene ladder | F66: Basic | G66: h_bas | H66: 81.7609658 | I66: 88.49299192 | J66: 93.24548323 | K66: 93.24348008 | L66: 93.8908733 | M66: 87.57033076 | N66: 93.55983214 | O66: 93.71791797 | P66: 93.33031273 | Q66: 94.25715863 | R66: 75.26134698 | S66: 84.89941432 | T66: 88.25676819 | U66: 90.32439751 | V66: 92.90369243 | W66: Metropolitana | X66: Central | Y66: Occidente | Z66: Oriental | AA66: Para Central | AB66: 91.27948338 | AC66: 89.26898129 | AD66: 91.26922211 | AE66: 87.47026317 | AF66: 90.5457669 | AG66: 7842.254506 | AH66: 8346.452899 | AI66: 8657.907039 | AJ66: 8226.511881 | AK66: 7920.301186 | AL66: 5043.734311 | AM66: 5332.757208 | AN66: 5102.234771 | AO66: 4964.462454 | AP66: 4795.916367 | AQ66: 2762.710351 | AR66: 3134.026223 | AS66: 3222.087043 | AT66: 3262.139347 | AU66: 3373.359436 | AV66: 9672.061863 | AW66: 8840.116444 | AX66: 8892.694495 | AY66: 8167.094291 | AZ66: 5421.460418
A67: SLV | B67: 2014 | C67: SLV_2014_MICS | D67: 223 | E67: Hygiene ladder | F67: Limited | G67: h_lim | H67: 13.10108041 | I67: 8.734347229 | J67: 4.990911639 | K67: 4.674669609 | L67: 3.71384041 | M67: 9.576468066 | N67: 4.827274527 | O67: 4.443916372 | P67: 4.218236269 | Q67: 3.069684834 | R67: 17.05309776 | S67: 11.30665368 | T67: 8.120289159 | U67: 7.771491392 | V67: 5.503140011 | W67: Metropolitana | X67: Central | Y67: Occidente | Z67: Oriental | AA67: Para Central | AB67: 5.752490846 | AC67: 7.304725833 | AD67: 6.446256917 | AE67: 9.949378307 | AF67: 6.339426621 | AG67: 1256.614399 | AH67: 823.8032885 | AI67: 463.409567 | AJ67: 412.428033 | AK67: 313.2864098 | AL67: 551.5699226 | AM67: 275.1467423 | AN67: 241.9377759 | AO67: 224.3780715 | AP67: 156.1892163 | AQ67: 625.9889251 | AR67: 417.3803721 | AS67: 296.4563401 | AT67: 280.6737554 | AU67: 199.8205754 | AV67: 609.5394635 | AW67: 723.3713887 | AX67: 628.0824145 | AY67: 928.972977 | AZ67: 379.5754531
A68: SLV | B68: 2014 | C68: SLV_2014_MICS | D68: 224 | E68: Hygiene ladder | F68: No facility | G68: h_nfac | H68: 5.137953797 | I68: 2.772660856 | J68: 1.763605126 | K68: 2.081850312 | L68: 2.395286295 | M68: 2.853201175 | N68: 1.61289333 | O68: 1.838165662 | P68: 2.451450997 | Q68: 2.673156534 | R68: 7.685555261 | S68: 3.793931997 | T68: 3.622942654 | U68: 1.9041111 | V68: 1.59316756 | W68: Metropolitana | X68: Central | Y68: Occidente | Z68: Oriental | AA68: Para Central | AB68: 2.968025769 | AC68: 3.426292882 | AD68: 2.284520973 | AE68: 2.580358525 | AF68: 3.114806478 | AG68: 492.8163571 | AH68: 261.5109144 | AI68: 163.751945 | AJ68: 183.6736072 | AK68: 202.0578594 | AL68: 164.3340677 | AM68: 91.93227836 | AN68: 100.0742756 | AO68: 130.3985391 | AP68: 136.0133846 | AQ68: 282.1230807 | AR68: 140.0514063 | AS68: 132.2667578 | AT68: 68.76852671 | AU68: 57.84836621 | AV68: 314.4948655 | AW68: 339.2984619 | AX68: 222.5892433 | AY68: 240.9279522 | AZ68: 186.5001602
A69: SLV | B69: 2014 | C69: SLV_2014_MICS | D69: 225 | E69: Lugar que usan con mayor frecuencia los miembros del hogar | F69: Lugar observado | H69: 92.82225782 | I69: 93.56287814 | J69: 93.1387843 | K69: 88.07956686 | L69: 84.00942673 | M69: 92.17282029 | N69: 92.34709973 | O69: 88.05404858 | P69: 85.5210374 | Q69: 81.53121661 | R69: 90.95567519 | S69: 95.10843177 | T69: 94.28462204 | U69: 94.95453625 | V69: 95.80377564 | W69: Metropolitana | X69: Central | Y69: Occidente | Z69: Oriental | AA69: Para Central | AB69: 83.23973399 | AC69: 92.39275827 | AD69: 92.2962916 | AE69: 93.56235701 | AF69: 92.58392806
A70: SLV | B70: 2014 | C70: SLV_2014_MICS | D70: 226 | E70: Lugar que usan con mayor frecuencia los miembros del hogar | F70: No está en la vivienda/patio/lote | H70: 2.178819346 | I70: 0.8932231698 | J70: 0.8575150762 | K70: 0.8469613201 | L70: 1.020527644 | M70: 1.352296411 | N70: 0.605728698 | O70: 0.9329314537 | P70: 0.7891955953 | Q70: 1.351328213 | R70: 3.410563133 | S70: 1.143816282 | T70: 1.153161154 | U70: 0.5689047011 | V70: 0.7694989611 | W70: Metropolitana | X70: Central | Y70: Occidente | Z70: Oriental | AA70: Para Central | AB70: 1.249151218 | AC70: 1.47217878 | AD70: 1.086407523 | AE70: 1.064862936 | AF70: 0.7329438291
A71: SLV | B71: 2014 | C71: SLV_2014_MICS | D71: 227 | E71: Lugar que usan con mayor frecuencia los miembros del hogar | F71: No obtuvo permiso para ver el lugar | H71: 2.150268172 | I71: 3.768961521 | J71: 5.189126271 | K71: 10.0477622 | L71: 13.9289246 | M71: 5.120064274 | N71: 6.13902283 | O71: 10.29706283 | P71: 12.32976986 | Q71: 16.22946588 | R71: 1.47189267 | S71: 1.140922044 | T71: 2.171092749 | U71: 3.202328543 | V71: 2.645199253 | W71: Metropolitana | X71: Central | Y71: Occidente | Z71: Oriental | AA71: Para Central | AB71: 14.21411896 | AC71: 4.329282759 | AD71: 5.545884315 | AE71: 3.959452537 | AF71: 4.439548818
A72: SLV | B72: 2014 | C72: SLV_2014_MICS | D72: 228 | E72: Lugar que usan con mayor frecuencia los miembros del hogar | F72: (especificar) | H72: 2.848654666 | I72: 1.774937165 | J72: 0.8145743533 | K72: 1.025709624 | L72: 1.041121029 | M72: 1.354819029 | N72: 0.9081487423 | O72: 0.7159571348 | P72: 1.359997135 | Q72: 0.8879892928 | R72: 4.161869003 | S72: 2.606829909 | T72: 2.391124054 | U72: 1.274230506 | V72: 0.7815261425 | W72: Metropolitana | X72: Central | Y72: Occidente | Z72: Oriental | AA72: Para Central | AB72: 1.296995838 | AC72: 1.805780195 | AD72: 1.07141656 | AE72: 1.413327518 | AF72: 2.243579295
